{"text_format":"1","workbook":"xlsx","n_sheets":14,"sheets":["Januar","Februar","März","April","Mai","Juni","Juli","August","September","Oktober","November","Dezember","Statistik","Anleitung"],"not_rendered":{"charts":0,"images":1,"macros":0,"external_links":0,"defined_names":16,"comments":0,"pivot_tables":0},"unopened":[],"bounds":{"document_bytes":16777216,"sheet_cells":100000,"rows_first":2000,"rows_last":500,"rows_between":2000,"halvings":0,"cell_chars":16384,"cell_head_chars":4096},"cells_cut":0,"cells_raw":0,"read":"whole","date_system":"1900"}

{"sheet":"Januar","index":0,"n_rows":104,"n_cols":14,"rows_kept":104,"cut":false,"hidden":false,"merged":[[101,7,101,10],[87,1,87,10],[88,1,88,10],[90,3,90,4],[93,3,93,4],[95,3,95,4],[97,3,97,4],[74,1,74,10],[64,1,64,2],[50,1,50,2],[99,3,99,4],[82,1,82,10],[69,1,69,10],[70,1,70,10],[71,1,71,10],[86,1,86,10],[84,1,84,10],[85,1,85,10],[83,1,83,10],[76,3,76,4],[72,1,72,10],[73,1,73,10],[78,1,78,2],[2,1,2,2],[3,1,3,2],[4,1,4,2],[2,5,2,8],[3,5,3,8],[79,1,79,10],[80,1,80,10],[81,1,81,10],[68,1,68,10],[35,3,35,6],[60,3,60,4],[65,1,65,10],[43,1,43,2],[55,1,55,2],[46,1,46,2],[54,1,54,2],[45,1,45,2],[47,1,47,2],[66,1,66,10],[67,1,67,10],[56,1,56,2],[40,1,40,2],[41,1,41,2],[42,1,42,2],[52,1,52,2],[53,1,53,2],[51,1,51,2],[44,1,44,2],[48,1,48,2],[49,1,49,2],[28,1,28,2],[37,1,37,2],[24,1,24,2],[25,1,25,2],[38,1,38,2],[27,1,27,2],[39,1,39,2],[0,0,0,8],[0,9,0,11],[9,1,9,2],[10,1,10,2],[15,1,15,2],[11,1,11,2],[12,1,12,2],[13,1,13,2],[14,1,14,2],[32,3,32,4],[4,5,4,8],[26,1,26,2],[19,1,19,2],[20,1,20,2],[21,1,21,2],[22,1,22,2],[23,1,23,2],[17,1,17,2],[16,1,16,2],[18,1,18,2]]}
["Spesenabrechnung 2025"]
[null,null,null,null,null,null,null,null,null,null,"Januar"]
["Name: ",null,null,null,"Vorname: ",null,null,null,null,"Personen-ID:"]
["Dienststelle: ",null,null,null,"Abteilung: ",null,null,null,null,"PersNr.:"]
["Wohnort: ",null,null,null,"Durchwahl: ",null,null,null,null,"(Vertragsnr.:)"]
[]
[]
["Abrechnung Spesen für Reisen mit individuellen Verkehrsmitteln (Auto, Moto etc.) bzw. Verrechnung Fahrzeug Privatgebrauch"]
[null,null,null,null,null,null,null,null,null,null,null,null,"AutoKMTotal"]
["Datum\n( 01.01.9999 )","Gegenstand der Rechnungsstellung",null,"Zeit der Abreise\n( 08:00 )","Zeit der Rückkehr\n( 18:00 )","Fahrzeug-\nart","Kilometer",null,"Vergütung Fahrzeugspesen","Auslagen für Verpflegung","Diverse Auslagen","Total",0,0]
[null,null,null,null,null,"Dienstfahrt mit Privatauto",null,null,{"$f":"IF(F11=\"Dienstfahrt mit Motorrad\",Statistik!$K$12*G11,IF(F11=\"Dienstfahrt mit Mofa / E-Bike\",Statistik!$K$13*G11,IF(F11=\"Privatfahrt mit pers. Dienstfahrzeug\",Statistik!$K$14*G11,IF(F11=\"Privatfahrt mit Poolfahrzeug\",Statistik!$K$15*G11,IF(F11=\"Dienstfahrt mit Velo\",Statistik!#REF!*G11,IF(M11<7000,G11*Statistik!$K$11,IF(N10>=7000,G11*Statistik!$L$11,(7000-N10)*Statistik!$K$11+(M11-7000)*Statistik!$L$11)))))))","v":0},null,null,{"$f":"SUM(I11+J11+K11)","v":0},{"$f":"SUM(N11)","v":0},{"$f":"IF(F11=\"Dienstfahrt mit Privatauto\",SUM(G11),0)","v":0}]
[null,null,null,null,null,"Dienstfahrt mit Privatauto",null,null,{"$f":"IF(F12=\"Dienstfahrt mit Motorrad\",Statistik!$K$12*G12,IF(F12=\"Dienstfahrt mit Mofa / E-Bike\",Statistik!$K$13*G12,IF(F12=\"Privatfahrt mit pers. Dienstfahrzeug\",Statistik!$K$14*G12,IF(F12=\"Privatfahrt mit Poolfahrzeug\",Statistik!$K$15*G12,IF(F12=\"Dienstfahrt mit Velo\",Statistik!#REF!*G12,IF(M12<7000,G12*Statistik!$K$11,IF(M11>=7000,G12*Statistik!$L$11,(7000-M11)*Statistik!$K$11+(M12-7000)*Statistik!$L$11)))))))","v":0},null,null,{"$f":"SUM(I12+J12+K12)","v":0},{"$f":"SUM(N11:N12)","v":0},{"$f":"IF(F12=\"Dienstfahrt mit Privatauto\",SUM(G12),0)","v":0}]
[null,null,null,null,null,"Dienstfahrt mit Privatauto",null,null,{"$f":"IF(F13=\"Dienstfahrt mit Motorrad\",Statistik!$K$12*G13,IF(F13=\"Dienstfahrt mit Mofa / E-Bike\",Statistik!$K$13*G13,IF(F13=\"Privatfahrt mit pers. Dienstfahrzeug\",Statistik!$K$14*G13,IF(F13=\"Privatfahrt mit Poolfahrzeug\",Statistik!$K$15*G13,IF(F13=\"Dienstfahrt mit Velo\",Statistik!#REF!*G13,IF(M13<7000,G13*Statistik!$K$11,IF(M12>=7000,G13*Statistik!$L$11,(7000-M12)*Statistik!$K$11+(M13-7000)*Statistik!$L$11)))))))","v":0},null,null,0,{"$f":"SUM(N11:N13)","v":0},0]
[null,null,null,null,null,"Dienstfahrt mit Privatauto",null,null,{"$f":"IF(F14=\"Dienstfahrt mit Motorrad\",Statistik!$K$12*G14,IF(F14=\"Dienstfahrt mit Mofa / E-Bike\",Statistik!$K$13*G14,IF(F14=\"Privatfahrt mit pers. Dienstfahrzeug\",Statistik!$K$14*G14,IF(F14=\"Privatfahrt mit Poolfahrzeug\",Statistik!$K$15*G14,IF(F14=\"Dienstfahrt mit Velo\",Statistik!#REF!*G14,IF(M14<7000,G14*Statistik!$K$11,IF(M13>=7000,G14*Statistik!$L$11,(7000-M13)*Statistik!$K$11+(M14-7000)*Statistik!$L$11)))))))","v":0},null,null,0,{"$f":"SUM(N11:N14)","v":0},0]
[null,null,null,null,null,"Dienstfahrt mit Privatauto",null,null,{"$f":"IF(F15=\"Dienstfahrt mit Motorrad\",Statistik!$K$12*G15,IF(F15=\"Dienstfahrt mit Mofa / E-Bike\",Statistik!$K$13*G15,IF(F15=\"Privatfahrt mit pers. Dienstfahrzeug\",Statistik!$K$14*G15,IF(F15=\"Privatfahrt mit Poolfahrzeug\",Statistik!$K$15*G15,IF(F15=\"Dienstfahrt mit Velo\",Statistik!#REF!*G15,IF(M15<7000,G15*Statistik!$K$11,IF(M14>=7000,G15*Statistik!$L$11,(7000-M14)*Statistik!$K$11+(M15-7000)*Statistik!$L$11)))))))","v":0},null,null,0,{"$f":"SUM(N11:N15)","v":0},0]
[null,null,null,null,null,"Dienstfahrt mit Privatauto",null,null,{"$f":"IF(F16=\"Dienstfahrt mit Motorrad\",Statistik!$K$12*G16,IF(F16=\"Dienstfahrt mit Mofa / E-Bike\",Statistik!$K$13*G16,IF(F16=\"Privatfahrt mit pers. Dienstfahrzeug\",Statistik!$K$14*G16,IF(F16=\"Privatfahrt mit Poolfahrzeug\",Statistik!$K$15*G16,IF(F16=\"Dienstfahrt mit Velo\",Statistik!#REF!*G16,IF(M16<7000,G16*Statistik!$K$11,IF(M15>=7000,G16*Statistik!$L$11,(7000-M15)*Statistik!$K$11+(M16-7000)*Statistik!$L$11)))))))","v":0},null,null,0,{"$f":"SUM(N11:N16)","v":0},0]
[null,null,null,null,null,"Dienstfahrt mit Privatauto",null,null,{"$f":"IF(F17=\"Dienstfahrt mit Motorrad\",Statistik!$K$12*G17,IF(F17=\"Dienstfahrt mit Mofa / E-Bike\",Statistik!$K$13*G17,IF(F17=\"Privatfahrt mit pers. Dienstfahrzeug\",Statistik!$K$14*G17,IF(F17=\"Privatfahrt mit Poolfahrzeug\",Statistik!$K$15*G17,IF(F17=\"Dienstfahrt mit Velo\",Statistik!#REF!*G17,IF(M17<7000,G17*Statistik!$K$11,IF(M16>=7000,G17*Statistik!$L$11,(7000-M16)*Statistik!$K$11+(M17-7000)*Statistik!$L$11)))))))","v":0},null,null,0,{"$f":"SUM(N11:N17)","v":0},0]
[null,null,null,null,null,"Dienstfahrt mit Privatauto",null,null,{"$f":"IF(F18=\"Dienstfahrt mit Motorrad\",Statistik!$K$12*G18,IF(F18=\"Dienstfahrt mit Mofa / E-Bike\",Statistik!$K$13*G18,IF(F18=\"Privatfahrt mit pers. Dienstfahrzeug\",Statistik!$K$14*G18,IF(F18=\"Privatfahrt mit Poolfahrzeug\",Statistik!$K$15*G18,IF(F18=\"Dienstfahrt mit Velo\",Statistik!#REF!*G18,IF(M18<7000,G18*Statistik!$K$11,IF(M17>=7000,G18*Statistik!$L$11,(7000-M17)*Statistik!$K$11+(M18-7000)*Statistik!$L$11)))))))","v":0},null,null,0,{"$f":"SUM(N11:N18)","v":0},0]
[null,null,null,null,null,"Dienstfahrt mit Privatauto",null,null,{"$f":"IF(F19=\"Dienstfahrt mit Motorrad\",Statistik!$K$12*G19,IF(F19=\"Dienstfahrt mit Mofa / E-Bike\",Statistik!$K$13*G19,IF(F19=\"Privatfahrt mit pers. Dienstfahrzeug\",Statistik!$K$14*G19,IF(F19=\"Privatfahrt mit Poolfahrzeug\",Statistik!$K$15*G19,IF(F19=\"Dienstfahrt mit Velo\",Statistik!#REF!*G19,IF(M19<7000,G19*Statistik!$K$11,IF(M18>=7000,G19*Statistik!$L$11,(7000-M18)*Statistik!$K$11+(M19-7000)*Statistik!$L$11)))))))","v":0},null,null,0,{"$f":"SUM(N11:N19)","v":0},0]
[null,null,null,null,null,"Dienstfahrt mit Privatauto",null,null,{"$f":"IF(F20=\"Dienstfahrt mit Motorrad\",Statistik!$K$12*G20,IF(F20=\"Dienstfahrt mit Mofa / E-Bike\",Statistik!$K$13*G20,IF(F20=\"Privatfahrt mit pers. Dienstfahrzeug\",Statistik!$K$14*G20,IF(F20=\"Privatfahrt mit Poolfahrzeug\",Statistik!$K$15*G20,IF(F20=\"Dienstfahrt mit Velo\",Statistik!#REF!*G20,IF(M20<7000,G20*Statistik!$K$11,IF(M19>=7000,G20*Statistik!$L$11,(7000-M19)*Statistik!$K$11+(M20-7000)*Statistik!$L$11)))))))","v":0},null,null,0,{"$f":"SUM(N11:N20)","v":0},0]
[null,null,null,null,null,"Dienstfahrt mit Privatauto",null,null,{"$f":"IF(F21=\"Dienstfahrt mit Motorrad\",Statistik!$K$12*G21,IF(F21=\"Dienstfahrt mit Mofa / E-Bike\",Statistik!$K$13*G21,IF(F21=\"Privatfahrt mit pers. Dienstfahrzeug\",Statistik!$K$14*G21,IF(F21=\"Privatfahrt mit Poolfahrzeug\",Statistik!$K$15*G21,IF(F21=\"Dienstfahrt mit Velo\",Statistik!#REF!*G21,IF(M21<7000,G21*Statistik!$K$11,IF(M20>=7000,G21*Statistik!$L$11,(7000-M20)*Statistik!$K$11+(M21-7000)*Statistik!$L$11)))))))","v":0},null,null,0,{"$f":"SUM(N11:N21)","v":0},0]
[null,null,null,null,null,"Dienstfahrt mit Privatauto",null,null,{"$f":"IF(F22=\"Dienstfahrt mit Motorrad\",Statistik!$K$12*G22,IF(F22=\"Dienstfahrt mit Mofa / E-Bike\",Statistik!$K$13*G22,IF(F22=\"Privatfahrt mit pers. Dienstfahrzeug\",Statistik!$K$14*G22,IF(F22=\"Privatfahrt mit Poolfahrzeug\",Statistik!$K$15*G22,IF(F22=\"Dienstfahrt mit Velo\",Statistik!#REF!*G22,IF(M22<7000,G22*Statistik!$K$11,IF(M21>=7000,G22*Statistik!$L$11,(7000-M21)*Statistik!$K$11+(M22-7000)*Statistik!$L$11)))))))","v":0},null,null,0,{"$f":"SUM(N11:N22)","v":0},0]
[null,null,null,null,null,"Dienstfahrt mit Privatauto",null,null,{"$f":"IF(F23=\"Dienstfahrt mit Motorrad\",Statistik!$K$12*G23,IF(F23=\"Dienstfahrt mit Mofa / E-Bike\",Statistik!$K$13*G23,IF(F23=\"Privatfahrt mit pers. Dienstfahrzeug\",Statistik!$K$14*G23,IF(F23=\"Privatfahrt mit Poolfahrzeug\",Statistik!$K$15*G23,IF(F23=\"Dienstfahrt mit Velo\",Statistik!#REF!*G23,IF(M23<7000,G23*Statistik!$K$11,IF(M22>=7000,G23*Statistik!$L$11,(7000-M22)*Statistik!$K$11+(M23-7000)*Statistik!$L$11)))))))","v":0},null,null,0,{"$f":"SUM(N11:N23)","v":0},0]
[null,null,null,null,null,"Dienstfahrt mit Privatauto",null,null,{"$f":"IF(F24=\"Dienstfahrt mit Motorrad\",Statistik!$K$12*G24,IF(F24=\"Dienstfahrt mit Mofa / E-Bike\",Statistik!$K$13*G24,IF(F24=\"Privatfahrt mit pers. Dienstfahrzeug\",Statistik!$K$14*G24,IF(F24=\"Privatfahrt mit Poolfahrzeug\",Statistik!$K$15*G24,IF(F24=\"Dienstfahrt mit Velo\",Statistik!#REF!*G24,IF(M24<7000,G24*Statistik!$K$11,IF(M23>=7000,G24*Statistik!$L$11,(7000-M23)*Statistik!$K$11+(M24-7000)*Statistik!$L$11)))))))","v":0},null,null,0,{"$f":"SUM(N11:N24)","v":0},0]
[null,null,null,null,null,"Dienstfahrt mit Privatauto",null,null,{"$f":"IF(F25=\"Dienstfahrt mit Motorrad\",Statistik!$K$12*G25,IF(F25=\"Dienstfahrt mit Mofa / E-Bike\",Statistik!$K$13*G25,IF(F25=\"Privatfahrt mit pers. Dienstfahrzeug\",Statistik!$K$14*G25,IF(F25=\"Privatfahrt mit Poolfahrzeug\",Statistik!$K$15*G25,IF(F25=\"Dienstfahrt mit Velo\",Statistik!#REF!*G25,IF(M25<7000,G25*Statistik!$K$11,IF(M24>=7000,G25*Statistik!$L$11,(7000-M24)*Statistik!$K$11+(M25-7000)*Statistik!$L$11)))))))","v":0},null,null,0,{"$f":"SUM(N11:N25)","v":0},0]
[null,null,null,null,null,"Dienstfahrt mit Privatauto",null,null,{"$f":"IF(F26=\"Dienstfahrt mit Motorrad\",Statistik!$K$12*G26,IF(F26=\"Dienstfahrt mit Mofa / E-Bike\",Statistik!$K$13*G26,IF(F26=\"Privatfahrt mit pers. Dienstfahrzeug\",Statistik!$K$14*G26,IF(F26=\"Privatfahrt mit Poolfahrzeug\",Statistik!$K$15*G26,IF(F26=\"Dienstfahrt mit Velo\",Statistik!#REF!*G26,IF(M26<7000,G26*Statistik!$K$11,IF(M25>=7000,G26*Statistik!$L$11,(7000-M25)*Statistik!$K$11+(M26-7000)*Statistik!$L$11)))))))","v":0},null,null,0,{"$f":"SUM(N11:N26)","v":0},0]
[null,null,null,null,null,"Dienstfahrt mit Privatauto",null,null,{"$f":"IF(F27=\"Dienstfahrt mit Motorrad\",Statistik!$K$12*G27,IF(F27=\"Dienstfahrt mit Mofa / E-Bike\",Statistik!$K$13*G27,IF(F27=\"Privatfahrt mit pers. Dienstfahrzeug\",Statistik!$K$14*G27,IF(F27=\"Privatfahrt mit Poolfahrzeug\",Statistik!$K$15*G27,IF(F27=\"Dienstfahrt mit Velo\",Statistik!#REF!*G27,IF(M27<7000,G27*Statistik!$K$11,IF(M26>=7000,G27*Statistik!$L$11,(7000-M26)*Statistik!$K$11+(M27-7000)*Statistik!$L$11)))))))","v":0},null,null,0,{"$f":"SUM(N11:N27)","v":0},0]
[null,null,null,null,null,"Dienstfahrt mit Privatauto",null,null,{"$f":"IF(F28=\"Dienstfahrt mit Motorrad\",Statistik!$K$12*G28,IF(F28=\"Dienstfahrt mit Mofa / E-Bike\",Statistik!$K$13*G28,IF(F28=\"Privatfahrt mit pers. Dienstfahrzeug\",Statistik!$K$14*G28,IF(F28=\"Privatfahrt mit Poolfahrzeug\",Statistik!$K$15*G28,IF(F28=\"Dienstfahrt mit Velo\",Statistik!#REF!*G28,IF(M28<7000,G28*Statistik!$K$11,IF(M27>=7000,G28*Statistik!$L$11,(7000-M27)*Statistik!$K$11+(M28-7000)*Statistik!$L$11)))))))","v":0},null,null,0,{"$f":"SUM(N11:N28)","v":0},0]
[null,null,null,null,null,"Dienstfahrt mit Privatauto",null,null,{"$f":"IF(F29=\"Dienstfahrt mit Motorrad\",Statistik!$K$12*G29,IF(F29=\"Dienstfahrt mit Mofa / E-Bike\",Statistik!$K$13*G29,IF(F29=\"Privatfahrt mit pers. Dienstfahrzeug\",Statistik!$K$14*G29,IF(F29=\"Privatfahrt mit Poolfahrzeug\",Statistik!$K$15*G29,IF(F29=\"Dienstfahrt mit Velo\",Statistik!#REF!*G29,IF(M29<7000,G29*Statistik!$K$11,IF(M28>=7000,G29*Statistik!$L$11,(7000-M28)*Statistik!$K$11+(M29-7000)*Statistik!$L$11)))))))","v":0},null,null,0,{"$f":"SUM(N11:N29)","v":0},0]
[null,null,null,null,"Vergütung Reisen mit iV laufender Monat:",null,{"$f":"SUM(G11:G29)","v":0},null,{"$f":"SUM(I11:I29)","v":0},{"$f":"SUM(J11:J29)","v":0},{"$f":"SUM(K11:K29)","v":0},null,null,{"$f":"SUM(N10:N29)","v":0}]
[]
[]
["Kostenart: ",null,"Kostenstelle: ",null,null,"Auftrag: ",null,null,null,null,"Tot. Spesen für Reisen mit Indiv. Verkehrsmitteln",{"$f":"SUM(L11:L29)","v":0}]
[]
[]
["Abrechnung Spesen für Reisen mit öV",null,null,"Als Vergütung an Halbtax oder GA maximal noch anrechenbar:",null,null,null,{"$f":"190-H58","v":190}]
[]
["Datum\n( 01.01.9999 )","Gegenstand der Rechnungsstellung",null,"Zeit der Abreise\n( 08:00 )","Zeit der Rückkehr\n( 18:00 )","Vergütungs-Grundlage","Ausgaben für Billettkosten durch MA","Vergütung  \nan Halbtaxabo oder GA","Vergütung Bahnspesen","Auslagen für Verpflegung","Diverse Auslagen","Total"]
[null,null,null,null,null,"1/2 Billett und Verg. für Halbtax-Abo",0,0,{"$f":"SUM(G39:H39)","v":0},null,null,{"$f":"SUM(I39+J39+K39)","v":0}]
[null,null,null,null,null,"1/2 Billett und Verg. für Halbtax-Abo",0,0,{"$f":"SUM(G40:H40)","v":0},null,null,{"$f":"SUM(I40+J40+K40)","v":0}]
[null,null,null,null,null,"1/2 Billett und Verg. für Halbtax-Abo",0,0,0,null,null,0]
[null,null,null,null,null,"1/2 Billett und Verg. für Halbtax-Abo",0,0,0,null,null,0]
[null,null,null,null,null,"1/2 Billett und Verg. für Halbtax-Abo",0,0,0,null,null,0]
[null,null,null,null,null,"1/2 Billett und Verg. für Halbtax-Abo",0,0,0,null,null,0]
[null,null,null,null,null,"1/2 Billett und Verg. für Halbtax-Abo",0,0,0,null,null,0]
[null,null,null,null,null,"1/2 Billett und Verg. für Halbtax-Abo",0,0,0,null,null,0]
[null,null,null,null,null,"1/2 Billett und Verg. für Halbtax-Abo",0,0,0,null,null,0]
[null,null,null,null,null,"1/2 Billett und Verg. für Halbtax-Abo",0,0,0,null,null,0]
[null,null,null,null,null,"1/2 Billett und Verg. für Halbtax-Abo",0,0,0,null,null,0]
[null,null,null,null,null,"1/2 Billett und Verg. für Halbtax-Abo",0,0,0,null,null,0]
[null,null,null,null,null,"1/2 Billett und Verg. für Halbtax-Abo",0,0,0,null,null,0]
[null,null,null,null,null,"1/2 Billett und Verg. für Halbtax-Abo",0,0,0,null,null,0]
[null,null,null,null,null,"1/2 Billett und Verg. für Halbtax-Abo",0,0,0,null,null,0]
[null,null,null,null,null,"1/2 Billett und Verg. für Halbtax-Abo",0,0,0,null,null,0]
[null,null,null,null,null,"1/2 Billett und Verg. für Halbtax-Abo",0,0,0,null,null,0]
[null,null,null,null,null,"1/2 Billett und Verg. für Halbtax-Abo",0,0,0,null,null,0]
[null,null,null,null,null,"1/2 Billett und Verg. für Halbtax-Abo",0,0,0,null,null,0]
[null,null,null,null,"Vergütung öV laufender Monat:",null,{"$f":"SUM(G39:G57)","v":0},{"$f":"SUM(H39:H57)","v":0},{"$f":"SUM(I39:I57)","v":0},{"$f":"SUM(J39:J57)","v":0},{"$f":"SUM(K39:K57)","v":0}]
[]
[]
["Kostenart: ",{"$f":"IF(B33=\"\",\"\",B33)","v":""},"Kostenstelle: ",{"$f":"IF(D33=\"\",\"\",D33)","v":""},null,"Auftrag: ",{"$f":"IF(G33=\"\",\"\",G33)","v":""},null,null,null,"Tot. Spesen für Reisen mit öffentl. Verkehrsmitteln",{"$f":"SUM(L39:L57)","v":0}]
[]
["Abrechnung Spesen für diverse Ausgaben ",null,null,null,"(spezielle Kostenarten, bitte je Kostenart in separaten Block eingeben)"]
[]
["Datum\n( 01.01.9999 )","Gegenstand der Rechnungsstellung",null,null,null,null,null,null,null,null,null,"Betrag"]
[]
[]
[]
[]
[]
[]
[]
[]
[]
[]
[]
["Kostenart: ",null,"Kostenstelle: ",null,null,"Auftrag: ",null,null,null,null,"Total Spesen für diverse Auslagen Block 1",{"$f":"SUM(L66:L75)","v":0}]
[]
["Datum\n( 01.01.9999 )","Gegenstand der Rechnungsstellung",null,null,null,null,null,null,null,null,null,"Betrag"]
[]
[]
[]
[]
[]
[]
[]
[]
[]
[]
[]
["Kostenart: ",null,"Kostenstelle: ",null,null,"Auftrag: ",null,null,null,null,"Total Spesen für diverse Auslagen Block 2 ",{"$f":"SUM(L80:L89)","v":0}]
[]
["Zusammenfassung "]
["Kostenart: ",{"$f":"IF(B33=\"\",\"\",B33)","v":""},"Kostenstelle: ",{"$f":"IF(D33=\"\",\"\",D33)","v":""},null,"Auftrag: ",{"$f":"IF(G33=\"\",\"\",G33)","v":""},null,null,null,{"$f":"K33","v":"Tot. Spesen für Reisen mit Indiv. Verkehrsmitteln"},{"$f":"L33","v":0}]
[]
["Kostenart: ",{"$f":"B61","v":""},"Kostenstelle: ",{"$f":"D61","v":""},null,"Auftrag: ",{"$f":"G61","v":""},null,null,null,{"$f":"K61","v":"Tot. Spesen für Reisen mit öffentl. Verkehrsmitteln"},{"$f":"L61","v":0},{"$f":"J30+J58","v":0}]
[]
["Kostenart: ",{"$f":"IF(B77=\"\",\"\",B77)","v":""},"Kostenstelle: ",{"$f":"IF(D77=\"\",\"\",D77)","v":""},null,"Auftrag: ",{"$f":"IF(G77=\"\",\"\",G77)","v":""},null,null,null,{"$f":"K77","v":"Total Spesen für diverse Auslagen Block 1"},{"$f":"L77","v":0}]
[]
["Kostenart: ",{"$f":"IF(B91=\"\",\"\",B91)","v":""},"Kostenstelle: ",{"$f":"IF(D91=\"\",\"\",D91)","v":""},null,"Auftrag: ",{"$f":"IF(G91=\"\",\"\",G91)","v":""},null,null,null,{"$f":"K91","v":"Total Spesen für diverse Auslagen Block 2 "},{"$f":"L91","v":0},{"$f":"L100+L98+K58+K30","v":0}]
[]
["Total Spesen ",null,null,null,null,null,null,"Total Spesen Januar",null,null,null,{"$f":"SUM(L94:L100)","v":0}]
[]
[null,"Datum/Unterschrift:          Rechnungssteller/in",null,null,null,"Vorgesetze/r",null,"Verantwortliche/r"]

{"sheet":"Februar","index":1,"n_rows":104,"n_cols":14,"rows_kept":104,"cut":false,"hidden":false,"merged":[[97,3,97,4],[82,1,82,10],[101,7,101,10],[86,1,86,10],[87,1,87,10],[88,1,88,10],[90,3,90,4],[93,3,93,4],[99,3,99,4],[83,1,83,10],[84,1,84,10],[85,1,85,10],[95,3,95,4],[76,3,76,4],[78,1,78,2],[79,1,79,10],[80,1,80,10],[81,1,81,10],[74,1,74,10],[66,1,66,10],[67,1,67,10],[32,3,32,4],[35,3,35,6],[37,1,37,2],[50,1,50,2],[39,1,39,2],[51,1,51,2],[52,1,52,2],[68,1,68,10],[69,1,69,10],[70,1,70,10],[71,1,71,10],[72,1,72,10],[73,1,73,10],[65,1,65,10],[54,1,54,2],[55,1,55,2],[56,1,56,2],[46,1,46,2],[53,1,53,2],[44,1,44,2],[45,1,45,2],[60,3,60,4],[64,1,64,2],[47,1,47,2],[48,1,48,2],[49,1,49,2],[38,1,38,2],[27,1,27,2],[28,1,28,2],[40,1,40,2],[41,1,41,2],[42,1,42,2],[43,1,43,2],[19,1,19,2],[20,1,20,2],[13,1,13,2],[14,1,14,2],[15,1,15,2],[16,1,16,2],[17,1,17,2],[18,1,18,2],[25,1,25,2],[26,1,26,2],[21,1,21,2],[22,1,22,2],[23,1,23,2],[24,1,24,2],[0,0,0,8],[0,9,0,11],[2,1,2,2],[2,5,2,8],[3,1,3,2],[3,5,3,8],[12,1,12,2],[4,1,4,2],[4,5,4,8],[9,1,9,2],[10,1,10,2],[11,1,11,2]]}
[{"$f":"Januar!A1","v":"Spesenabrechnung 2025"}]
[null,null,null,null,null,null,null,null,null,null,"Februar"]
["Name: ",{"$f":"IF(Januar!B3=\"\",\"\",Januar!B3)","v":""},null,null,"Vorname: ",{"$f":"IF(Januar!F3=\"\",\"\",Januar!F3)","v":""},null,null,null,"Personen-ID:",{"$f":"IF(Januar!K3=\"\",\"\",Januar!K3)","v":""}]
["Dienststelle: ",{"$f":"IF(Januar!B4=\"\",\"\",Januar!B4)","v":""},null,null,"Abteilung: ",{"$f":"IF(Januar!F4=\"\",\"\",Januar!F4)","v":""},null,null,null,"PersNr.:",{"$f":"IF(Januar!K4=\"\",\"\",Januar!K4)","v":""}]
["Wohnort: ",{"$f":"IF(Januar!B5=\"\",\"\",Januar!B5)","v":""},null,null,"Durchwahl: ",{"$f":"IF(Januar!F5=\"\",\"\",Januar!F5)","v":""},null,null,null,"(Vertragsnr.:)"]
[]
[]
["Abrechnung Spesen für Reisen mit individuellen Verkehrsmitteln (Auto, Moto etc.) bzw. Verrechnung Fahrzeug Privatgebrauch"]
[null,null,null,null,null,null,null,null,null,null,null,null,"AutoKMTotal"]
["Datum\n( 01.01.9999 )","Gegenstand der Rechnungsstellung",null,"Zeit der Abreise\n( 08:00 )","Zeit der Rückkehr\n( 18:00 )","Fahrzeug-\nart","Kilometer",null,"Vergütung Fahrzeugspesen","Auslagen für Verpflegung","Diverse Auslagen","Total",null,{"$f":"Januar!N30","v":0}]
[null,null,null,null,null,"Dienstfahrt mit Privatauto",null,null,{"$f":"IF(F11=\"Dienstfahrt mit Motorrad\",Statistik!$K$12*G11,IF(F11=\"Dienstfahrt mit Mofa / E-Bike\",Statistik!$K$13*G11,IF(F11=\"Privatfahrt mit pers. Dienstfahrzeug\",Statistik!$K$14*G11,IF(F11=\"Privatfahrt mit Poolfahrzeug\",Statistik!$K$15*G11,IF(F11=\"Dienstfahrt mit Velo\",Statistik!#REF!*G11,IF(M11<7000,G11*Statistik!$K$11,IF(N10>=7000,G11*Statistik!$L$11,(7000-N10)*Statistik!$K$11+(M11-7000)*Statistik!$L$11)))))))","v":0},null,null,{"$f":"SUM(I11+J11+K11)","v":0},{"$f":"SUM(N10:N11)","v":0},{"$f":"IF(F11=\"Dienstfahrt mit Privatauto\",SUM(G11),0)","v":0}]
[null,null,null,null,null,"Dienstfahrt mit Privatauto",null,null,{"$f":"IF(F12=\"Dienstfahrt mit Motorrad\",Statistik!$K$12*G12,IF(F12=\"Dienstfahrt mit Mofa / E-Bike\",Statistik!$K$13*G12,IF(F12=\"Privatfahrt mit pers. Dienstfahrzeug\",Statistik!$K$14*G12,IF(F12=\"Privatfahrt mit Poolfahrzeug\",Statistik!$K$15*G12,IF(F12=\"Dienstfahrt mit Velo\",Statistik!#REF!*G12,IF(M12<7000,G12*Statistik!$K$11,IF(M11>=7000,G12*Statistik!$L$11,(7000-M11)*Statistik!$K$11+(M12-7000)*Statistik!$L$11)))))))","v":0},null,null,{"$f":"SUM(I12+J12+K12)","v":0},{"$f":"SUM(N10:N12)","v":0},{"$f":"IF(F12=\"Dienstfahrt mit Privatauto\",SUM(G12),0)","v":0}]
[null,null,null,null,null,"Dienstfahrt mit Privatauto",null,null,{"$f":"IF(F13=\"Dienstfahrt mit Motorrad\",Statistik!$K$12*G13,IF(F13=\"Dienstfahrt mit Mofa / E-Bike\",Statistik!$K$13*G13,IF(F13=\"Privatfahrt mit pers. Dienstfahrzeug\",Statistik!$K$14*G13,IF(F13=\"Privatfahrt mit Poolfahrzeug\",Statistik!$K$15*G13,IF(F13=\"Dienstfahrt mit Velo\",Statistik!#REF!*G13,IF(M13<7000,G13*Statistik!$K$11,IF(M12>=7000,G13*Statistik!$L$11,(7000-M12)*Statistik!$K$11+(M13-7000)*Statistik!$L$11)))))))","v":0},null,null,0,{"$f":"SUM(N10:N13)","v":0},0]
[null,null,null,null,null,"Dienstfahrt mit Privatauto",null,null,{"$f":"IF(F14=\"Dienstfahrt mit Motorrad\",Statistik!$K$12*G14,IF(F14=\"Dienstfahrt mit Mofa / E-Bike\",Statistik!$K$13*G14,IF(F14=\"Privatfahrt mit pers. Dienstfahrzeug\",Statistik!$K$14*G14,IF(F14=\"Privatfahrt mit Poolfahrzeug\",Statistik!$K$15*G14,IF(F14=\"Dienstfahrt mit Velo\",Statistik!#REF!*G14,IF(M14<7000,G14*Statistik!$K$11,IF(M13>=7000,G14*Statistik!$L$11,(7000-M13)*Statistik!$K$11+(M14-7000)*Statistik!$L$11)))))))","v":0},null,null,0,{"$f":"SUM(N10:N14)","v":0},0]
[null,null,null,null,null,"Dienstfahrt mit Privatauto",null,null,{"$f":"IF(F15=\"Dienstfahrt mit Motorrad\",Statistik!$K$12*G15,IF(F15=\"Dienstfahrt mit Mofa / E-Bike\",Statistik!$K$13*G15,IF(F15=\"Privatfahrt mit pers. Dienstfahrzeug\",Statistik!$K$14*G15,IF(F15=\"Privatfahrt mit Poolfahrzeug\",Statistik!$K$15*G15,IF(F15=\"Dienstfahrt mit Velo\",Statistik!#REF!*G15,IF(M15<7000,G15*Statistik!$K$11,IF(M14>=7000,G15*Statistik!$L$11,(7000-M14)*Statistik!$K$11+(M15-7000)*Statistik!$L$11)))))))","v":0},null,null,0,{"$f":"SUM(N10:N15)","v":0},0]
[null,null,null,null,null,"Dienstfahrt mit Privatauto",null,null,{"$f":"IF(F16=\"Dienstfahrt mit Motorrad\",Statistik!$K$12*G16,IF(F16=\"Dienstfahrt mit Mofa / E-Bike\",Statistik!$K$13*G16,IF(F16=\"Privatfahrt mit pers. Dienstfahrzeug\",Statistik!$K$14*G16,IF(F16=\"Privatfahrt mit Poolfahrzeug\",Statistik!$K$15*G16,IF(F16=\"Dienstfahrt mit Velo\",Statistik!#REF!*G16,IF(M16<7000,G16*Statistik!$K$11,IF(M15>=7000,G16*Statistik!$L$11,(7000-M15)*Statistik!$K$11+(M16-7000)*Statistik!$L$11)))))))","v":0},null,null,0,{"$f":"SUM(N10:N16)","v":0},0]
[null,null,null,null,null,"Dienstfahrt mit Privatauto",null,null,{"$f":"IF(F17=\"Dienstfahrt mit Motorrad\",Statistik!$K$12*G17,IF(F17=\"Dienstfahrt mit Mofa / E-Bike\",Statistik!$K$13*G17,IF(F17=\"Privatfahrt mit pers. Dienstfahrzeug\",Statistik!$K$14*G17,IF(F17=\"Privatfahrt mit Poolfahrzeug\",Statistik!$K$15*G17,IF(F17=\"Dienstfahrt mit Velo\",Statistik!#REF!*G17,IF(M17<7000,G17*Statistik!$K$11,IF(M16>=7000,G17*Statistik!$L$11,(7000-M16)*Statistik!$K$11+(M17-7000)*Statistik!$L$11)))))))","v":0},null,null,0,{"$f":"SUM(N10:N17)","v":0},0]
[null,null,null,null,null,"Dienstfahrt mit Privatauto",null,null,{"$f":"IF(F18=\"Dienstfahrt mit Motorrad\",Statistik!$K$12*G18,IF(F18=\"Dienstfahrt mit Mofa / E-Bike\",Statistik!$K$13*G18,IF(F18=\"Privatfahrt mit pers. Dienstfahrzeug\",Statistik!$K$14*G18,IF(F18=\"Privatfahrt mit Poolfahrzeug\",Statistik!$K$15*G18,IF(F18=\"Dienstfahrt mit Velo\",Statistik!#REF!*G18,IF(M18<7000,G18*Statistik!$K$11,IF(M17>=7000,G18*Statistik!$L$11,(7000-M17)*Statistik!$K$11+(M18-7000)*Statistik!$L$11)))))))","v":0},null,null,0,{"$f":"SUM(N10:N18)","v":0},0]
[null,null,null,null,null,"Dienstfahrt mit Privatauto",null,null,{"$f":"IF(F19=\"Dienstfahrt mit Motorrad\",Statistik!$K$12*G19,IF(F19=\"Dienstfahrt mit Mofa / E-Bike\",Statistik!$K$13*G19,IF(F19=\"Privatfahrt mit pers. Dienstfahrzeug\",Statistik!$K$14*G19,IF(F19=\"Privatfahrt mit Poolfahrzeug\",Statistik!$K$15*G19,IF(F19=\"Dienstfahrt mit Velo\",Statistik!#REF!*G19,IF(M19<7000,G19*Statistik!$K$11,IF(M18>=7000,G19*Statistik!$L$11,(7000-M18)*Statistik!$K$11+(M19-7000)*Statistik!$L$11)))))))","v":0},null,null,0,{"$f":"SUM(N10:N19)","v":0},0]
[null,null,null,null,null,"Dienstfahrt mit Privatauto",null,null,{"$f":"IF(F20=\"Dienstfahrt mit Motorrad\",Statistik!$K$12*G20,IF(F20=\"Dienstfahrt mit Mofa / E-Bike\",Statistik!$K$13*G20,IF(F20=\"Privatfahrt mit pers. Dienstfahrzeug\",Statistik!$K$14*G20,IF(F20=\"Privatfahrt mit Poolfahrzeug\",Statistik!$K$15*G20,IF(F20=\"Dienstfahrt mit Velo\",Statistik!#REF!*G20,IF(M20<7000,G20*Statistik!$K$11,IF(M19>=7000,G20*Statistik!$L$11,(7000-M19)*Statistik!$K$11+(M20-7000)*Statistik!$L$11)))))))","v":0},null,null,0,{"$f":"SUM(N10:N20)","v":0},0]
[null,null,null,null,null,"Dienstfahrt mit Privatauto",null,null,{"$f":"IF(F21=\"Dienstfahrt mit Motorrad\",Statistik!$K$12*G21,IF(F21=\"Dienstfahrt mit Mofa / E-Bike\",Statistik!$K$13*G21,IF(F21=\"Privatfahrt mit pers. Dienstfahrzeug\",Statistik!$K$14*G21,IF(F21=\"Privatfahrt mit Poolfahrzeug\",Statistik!$K$15*G21,IF(F21=\"Dienstfahrt mit Velo\",Statistik!#REF!*G21,IF(M21<7000,G21*Statistik!$K$11,IF(M20>=7000,G21*Statistik!$L$11,(7000-M20)*Statistik!$K$11+(M21-7000)*Statistik!$L$11)))))))","v":0},null,null,0,{"$f":"SUM(N10:N21)","v":0},0]
[null,null,null,null,null,"Dienstfahrt mit Privatauto",null,null,{"$f":"IF(F22=\"Dienstfahrt mit Motorrad\",Statistik!$K$12*G22,IF(F22=\"Dienstfahrt mit Mofa / E-Bike\",Statistik!$K$13*G22,IF(F22=\"Privatfahrt mit pers. Dienstfahrzeug\",Statistik!$K$14*G22,IF(F22=\"Privatfahrt mit Poolfahrzeug\",Statistik!$K$15*G22,IF(F22=\"Dienstfahrt mit Velo\",Statistik!#REF!*G22,IF(M22<7000,G22*Statistik!$K$11,IF(M21>=7000,G22*Statistik!$L$11,(7000-M21)*Statistik!$K$11+(M22-7000)*Statistik!$L$11)))))))","v":0},null,null,0,{"$f":"SUM(N10:N22)","v":0},0]
[null,null,null,null,null,"Dienstfahrt mit Privatauto",null,null,{"$f":"IF(F23=\"Dienstfahrt mit Motorrad\",Statistik!$K$12*G23,IF(F23=\"Dienstfahrt mit Mofa / E-Bike\",Statistik!$K$13*G23,IF(F23=\"Privatfahrt mit pers. Dienstfahrzeug\",Statistik!$K$14*G23,IF(F23=\"Privatfahrt mit Poolfahrzeug\",Statistik!$K$15*G23,IF(F23=\"Dienstfahrt mit Velo\",Statistik!#REF!*G23,IF(M23<7000,G23*Statistik!$K$11,IF(M22>=7000,G23*Statistik!$L$11,(7000-M22)*Statistik!$K$11+(M23-7000)*Statistik!$L$11)))))))","v":0},null,null,0,{"$f":"SUM(N10:N23)","v":0},0]
[null,null,null,null,null,"Dienstfahrt mit Privatauto",null,null,{"$f":"IF(F24=\"Dienstfahrt mit Motorrad\",Statistik!$K$12*G24,IF(F24=\"Dienstfahrt mit Mofa / E-Bike\",Statistik!$K$13*G24,IF(F24=\"Privatfahrt mit pers. Dienstfahrzeug\",Statistik!$K$14*G24,IF(F24=\"Privatfahrt mit Poolfahrzeug\",Statistik!$K$15*G24,IF(F24=\"Dienstfahrt mit Velo\",Statistik!#REF!*G24,IF(M24<7000,G24*Statistik!$K$11,IF(M23>=7000,G24*Statistik!$L$11,(7000-M23)*Statistik!$K$11+(M24-7000)*Statistik!$L$11)))))))","v":0},null,null,0,{"$f":"SUM(N10:N24)","v":0},0]
[null,null,null,null,null,"Dienstfahrt mit Privatauto",null,null,{"$f":"IF(F25=\"Dienstfahrt mit Motorrad\",Statistik!$K$12*G25,IF(F25=\"Dienstfahrt mit Mofa / E-Bike\",Statistik!$K$13*G25,IF(F25=\"Privatfahrt mit pers. Dienstfahrzeug\",Statistik!$K$14*G25,IF(F25=\"Privatfahrt mit Poolfahrzeug\",Statistik!$K$15*G25,IF(F25=\"Dienstfahrt mit Velo\",Statistik!#REF!*G25,IF(M25<7000,G25*Statistik!$K$11,IF(M24>=7000,G25*Statistik!$L$11,(7000-M24)*Statistik!$K$11+(M25-7000)*Statistik!$L$11)))))))","v":0},null,null,0,{"$f":"SUM(N10:N25)","v":0},0]
[null,null,null,null,null,"Dienstfahrt mit Privatauto",null,null,{"$f":"IF(F26=\"Dienstfahrt mit Motorrad\",Statistik!$K$12*G26,IF(F26=\"Dienstfahrt mit Mofa / E-Bike\",Statistik!$K$13*G26,IF(F26=\"Privatfahrt mit pers. Dienstfahrzeug\",Statistik!$K$14*G26,IF(F26=\"Privatfahrt mit Poolfahrzeug\",Statistik!$K$15*G26,IF(F26=\"Dienstfahrt mit Velo\",Statistik!#REF!*G26,IF(M26<7000,G26*Statistik!$K$11,IF(M25>=7000,G26*Statistik!$L$11,(7000-M25)*Statistik!$K$11+(M26-7000)*Statistik!$L$11)))))))","v":0},null,null,0,{"$f":"SUM(N10:N26)","v":0},0]
[null,null,null,null,null,"Dienstfahrt mit Privatauto",null,null,{"$f":"IF(F27=\"Dienstfahrt mit Motorrad\",Statistik!$K$12*G27,IF(F27=\"Dienstfahrt mit Mofa / E-Bike\",Statistik!$K$13*G27,IF(F27=\"Privatfahrt mit pers. Dienstfahrzeug\",Statistik!$K$14*G27,IF(F27=\"Privatfahrt mit Poolfahrzeug\",Statistik!$K$15*G27,IF(F27=\"Dienstfahrt mit Velo\",Statistik!#REF!*G27,IF(M27<7000,G27*Statistik!$K$11,IF(M26>=7000,G27*Statistik!$L$11,(7000-M26)*Statistik!$K$11+(M27-7000)*Statistik!$L$11)))))))","v":0},null,null,0,{"$f":"SUM(N10:N27)","v":0},0]
[null,null,null,null,null,"Dienstfahrt mit Privatauto",null,null,{"$f":"IF(F28=\"Dienstfahrt mit Motorrad\",Statistik!$K$12*G28,IF(F28=\"Dienstfahrt mit Mofa / E-Bike\",Statistik!$K$13*G28,IF(F28=\"Privatfahrt mit pers. Dienstfahrzeug\",Statistik!$K$14*G28,IF(F28=\"Privatfahrt mit Poolfahrzeug\",Statistik!$K$15*G28,IF(F28=\"Dienstfahrt mit Velo\",Statistik!#REF!*G28,IF(M28<7000,G28*Statistik!$K$11,IF(M27>=7000,G28*Statistik!$L$11,(7000-M27)*Statistik!$K$11+(M28-7000)*Statistik!$L$11)))))))","v":0},null,null,0,{"$f":"SUM(N10:N28)","v":0},0]
[null,null,null,null,null,"Dienstfahrt mit Privatauto",null,null,{"$f":"IF(F29=\"Dienstfahrt mit Motorrad\",Statistik!$K$12*G29,IF(F29=\"Dienstfahrt mit Mofa / E-Bike\",Statistik!$K$13*G29,IF(F29=\"Privatfahrt mit pers. Dienstfahrzeug\",Statistik!$K$14*G29,IF(F29=\"Privatfahrt mit Poolfahrzeug\",Statistik!$K$15*G29,IF(F29=\"Dienstfahrt mit Velo\",Statistik!#REF!*G29,IF(M29<7000,G29*Statistik!$K$11,IF(M28>=7000,G29*Statistik!$L$11,(7000-M28)*Statistik!$K$11+(M29-7000)*Statistik!$L$11)))))))","v":0},null,null,0,{"$f":"SUM(N10:N29)","v":0},0]
[null,null,null,null,"Vergütung Reisen mit iV laufender Monat:",null,{"$f":"SUM(G11:G29)","v":0},null,{"$f":"SUM(I11:I29)","v":0},{"$f":"SUM(J11:J29)","v":0},{"$f":"SUM(K11:K29)","v":0},null,null,{"$f":"SUM(N10:N29)","v":0}]
[null,null,null,null,"Übernahme Vormonate",null,{"$f":"Januar!G30","v":0},null,{"$f":"Januar!I30","v":0},{"$f":"Januar!J30","v":0},{"$f":"Januar!K30","v":0}]
[null,null,null,null,"Total km / Ausgaben laufendes Jahr:",null,{"$f":"SUM(G30:G31)","v":0},null,{"$f":"SUM(I30:I31)","v":0},{"$f":"SUM(J30:J31)","v":0},{"$f":"SUM(K30:K31)","v":0}]
["Kostenart: ",null,"Kostenstelle: ",null,null,"Auftrag: ",null,null,null,null,"Tot. Spesen für Reisen mit Indiv. Verkehrsmitteln",{"$f":"SUM(L11:L29)","v":0}]
[]
[]
["Abrechnung Spesen für Reisen mit öV",null,null,"Als Vergütung an Halbtax oder GA maximal noch anrechenbar:",null,null,null,{"$f":"190-H60","v":190}]
[]
["Datum\n( 01.01.9999 )","Gegenstand der Rechnungsstellung",null,"Zeit der Abreise\n( 08:00 )","Zeit der Rückkehr\n( 18:00 )","Vergütungs-Grundlage","Ausgaben für Billettkosten durch MA","Vergütung  \nan Halbtaxabo oder GA","Vergütung Bahnspesen","Auslagen für Verpflegung","Diverse Auslagen","Total"]
[null,null,null,null,null,"1/2 Billett und Verg. für Halbtax-Abo",0,0,{"$f":"SUM(G39:H39)","v":0},null,null,{"$f":"SUM(I39+J39+K39)","v":0}]
[null,null,null,null,null,"1/2 Billett und Verg. für Halbtax-Abo",0,0,{"$f":"SUM(G40:H40)","v":0},null,null,{"$f":"SUM(I40+J40+K40)","v":0}]
[null,null,null,null,null,"1/2 Billett und Verg. für Halbtax-Abo",0,0,0,null,null,0]
[null,null,null,null,null,"1/2 Billett und Verg. für Halbtax-Abo",0,0,0,null,null,0]
[null,null,null,null,null,"1/2 Billett und Verg. für Halbtax-Abo",0,0,0,null,null,0]
[null,null,null,null,null,"1/2 Billett und Verg. für Halbtax-Abo",0,0,0,null,null,0]
[null,null,null,null,null,"1/2 Billett und Verg. für Halbtax-Abo",0,0,0,null,null,0]
[null,null,null,null,null,"1/2 Billett und Verg. für Halbtax-Abo",0,0,0,null,null,0]
[null,null,null,null,null,"1/2 Billett und Verg. für Halbtax-Abo",0,0,0,null,null,0]
[null,null,null,null,null,"1/2 Billett und Verg. für Halbtax-Abo",0,0,0,null,null,0]
[null,null,null,null,null,"1/2 Billett und Verg. für Halbtax-Abo",0,0,0,null,null,0]
[null,null,null,null,null,"1/2 Billett und Verg. für Halbtax-Abo",0,0,0,null,null,0]
[null,null,null,null,null,"1/2 Billett und Verg. für Halbtax-Abo",0,0,0,null,null,0]
[null,null,null,null,null,"1/2 Billett und Verg. für Halbtax-Abo",0,0,0,null,null,0]
[null,null,null,null,null,"1/2 Billett und Verg. für Halbtax-Abo",0,0,0,null,null,0]
[null,null,null,null,null,"1/2 Billett und Verg. für Halbtax-Abo",0,0,0,null,null,0]
[null,null,null,null,null,"1/2 Billett und Verg. für Halbtax-Abo",0,0,0,null,null,0]
[null,null,null,null,null,"1/2 Billett und Verg. für Halbtax-Abo",0,0,0,null,null,0]
[null,null,null,null,null,"1/2 Billett und Verg. für Halbtax-Abo",0,0,0,null,null,0]
[null,null,null,null,"Vergütung Reisen mit öV laufender Monat:",null,{"$f":"SUM(G39:G57)","v":0},{"$f":"SUM(H39:H57)","v":0},{"$f":"SUM(I39:I57)","v":0},{"$f":"SUM(J39:J57)","v":0},{"$f":"SUM(K39:K57)","v":0}]
[null,null,null,null,"Übernahme Vormonate:",null,{"$f":"Januar!G58","v":0},{"$f":"Januar!H58","v":0},{"$f":"Januar!I58","v":0},{"$f":"Januar!J58","v":0},{"$f":"Januar!K58","v":0}]
[null,null,null,null,"Total Billettkosten laufendes Jahr:",null,{"$f":"SUM(G58:G59)","v":0},{"$f":"SUM(H58:H59)","v":0},{"$f":"SUM(I58:I59)","v":0},{"$f":"SUM(J58:J59)","v":0},{"$f":"SUM(K58:K59)","v":0}]
["Kostenart: ",{"$f":"IF(B33=\"\",\"\",B33)","v":""},"Kostenstelle: ",{"$f":"IF(D33=\"\",\"\",D33)","v":""},null,"Auftrag: ",{"$f":"IF(G33=\"\",\"\",G33)","v":""},null,null,null,"Tot. Spesen für Reisen mit öffentl. Verkehrsmitteln",{"$f":"SUM(L39:L57)","v":0}]
[]
["Abrechnung Spesen für diverse Ausgaben ",null,null,null,"(spezielle Kostenarten, bitte je Kostenart in separaten Block eingeben)"]
[]
["Datum\n( 01.01.9999 )","Gegenstand der Rechnungsstellung",null,null,null,null,null,null,null,null,null,"Betrag"]
[]
[]
[]
[]
[]
[]
[]
[]
[]
[]
[]
["Kostenart: ",null,"Kostenstelle: ",null,null,"Auftrag: ",null,null,null,null,"Total Spesen für diverse Auslagen Block 1",{"$f":"SUM(L66:L75)","v":0}]
[]
["Datum\n( 01.01.9999 )","Gegenstand der Rechnungsstellung",null,null,null,null,null,null,null,null,null,"Betrag"]
[]
[]
[]
[]
[]
[]
[]
[]
[]
[]
[]
["Kostenart: ",null,"Kostenstelle: ",null,null,"Auftrag: ",null,null,null,null,"Total Spesen für diverse Auslagen Block 2 ",{"$f":"SUM(L80:L89)","v":0}]
[]
["Zusammenfassung "]
["Kostenart: ",{"$f":"IF(B33=\"\",\"\",B33)","v":""},"Kostenstelle: ",{"$f":"IF(D33=\"\",\"\",D33)","v":""},null,"Auftrag: ",{"$f":"IF(G33=\"\",\"\",G33)","v":""},null,null,null,{"$f":"K33","v":"Tot. Spesen für Reisen mit Indiv. Verkehrsmitteln"},{"$f":"L33","v":0}]
[]
["Kostenart: ",{"$f":"B61","v":""},"Kostenstelle: ",{"$f":"D61","v":""},null,"Auftrag: ",{"$f":"G61","v":""},null,null,null,{"$f":"K61","v":"Tot. Spesen für Reisen mit öffentl. Verkehrsmitteln"},{"$f":"L61","v":0},{"$f":"J30+J58","v":0}]
[]
["Kostenart: ",{"$f":"IF(B77=\"\",\"\",B77)","v":""},"Kostenstelle: ",{"$f":"IF(D77=\"\",\"\",D77)","v":""},null,"Auftrag: ",{"$f":"IF(G77=\"\",\"\",G77)","v":""},null,null,null,{"$f":"K77","v":"Total Spesen für diverse Auslagen Block 1"},{"$f":"L77","v":0}]
[]
["Kostenart: ",{"$f":"IF(B91=\"\",\"\",B91)","v":""},"Kostenstelle: ",{"$f":"IF(D91=\"\",\"\",D91)","v":""},null,"Auftrag: ",{"$f":"IF(G91=\"\",\"\",G91)","v":""},null,null,null,{"$f":"K91","v":"Total Spesen für diverse Auslagen Block 2 "},{"$f":"L91","v":0},{"$f":"L100+L98+K58+K30","v":0}]
[]
["Total Spesen ",null,null,null,null,null,null,"Total Spesen Februar",null,null,null,{"$f":"SUM(L94:L100)","v":0}]
[]
[null,"Datum/Unterschrift:          Rechnungssteller/in",null,null,null,"Vorgesetze/r",null,null,"Verantwortliche/r"]

{"sheet":"März","index":2,"n_rows":104,"n_cols":14,"rows_kept":104,"cut":false,"hidden":false,"merged":[[86,1,86,10],[87,1,87,10],[88,1,88,10],[101,7,101,10],[90,3,90,4],[93,3,93,4],[95,3,95,4],[97,3,97,4],[99,3,99,4],[85,1,85,10],[72,1,72,10],[73,1,73,10],[74,1,74,10],[76,3,76,4],[78,1,78,2],[79,1,79,10],[80,1,80,10],[81,1,81,10],[82,1,82,10],[83,1,83,10],[84,1,84,10],[71,1,71,10],[54,1,54,2],[55,1,55,2],[56,1,56,2],[60,3,60,4],[64,1,64,2],[65,1,65,10],[66,1,66,10],[70,1,70,10],[67,1,67,10],[68,1,68,10],[69,1,69,10],[53,1,53,2],[42,1,42,2],[43,1,43,2],[44,1,44,2],[45,1,45,2],[46,1,46,2],[51,1,51,2],[52,1,52,2],[41,1,41,2],[47,1,47,2],[48,1,48,2],[49,1,49,2],[50,1,50,2],[35,3,35,6],[37,1,37,2],[38,1,38,2],[39,1,39,2],[40,1,40,2],[10,1,10,2],[27,1,27,2],[28,1,28,2],[15,1,15,2],[11,1,11,2],[12,1,12,2],[13,1,13,2],[14,1,14,2],[20,1,20,2],[21,1,21,2],[22,1,22,2],[16,1,16,2],[17,1,17,2],[18,1,18,2],[19,1,19,2],[32,3,32,4],[23,1,23,2],[24,1,24,2],[25,1,25,2],[26,1,26,2],[4,1,4,2],[4,5,4,8],[9,1,9,2],[0,0,0,8],[0,9,0,11],[2,1,2,2],[2,5,2,8],[3,1,3,2],[3,5,3,8]]}
[{"$f":"Januar!A1","v":"Spesenabrechnung 2025"}]
[null,null,null,null,null,null,null,null,null,null,"März"]
["Name: ",{"$f":"IF(Januar!B3=\"\",\"\",Januar!B3)","v":""},null,null,"Vorname: ",{"$f":"IF(Januar!F3=\"\",\"\",Januar!F3)","v":""},null,null,null,"Personen-ID:",{"$f":"IF(Januar!K3=\"\",\"\",Januar!K3)","v":""}]
["Dienststelle: ",{"$f":"IF(Januar!B4=\"\",\"\",Januar!B4)","v":""},null,null,"Abteilung: ",{"$f":"IF(Januar!F4=\"\",\"\",Januar!F4)","v":""},null,null,null,"PersNr.:",{"$f":"IF(Januar!K4=\"\",\"\",Januar!K4)","v":""}]
["Wohnort: ",{"$f":"IF(Januar!B5=\"\",\"\",Januar!B5)","v":""},null,null,"Durchwahl: ",{"$f":"IF(Januar!F5=\"\",\"\",Januar!F5)","v":""},null,null,null,"(Vertragsnr.:)"]
[]
[]
["Abrechnung Spesen für Reisen mit individuellen Verkehrsmitteln (Auto, Moto etc.) bzw. Verrechnung Fahrzeug Privatgebrauch"]
[null,null,null,null,null,null,null,null,null,null,null,null,"AutoKMTotal"]
["Datum\n( 01.01.9999 )","Gegenstand der Rechnungsstellung",null,"Zeit der Abreise\n( 08:00 )","Zeit der Rückkehr\n( 18:00 )","Fahrzeug-\nart","Kilometer",null,"Vergütung Fahrzeugspesen","Auslagen für Verpflegung","Diverse Auslagen","Total",null,{"$f":"Februar!N30","v":0}]
[null,null,null,null,null,"Dienstfahrt mit Privatauto",null,null,{"$f":"IF(F11=\"Dienstfahrt mit Motorrad\",Statistik!$K$12*G11,IF(F11=\"Dienstfahrt mit Mofa / E-Bike\",Statistik!$K$13*G11,IF(F11=\"Privatfahrt mit pers. Dienstfahrzeug\",Statistik!$K$14*G11,IF(F11=\"Privatfahrt mit Poolfahrzeug\",Statistik!$K$15*G11,IF(F11=\"Dienstfahrt mit Velo\",Statistik!#REF!*G11,IF(M11<7000,G11*Statistik!$K$11,IF(N10>=7000,G11*Statistik!$L$11,(7000-N10)*Statistik!$K$11+(M11-7000)*Statistik!$L$11)))))))","v":0},null,null,{"$f":"SUM(I11+J11+K11)","v":0},{"$f":"SUM(N10:N11)","v":0},{"$f":"IF(F11=\"Dienstfahrt mit Privatauto\",SUM(G11),0)","v":0}]
[null,null,null,null,null,"Dienstfahrt mit Privatauto",null,null,{"$f":"IF(F12=\"Dienstfahrt mit Motorrad\",Statistik!$K$12*G12,IF(F12=\"Dienstfahrt mit Mofa / E-Bike\",Statistik!$K$13*G12,IF(F12=\"Privatfahrt mit pers. Dienstfahrzeug\",Statistik!$K$14*G12,IF(F12=\"Privatfahrt mit Poolfahrzeug\",Statistik!$K$15*G12,IF(F12=\"Dienstfahrt mit Velo\",Statistik!#REF!*G12,IF(M12<7000,G12*Statistik!$K$11,IF(M11>=7000,G12*Statistik!$L$11,(7000-M11)*Statistik!$K$11+(M12-7000)*Statistik!$L$11)))))))","v":0},null,null,{"$f":"SUM(I12+J12+K12)","v":0},{"$f":"SUM(N10:N12)","v":0},{"$f":"IF(F12=\"Dienstfahrt mit Privatauto\",SUM(G12),0)","v":0}]
[null,null,null,null,null,"Dienstfahrt mit Privatauto",null,null,{"$f":"IF(F13=\"Dienstfahrt mit Motorrad\",Statistik!$K$12*G13,IF(F13=\"Dienstfahrt mit Mofa / E-Bike\",Statistik!$K$13*G13,IF(F13=\"Privatfahrt mit pers. Dienstfahrzeug\",Statistik!$K$14*G13,IF(F13=\"Privatfahrt mit Poolfahrzeug\",Statistik!$K$15*G13,IF(F13=\"Dienstfahrt mit Velo\",Statistik!#REF!*G13,IF(M13<7000,G13*Statistik!$K$11,IF(M12>=7000,G13*Statistik!$L$11,(7000-M12)*Statistik!$K$11+(M13-7000)*Statistik!$L$11)))))))","v":0},null,null,0,{"$f":"SUM(N10:N13)","v":0},0]
[null,null,null,null,null,"Dienstfahrt mit Privatauto",null,null,{"$f":"IF(F14=\"Dienstfahrt mit Motorrad\",Statistik!$K$12*G14,IF(F14=\"Dienstfahrt mit Mofa / E-Bike\",Statistik!$K$13*G14,IF(F14=\"Privatfahrt mit pers. Dienstfahrzeug\",Statistik!$K$14*G14,IF(F14=\"Privatfahrt mit Poolfahrzeug\",Statistik!$K$15*G14,IF(F14=\"Dienstfahrt mit Velo\",Statistik!#REF!*G14,IF(M14<7000,G14*Statistik!$K$11,IF(M13>=7000,G14*Statistik!$L$11,(7000-M13)*Statistik!$K$11+(M14-7000)*Statistik!$L$11)))))))","v":0},null,null,0,{"$f":"SUM(N10:N14)","v":0},0]
[null,null,null,null,null,"Dienstfahrt mit Privatauto",null,null,{"$f":"IF(F15=\"Dienstfahrt mit Motorrad\",Statistik!$K$12*G15,IF(F15=\"Dienstfahrt mit Mofa / E-Bike\",Statistik!$K$13*G15,IF(F15=\"Privatfahrt mit pers. Dienstfahrzeug\",Statistik!$K$14*G15,IF(F15=\"Privatfahrt mit Poolfahrzeug\",Statistik!$K$15*G15,IF(F15=\"Dienstfahrt mit Velo\",Statistik!#REF!*G15,IF(M15<7000,G15*Statistik!$K$11,IF(M14>=7000,G15*Statistik!$L$11,(7000-M14)*Statistik!$K$11+(M15-7000)*Statistik!$L$11)))))))","v":0},null,null,0,{"$f":"SUM(N10:N15)","v":0},0]
[null,null,null,null,null,"Dienstfahrt mit Privatauto",null,null,{"$f":"IF(F16=\"Dienstfahrt mit Motorrad\",Statistik!$K$12*G16,IF(F16=\"Dienstfahrt mit Mofa / E-Bike\",Statistik!$K$13*G16,IF(F16=\"Privatfahrt mit pers. Dienstfahrzeug\",Statistik!$K$14*G16,IF(F16=\"Privatfahrt mit Poolfahrzeug\",Statistik!$K$15*G16,IF(F16=\"Dienstfahrt mit Velo\",Statistik!#REF!*G16,IF(M16<7000,G16*Statistik!$K$11,IF(M15>=7000,G16*Statistik!$L$11,(7000-M15)*Statistik!$K$11+(M16-7000)*Statistik!$L$11)))))))","v":0},null,null,0,{"$f":"SUM(N10:N16)","v":0},0]
[null,null,null,null,null,"Dienstfahrt mit Privatauto",null,null,{"$f":"IF(F17=\"Dienstfahrt mit Motorrad\",Statistik!$K$12*G17,IF(F17=\"Dienstfahrt mit Mofa / E-Bike\",Statistik!$K$13*G17,IF(F17=\"Privatfahrt mit pers. Dienstfahrzeug\",Statistik!$K$14*G17,IF(F17=\"Privatfahrt mit Poolfahrzeug\",Statistik!$K$15*G17,IF(F17=\"Dienstfahrt mit Velo\",Statistik!#REF!*G17,IF(M17<7000,G17*Statistik!$K$11,IF(M16>=7000,G17*Statistik!$L$11,(7000-M16)*Statistik!$K$11+(M17-7000)*Statistik!$L$11)))))))","v":0},null,null,0,{"$f":"SUM(N10:N17)","v":0},0]
[null,null,null,null,null,"Dienstfahrt mit Privatauto",null,null,{"$f":"IF(F18=\"Dienstfahrt mit Motorrad\",Statistik!$K$12*G18,IF(F18=\"Dienstfahrt mit Mofa / E-Bike\",Statistik!$K$13*G18,IF(F18=\"Privatfahrt mit pers. Dienstfahrzeug\",Statistik!$K$14*G18,IF(F18=\"Privatfahrt mit Poolfahrzeug\",Statistik!$K$15*G18,IF(F18=\"Dienstfahrt mit Velo\",Statistik!#REF!*G18,IF(M18<7000,G18*Statistik!$K$11,IF(M17>=7000,G18*Statistik!$L$11,(7000-M17)*Statistik!$K$11+(M18-7000)*Statistik!$L$11)))))))","v":0},null,null,0,{"$f":"SUM(N10:N18)","v":0},0]
[null,null,null,null,null,"Dienstfahrt mit Privatauto",null,null,{"$f":"IF(F19=\"Dienstfahrt mit Motorrad\",Statistik!$K$12*G19,IF(F19=\"Dienstfahrt mit Mofa / E-Bike\",Statistik!$K$13*G19,IF(F19=\"Privatfahrt mit pers. Dienstfahrzeug\",Statistik!$K$14*G19,IF(F19=\"Privatfahrt mit Poolfahrzeug\",Statistik!$K$15*G19,IF(F19=\"Dienstfahrt mit Velo\",Statistik!#REF!*G19,IF(M19<7000,G19*Statistik!$K$11,IF(M18>=7000,G19*Statistik!$L$11,(7000-M18)*Statistik!$K$11+(M19-7000)*Statistik!$L$11)))))))","v":0},null,null,0,{"$f":"SUM(N10:N19)","v":0},0]
[null,null,null,null,null,"Dienstfahrt mit Privatauto",null,null,{"$f":"IF(F20=\"Dienstfahrt mit Motorrad\",Statistik!$K$12*G20,IF(F20=\"Dienstfahrt mit Mofa / E-Bike\",Statistik!$K$13*G20,IF(F20=\"Privatfahrt mit pers. Dienstfahrzeug\",Statistik!$K$14*G20,IF(F20=\"Privatfahrt mit Poolfahrzeug\",Statistik!$K$15*G20,IF(F20=\"Dienstfahrt mit Velo\",Statistik!#REF!*G20,IF(M20<7000,G20*Statistik!$K$11,IF(M19>=7000,G20*Statistik!$L$11,(7000-M19)*Statistik!$K$11+(M20-7000)*Statistik!$L$11)))))))","v":0},null,null,0,{"$f":"SUM(N10:N20)","v":0},0]
[null,null,null,null,null,"Dienstfahrt mit Privatauto",null,null,{"$f":"IF(F21=\"Dienstfahrt mit Motorrad\",Statistik!$K$12*G21,IF(F21=\"Dienstfahrt mit Mofa / E-Bike\",Statistik!$K$13*G21,IF(F21=\"Privatfahrt mit pers. Dienstfahrzeug\",Statistik!$K$14*G21,IF(F21=\"Privatfahrt mit Poolfahrzeug\",Statistik!$K$15*G21,IF(F21=\"Dienstfahrt mit Velo\",Statistik!#REF!*G21,IF(M21<7000,G21*Statistik!$K$11,IF(M20>=7000,G21*Statistik!$L$11,(7000-M20)*Statistik!$K$11+(M21-7000)*Statistik!$L$11)))))))","v":0},null,null,0,{"$f":"SUM(N10:N21)","v":0},0]
[null,null,null,null,null,"Dienstfahrt mit Privatauto",null,null,{"$f":"IF(F22=\"Dienstfahrt mit Motorrad\",Statistik!$K$12*G22,IF(F22=\"Dienstfahrt mit Mofa / E-Bike\",Statistik!$K$13*G22,IF(F22=\"Privatfahrt mit pers. Dienstfahrzeug\",Statistik!$K$14*G22,IF(F22=\"Privatfahrt mit Poolfahrzeug\",Statistik!$K$15*G22,IF(F22=\"Dienstfahrt mit Velo\",Statistik!#REF!*G22,IF(M22<7000,G22*Statistik!$K$11,IF(M21>=7000,G22*Statistik!$L$11,(7000-M21)*Statistik!$K$11+(M22-7000)*Statistik!$L$11)))))))","v":0},null,null,0,{"$f":"SUM(N10:N22)","v":0},0]
[null,null,null,null,null,"Dienstfahrt mit Privatauto",null,null,{"$f":"IF(F23=\"Dienstfahrt mit Motorrad\",Statistik!$K$12*G23,IF(F23=\"Dienstfahrt mit Mofa / E-Bike\",Statistik!$K$13*G23,IF(F23=\"Privatfahrt mit pers. Dienstfahrzeug\",Statistik!$K$14*G23,IF(F23=\"Privatfahrt mit Poolfahrzeug\",Statistik!$K$15*G23,IF(F23=\"Dienstfahrt mit Velo\",Statistik!#REF!*G23,IF(M23<7000,G23*Statistik!$K$11,IF(M22>=7000,G23*Statistik!$L$11,(7000-M22)*Statistik!$K$11+(M23-7000)*Statistik!$L$11)))))))","v":0},null,null,0,{"$f":"SUM(N10:N23)","v":0},0]
[null,null,null,null,null,"Dienstfahrt mit Privatauto",null,null,{"$f":"IF(F24=\"Dienstfahrt mit Motorrad\",Statistik!$K$12*G24,IF(F24=\"Dienstfahrt mit Mofa / E-Bike\",Statistik!$K$13*G24,IF(F24=\"Privatfahrt mit pers. Dienstfahrzeug\",Statistik!$K$14*G24,IF(F24=\"Privatfahrt mit Poolfahrzeug\",Statistik!$K$15*G24,IF(F24=\"Dienstfahrt mit Velo\",Statistik!#REF!*G24,IF(M24<7000,G24*Statistik!$K$11,IF(M23>=7000,G24*Statistik!$L$11,(7000-M23)*Statistik!$K$11+(M24-7000)*Statistik!$L$11)))))))","v":0},null,null,0,{"$f":"SUM(N10:N24)","v":0},0]
[null,null,null,null,null,"Dienstfahrt mit Privatauto",null,null,{"$f":"IF(F25=\"Dienstfahrt mit Motorrad\",Statistik!$K$12*G25,IF(F25=\"Dienstfahrt mit Mofa / E-Bike\",Statistik!$K$13*G25,IF(F25=\"Privatfahrt mit pers. Dienstfahrzeug\",Statistik!$K$14*G25,IF(F25=\"Privatfahrt mit Poolfahrzeug\",Statistik!$K$15*G25,IF(F25=\"Dienstfahrt mit Velo\",Statistik!#REF!*G25,IF(M25<7000,G25*Statistik!$K$11,IF(M24>=7000,G25*Statistik!$L$11,(7000-M24)*Statistik!$K$11+(M25-7000)*Statistik!$L$11)))))))","v":0},null,null,0,{"$f":"SUM(N10:N25)","v":0},0]
[null,null,null,null,null,"Dienstfahrt mit Privatauto",null,null,{"$f":"IF(F26=\"Dienstfahrt mit Motorrad\",Statistik!$K$12*G26,IF(F26=\"Dienstfahrt mit Mofa / E-Bike\",Statistik!$K$13*G26,IF(F26=\"Privatfahrt mit pers. Dienstfahrzeug\",Statistik!$K$14*G26,IF(F26=\"Privatfahrt mit Poolfahrzeug\",Statistik!$K$15*G26,IF(F26=\"Dienstfahrt mit Velo\",Statistik!#REF!*G26,IF(M26<7000,G26*Statistik!$K$11,IF(M25>=7000,G26*Statistik!$L$11,(7000-M25)*Statistik!$K$11+(M26-7000)*Statistik!$L$11)))))))","v":0},null,null,0,{"$f":"SUM(N10:N26)","v":0},0]
[null,null,null,null,null,"Dienstfahrt mit Privatauto",null,null,{"$f":"IF(F27=\"Dienstfahrt mit Motorrad\",Statistik!$K$12*G27,IF(F27=\"Dienstfahrt mit Mofa / E-Bike\",Statistik!$K$13*G27,IF(F27=\"Privatfahrt mit pers. Dienstfahrzeug\",Statistik!$K$14*G27,IF(F27=\"Privatfahrt mit Poolfahrzeug\",Statistik!$K$15*G27,IF(F27=\"Dienstfahrt mit Velo\",Statistik!#REF!*G27,IF(M27<7000,G27*Statistik!$K$11,IF(M26>=7000,G27*Statistik!$L$11,(7000-M26)*Statistik!$K$11+(M27-7000)*Statistik!$L$11)))))))","v":0},null,null,0,{"$f":"SUM(N10:N27)","v":0},0]
[null,null,null,null,null,"Dienstfahrt mit Privatauto",null,null,{"$f":"IF(F28=\"Dienstfahrt mit Motorrad\",Statistik!$K$12*G28,IF(F28=\"Dienstfahrt mit Mofa / E-Bike\",Statistik!$K$13*G28,IF(F28=\"Privatfahrt mit pers. Dienstfahrzeug\",Statistik!$K$14*G28,IF(F28=\"Privatfahrt mit Poolfahrzeug\",Statistik!$K$15*G28,IF(F28=\"Dienstfahrt mit Velo\",Statistik!#REF!*G28,IF(M28<7000,G28*Statistik!$K$11,IF(M27>=7000,G28*Statistik!$L$11,(7000-M27)*Statistik!$K$11+(M28-7000)*Statistik!$L$11)))))))","v":0},null,null,0,{"$f":"SUM(N10:N28)","v":0},0]
[null,null,null,null,null,"Dienstfahrt mit Privatauto",null,null,{"$f":"IF(F29=\"Dienstfahrt mit Motorrad\",Statistik!$K$12*G29,IF(F29=\"Dienstfahrt mit Mofa / E-Bike\",Statistik!$K$13*G29,IF(F29=\"Privatfahrt mit pers. Dienstfahrzeug\",Statistik!$K$14*G29,IF(F29=\"Privatfahrt mit Poolfahrzeug\",Statistik!$K$15*G29,IF(F29=\"Dienstfahrt mit Velo\",Statistik!#REF!*G29,IF(M29<7000,G29*Statistik!$K$11,IF(M28>=7000,G29*Statistik!$L$11,(7000-M28)*Statistik!$K$11+(M29-7000)*Statistik!$L$11)))))))","v":0},null,null,0,{"$f":"SUM(N10:N29)","v":0},0]
[null,null,null,null,"Vergütung Reisen mit iV laufender Monat:",null,{"$f":"SUM(G11:G29)","v":0},null,{"$f":"SUM(I11:I29)","v":0},{"$f":"SUM(J11:J29)","v":0},{"$f":"SUM(K11:K29)","v":0},null,null,{"$f":"SUM(N10:N29)","v":0}]
[null,null,null,null,"Übernahme Vormonate",null,{"$f":"Februar!G32","v":0},null,{"$f":"Februar!I32","v":0},{"$f":"Februar!J32","v":0},{"$f":"Februar!K32","v":0}]
[null,null,null,null,"Total km / Ausgaben laufendes Jahr:",null,{"$f":"SUM(G30:G31)","v":0},null,{"$f":"SUM(I30:I31)","v":0},{"$f":"SUM(J30:J31)","v":0},{"$f":"SUM(K30:K31)","v":0}]
["Kostenart: ",null,"Kostenstelle: ",null,null,"Auftrag: ",null,null,null,null,"Tot. Spesen für Reisen mit Indiv. Verkehrsmitteln",{"$f":"SUM(L11:L29)","v":0}]
[]
[]
["Abrechnung Spesen für Reisen mit öV",null,null,"Als Vergütung an Halbtax oder GA maximal noch anrechenbar:",null,null,null,{"$f":"190-H60","v":190}]
[]
["Datum\n( 01.01.9999 )","Gegenstand der Rechnungsstellung",null,"Zeit der Abreise\n( 08:00 )","Zeit der Rückkehr\n( 18:00 )","Vergütungs-Grundlage","Ausgaben für Billettkosten durch MA","Vergütung  \nan Halbtaxabo oder GA","Vergütung Bahnspesen","Auslagen für Verpflegung","Diverse Auslagen","Total"]
[null,null,null,null,null,"1/2 Billett und Verg. für Halbtax-Abo",0,0,{"$f":"SUM(G39:H39)","v":0},null,null,{"$f":"SUM(I39+J39+K39)","v":0}]
[null,null,null,null,null,"1/2 Billett und Verg. für Halbtax-Abo",0,0,{"$f":"SUM(G40:H40)","v":0},null,null,{"$f":"SUM(I40+J40+K40)","v":0}]
[null,null,null,null,null,"1/2 Billett und Verg. für Halbtax-Abo",0,0,0,null,null,0]
[null,null,null,null,null,"1/2 Billett und Verg. für Halbtax-Abo",0,0,0,null,null,0]
[null,null,null,null,null,"1/2 Billett und Verg. für Halbtax-Abo",0,0,0,null,null,0]
[null,null,null,null,null,"1/2 Billett und Verg. für Halbtax-Abo",0,0,0,null,null,0]
[null,null,null,null,null,"1/2 Billett und Verg. für Halbtax-Abo",0,0,0,null,null,0]
[null,null,null,null,null,"1/2 Billett und Verg. für Halbtax-Abo",0,0,0,null,null,0]
[null,null,null,null,null,"1/2 Billett und Verg. für Halbtax-Abo",0,0,0,null,null,0]
[null,null,null,null,null,"1/2 Billett und Verg. für Halbtax-Abo",0,0,0,null,null,0]
[null,null,null,null,null,"1/2 Billett und Verg. für Halbtax-Abo",0,0,0,null,null,0]
[null,null,null,null,null,"1/2 Billett und Verg. für Halbtax-Abo",0,0,0,null,null,0]
[null,null,null,null,null,"1/2 Billett und Verg. für Halbtax-Abo",0,0,0,null,null,0]
[null,null,null,null,null,"1/2 Billett und Verg. für Halbtax-Abo",0,0,0,null,null,0]
[null,null,null,null,null,"1/2 Billett und Verg. für Halbtax-Abo",0,0,0,null,null,0]
[null,null,null,null,null,"1/2 Billett und Verg. für Halbtax-Abo",0,0,0,null,null,0]
[null,null,null,null,null,"1/2 Billett und Verg. für Halbtax-Abo",0,0,0,null,null,0]
[null,null,null,null,null,"1/2 Billett und Verg. für Halbtax-Abo",0,0,0,null,null,0]
[null,null,null,null,null,"1/2 Billett und Verg. für Halbtax-Abo",0,0,0,null,null,0]
[null,null,null,null,"Vergütung Reisen mit öV laufender Monat:",null,{"$f":"SUM(G39:G57)","v":0},{"$f":"SUM(H39:H57)","v":0},{"$f":"SUM(I39:I57)","v":0},{"$f":"SUM(J39:J57)","v":0},{"$f":"SUM(K39:K57)","v":0}]
[null,null,null,null,"Übernahme Vormonate:",null,{"$f":"Februar!G60","v":0},{"$f":"Februar!H60","v":0},{"$f":"Februar!I60","v":0},{"$f":"Februar!J60","v":0},{"$f":"Februar!K60","v":0}]
[null,null,null,null,"Total Billettkosten laufendes Jahr:",null,{"$f":"SUM(G58:G59)","v":0},{"$f":"SUM(H58:H59)","v":0},{"$f":"SUM(I58:I59)","v":0},{"$f":"SUM(J58:J59)","v":0},{"$f":"SUM(K58:K59)","v":0}]
["Kostenart: ",null,"Kostenstelle: ",{"$f":"IF(D33=\"\",\"\",D33)","v":""},null,"Auftrag: ",{"$f":"IF(G33=\"\",\"\",G33)","v":""},null,null,null,"Tot. Spesen für Reisen mit öffentl. Verkehrsmitteln",{"$f":"SUM(L39:L57)","v":0}]
[]
["Abrechnung Spesen für diverse Ausgaben ",null,null,null,"(spezielle Kostenarten, bitte je Kostenart in separaten Block eingeben)"]
[]
["Datum\n( 01.01.9999 )","Gegenstand der Rechnungsstellung",null,null,null,null,null,null,null,null,null,"Betrag"]
[]
[]
[]
[]
[]
[]
[]
[]
[]
[]
[]
["Kostenart: ",null,"Kostenstelle: ",null,null,"Auftrag: ",null,null,null,null,"Total Spesen für diverse Auslagen Block 1",{"$f":"SUM(L66:L75)","v":0}]
[]
["Datum\n( 01.01.9999 )","Gegenstand der Rechnungsstellung",null,null,null,null,null,null,null,null,null,"Betrag"]
[]
[]
[]
[]
[]
[]
[]
[]
[]
[]
[]
["Kostenart: ",null,"Kostenstelle: ",null,null,"Auftrag: ",null,null,null,null,"Total Spesen für diverse Auslagen Block 2 ",{"$f":"SUM(L80:L89)","v":0}]
[]
["Zusammenfassung "]
["Kostenart: ",{"$f":"IF(B33=\"\",\"\",B33)","v":""},"Kostenstelle: ",{"$f":"IF(D33=\"\",\"\",D33)","v":""},null,"Auftrag: ",{"$f":"IF(G33=\"\",\"\",G33)","v":""},null,null,null,{"$f":"K33","v":"Tot. Spesen für Reisen mit Indiv. Verkehrsmitteln"},{"$f":"L33","v":0}]
[]
["Kostenart: ",{"$f":"B61","v":0},"Kostenstelle: ",{"$f":"D61","v":""},null,"Auftrag: ",{"$f":"G61","v":""},null,null,null,{"$f":"K61","v":"Tot. Spesen für Reisen mit öffentl. Verkehrsmitteln"},{"$f":"L61","v":0},{"$f":"J30+J58","v":0}]
[]
["Kostenart: ",{"$f":"IF(B77=\"\",\"\",B77)","v":""},"Kostenstelle: ",{"$f":"IF(D77=\"\",\"\",D77)","v":""},null,"Auftrag: ",{"$f":"IF(G77=\"\",\"\",G77)","v":""},null,null,null,{"$f":"K77","v":"Total Spesen für diverse Auslagen Block 1"},{"$f":"L77","v":0}]
[]
["Kostenart: ",{"$f":"IF(B91=\"\",\"\",B91)","v":""},"Kostenstelle: ",{"$f":"IF(D91=\"\",\"\",D91)","v":""},null,"Auftrag: ",{"$f":"IF(G91=\"\",\"\",G91)","v":""},null,null,null,{"$f":"K91","v":"Total Spesen für diverse Auslagen Block 2 "},{"$f":"L91","v":0},{"$f":"L100+L98+K58+K30","v":0}]
[]
["Total Spesen ",null,null,null,null,null,null,"Total Spesen März",null,null,null,{"$f":"SUM(L94:L100)","v":0}]
[]
[null,"Datum/Unterschrift:          Rechnungssteller/in",null,null,null,"Vorgesetze/r",null,null,"Verantwortliche/r"]

{"sheet":"April","index":3,"n_rows":104,"n_cols":14,"rows_kept":104,"cut":false,"hidden":false,"merged":[[0,0,0,8],[0,9,0,11],[2,1,2,2],[2,5,2,8],[3,1,3,2],[3,5,3,8],[18,1,18,2],[4,1,4,2],[4,5,4,8],[9,1,9,2],[10,1,10,2],[11,1,11,2],[12,1,12,2],[13,1,13,2],[14,1,14,2],[15,1,15,2],[16,1,16,2],[17,1,17,2],[32,3,32,4],[35,3,35,6],[19,1,19,2],[20,1,20,2],[21,1,21,2],[22,1,22,2],[23,1,23,2],[24,1,24,2],[42,1,42,2],[25,1,25,2],[26,1,26,2],[27,1,27,2],[28,1,28,2],[37,1,37,2],[38,1,38,2],[39,1,39,2],[40,1,40,2],[41,1,41,2],[54,1,54,2],[43,1,43,2],[44,1,44,2],[45,1,45,2],[46,1,46,2],[47,1,47,2],[48,1,48,2],[49,1,49,2],[50,1,50,2],[51,1,51,2],[52,1,52,2],[53,1,53,2],[72,1,72,10],[55,1,55,2],[56,1,56,2],[60,3,60,4],[64,1,64,2],[65,1,65,10],[66,1,66,10],[67,1,67,10],[68,1,68,10],[69,1,69,10],[70,1,70,10],[71,1,71,10],[86,1,86,10],[73,1,73,10],[74,1,74,10],[76,3,76,4],[78,1,78,2],[79,1,79,10],[80,1,80,10],[81,1,81,10],[82,1,82,10],[83,1,83,10],[84,1,84,10],[85,1,85,10],[99,3,99,4],[101,7,101,10],[87,1,87,10],[88,1,88,10],[90,3,90,4],[93,3,93,4],[95,3,95,4],[97,3,97,4]]}
["Spesenabrechnung 2025"]
[null,null,null,null,null,null,null,null,null,null,"April"]
["Name: ",{"$f":"IF(Januar!B3=\"\",\"\",Januar!B3)","v":""},null,null,"Vorname: ",{"$f":"IF(Januar!F3=\"\",\"\",Januar!F3)","v":""},null,null,null,"Personen-ID:",{"$f":"IF(Januar!K3=\"\",\"\",Januar!K3)","v":""}]
["Dienststelle: ",{"$f":"IF(Januar!B4=\"\",\"\",Januar!B4)","v":""},null,null,"Abteilung: ",{"$f":"IF(Januar!F4=\"\",\"\",Januar!F4)","v":""},null,null,null,"PersNr.:",{"$f":"IF(Januar!K4=\"\",\"\",Januar!K4)","v":""}]
["Wohnort: ",{"$f":"IF(Januar!B5=\"\",\"\",Januar!B5)","v":""},null,null,"Durchwahl: ",{"$f":"IF(Januar!F5=\"\",\"\",Januar!F5)","v":""},null,null,null,"(Vertragsnr.:)"]
[]
[]
["Abrechnung Spesen für Reisen mit individuellen Verkehrsmitteln (Auto, Moto etc.) bzw. Verrechnung Fahrzeug Privatgebrauch"]
[null,null,null,null,null,null,null,null,null,null,null,null,"AutoKMTotal"]
["Datum\n( 01.01.9999 )","Gegenstand der Rechnungsstellung",null,"Zeit der Abreise\n( 08:00 )","Zeit der Rückkehr\n( 18:00 )","Fahrzeug-\nart","Kilometer",null,"Vergütung Fahrzeugspesen","Auslagen für Verpflegung","Diverse Auslagen","Total",null,{"$f":"März!N30","v":0}]
[null,null,null,null,null,"Dienstfahrt mit Privatauto",null,null,{"$f":"IF(F11=\"Dienstfahrt mit Motorrad\",Statistik!$K$12*G11,IF(F11=\"Dienstfahrt mit Mofa / E-Bike\",Statistik!$K$13*G11,IF(F11=\"Privatfahrt mit pers. Dienstfahrzeug\",Statistik!$K$14*G11,IF(F11=\"Privatfahrt mit Poolfahrzeug\",Statistik!$K$15*G11,IF(F11=\"Dienstfahrt mit Velo\",Statistik!#REF!*G11,IF(M11<7000,G11*Statistik!$K$11,IF(N10>=7000,G11*Statistik!$L$11,(7000-N10)*Statistik!$K$11+(M11-7000)*Statistik!$L$11)))))))","v":0},null,null,{"$f":"SUM(I11+J11+K11)","v":0},{"$f":"SUM(N10:N11)","v":0},{"$f":"IF(F11=\"Dienstfahrt mit Privatauto\",SUM(G11),0)","v":0}]
[null,null,null,null,null,"Dienstfahrt mit Privatauto",null,null,{"$f":"IF(F12=\"Dienstfahrt mit Motorrad\",Statistik!$K$12*G12,IF(F12=\"Dienstfahrt mit Mofa / E-Bike\",Statistik!$K$13*G12,IF(F12=\"Privatfahrt mit pers. Dienstfahrzeug\",Statistik!$K$14*G12,IF(F12=\"Privatfahrt mit Poolfahrzeug\",Statistik!$K$15*G12,IF(F12=\"Dienstfahrt mit Velo\",Statistik!#REF!*G12,IF(M12<7000,G12*Statistik!$K$11,IF(M11>=7000,G12*Statistik!$L$11,(7000-M11)*Statistik!$K$11+(M12-7000)*Statistik!$L$11)))))))","v":0},null,null,{"$f":"SUM(I12+J12+K12)","v":0},{"$f":"SUM(N10:N12)","v":0},{"$f":"IF(F12=\"Dienstfahrt mit Privatauto\",SUM(G12),0)","v":0}]
[null,null,null,null,null,"Dienstfahrt mit Privatauto",null,null,{"$f":"IF(F13=\"Dienstfahrt mit Motorrad\",Statistik!$K$12*G13,IF(F13=\"Dienstfahrt mit Mofa / E-Bike\",Statistik!$K$13*G13,IF(F13=\"Privatfahrt mit pers. Dienstfahrzeug\",Statistik!$K$14*G13,IF(F13=\"Privatfahrt mit Poolfahrzeug\",Statistik!$K$15*G13,IF(F13=\"Dienstfahrt mit Velo\",Statistik!#REF!*G13,IF(M13<7000,G13*Statistik!$K$11,IF(M12>=7000,G13*Statistik!$L$11,(7000-M12)*Statistik!$K$11+(M13-7000)*Statistik!$L$11)))))))","v":0},null,null,0,{"$f":"SUM(N10:N13)","v":0},0]
[null,null,null,null,null,"Dienstfahrt mit Privatauto",null,null,{"$f":"IF(F14=\"Dienstfahrt mit Motorrad\",Statistik!$K$12*G14,IF(F14=\"Dienstfahrt mit Mofa / E-Bike\",Statistik!$K$13*G14,IF(F14=\"Privatfahrt mit pers. Dienstfahrzeug\",Statistik!$K$14*G14,IF(F14=\"Privatfahrt mit Poolfahrzeug\",Statistik!$K$15*G14,IF(F14=\"Dienstfahrt mit Velo\",Statistik!#REF!*G14,IF(M14<7000,G14*Statistik!$K$11,IF(M13>=7000,G14*Statistik!$L$11,(7000-M13)*Statistik!$K$11+(M14-7000)*Statistik!$L$11)))))))","v":0},null,null,0,{"$f":"SUM(N10:N14)","v":0},0]
[null,null,null,null,null,"Dienstfahrt mit Privatauto",null,null,{"$f":"IF(F15=\"Dienstfahrt mit Motorrad\",Statistik!$K$12*G15,IF(F15=\"Dienstfahrt mit Mofa / E-Bike\",Statistik!$K$13*G15,IF(F15=\"Privatfahrt mit pers. Dienstfahrzeug\",Statistik!$K$14*G15,IF(F15=\"Privatfahrt mit Poolfahrzeug\",Statistik!$K$15*G15,IF(F15=\"Dienstfahrt mit Velo\",Statistik!#REF!*G15,IF(M15<7000,G15*Statistik!$K$11,IF(M14>=7000,G15*Statistik!$L$11,(7000-M14)*Statistik!$K$11+(M15-7000)*Statistik!$L$11)))))))","v":0},null,null,0,{"$f":"SUM(N10:N15)","v":0},0]
[null,null,null,null,null,"Dienstfahrt mit Privatauto",null,null,{"$f":"IF(F16=\"Dienstfahrt mit Motorrad\",Statistik!$K$12*G16,IF(F16=\"Dienstfahrt mit Mofa / E-Bike\",Statistik!$K$13*G16,IF(F16=\"Privatfahrt mit pers. Dienstfahrzeug\",Statistik!$K$14*G16,IF(F16=\"Privatfahrt mit Poolfahrzeug\",Statistik!$K$15*G16,IF(F16=\"Dienstfahrt mit Velo\",Statistik!#REF!*G16,IF(M16<7000,G16*Statistik!$K$11,IF(M15>=7000,G16*Statistik!$L$11,(7000-M15)*Statistik!$K$11+(M16-7000)*Statistik!$L$11)))))))","v":0},null,null,0,{"$f":"SUM(N10:N16)","v":0},0]
[null,null,null,null,null,"Dienstfahrt mit Privatauto",null,null,{"$f":"IF(F17=\"Dienstfahrt mit Motorrad\",Statistik!$K$12*G17,IF(F17=\"Dienstfahrt mit Mofa / E-Bike\",Statistik!$K$13*G17,IF(F17=\"Privatfahrt mit pers. Dienstfahrzeug\",Statistik!$K$14*G17,IF(F17=\"Privatfahrt mit Poolfahrzeug\",Statistik!$K$15*G17,IF(F17=\"Dienstfahrt mit Velo\",Statistik!#REF!*G17,IF(M17<7000,G17*Statistik!$K$11,IF(M16>=7000,G17*Statistik!$L$11,(7000-M16)*Statistik!$K$11+(M17-7000)*Statistik!$L$11)))))))","v":0},null,null,0,{"$f":"SUM(N10:N17)","v":0},0]
[null,null,null,null,null,"Dienstfahrt mit Privatauto",null,null,{"$f":"IF(F18=\"Dienstfahrt mit Motorrad\",Statistik!$K$12*G18,IF(F18=\"Dienstfahrt mit Mofa / E-Bike\",Statistik!$K$13*G18,IF(F18=\"Privatfahrt mit pers. Dienstfahrzeug\",Statistik!$K$14*G18,IF(F18=\"Privatfahrt mit Poolfahrzeug\",Statistik!$K$15*G18,IF(F18=\"Dienstfahrt mit Velo\",Statistik!#REF!*G18,IF(M18<7000,G18*Statistik!$K$11,IF(M17>=7000,G18*Statistik!$L$11,(7000-M17)*Statistik!$K$11+(M18-7000)*Statistik!$L$11)))))))","v":0},null,null,0,{"$f":"SUM(N10:N18)","v":0},0]
[null,null,null,null,null,"Dienstfahrt mit Privatauto",null,null,{"$f":"IF(F19=\"Dienstfahrt mit Motorrad\",Statistik!$K$12*G19,IF(F19=\"Dienstfahrt mit Mofa / E-Bike\",Statistik!$K$13*G19,IF(F19=\"Privatfahrt mit pers. Dienstfahrzeug\",Statistik!$K$14*G19,IF(F19=\"Privatfahrt mit Poolfahrzeug\",Statistik!$K$15*G19,IF(F19=\"Dienstfahrt mit Velo\",Statistik!#REF!*G19,IF(M19<7000,G19*Statistik!$K$11,IF(M18>=7000,G19*Statistik!$L$11,(7000-M18)*Statistik!$K$11+(M19-7000)*Statistik!$L$11)))))))","v":0},null,null,0,{"$f":"SUM(N10:N19)","v":0},0]
[null,null,null,null,null,"Dienstfahrt mit Privatauto",null,null,{"$f":"IF(F20=\"Dienstfahrt mit Motorrad\",Statistik!$K$12*G20,IF(F20=\"Dienstfahrt mit Mofa / E-Bike\",Statistik!$K$13*G20,IF(F20=\"Privatfahrt mit pers. Dienstfahrzeug\",Statistik!$K$14*G20,IF(F20=\"Privatfahrt mit Poolfahrzeug\",Statistik!$K$15*G20,IF(F20=\"Dienstfahrt mit Velo\",Statistik!#REF!*G20,IF(M20<7000,G20*Statistik!$K$11,IF(M19>=7000,G20*Statistik!$L$11,(7000-M19)*Statistik!$K$11+(M20-7000)*Statistik!$L$11)))))))","v":0},null,null,0,{"$f":"SUM(N10:N20)","v":0},0]
[null,null,null,null,null,"Dienstfahrt mit Privatauto",null,null,{"$f":"IF(F21=\"Dienstfahrt mit Motorrad\",Statistik!$K$12*G21,IF(F21=\"Dienstfahrt mit Mofa / E-Bike\",Statistik!$K$13*G21,IF(F21=\"Privatfahrt mit pers. Dienstfahrzeug\",Statistik!$K$14*G21,IF(F21=\"Privatfahrt mit Poolfahrzeug\",Statistik!$K$15*G21,IF(F21=\"Dienstfahrt mit Velo\",Statistik!#REF!*G21,IF(M21<7000,G21*Statistik!$K$11,IF(M20>=7000,G21*Statistik!$L$11,(7000-M20)*Statistik!$K$11+(M21-7000)*Statistik!$L$11)))))))","v":0},null,null,0,{"$f":"SUM(N10:N21)","v":0},0]
[null,null,null,null,null,"Dienstfahrt mit Privatauto",null,null,{"$f":"IF(F22=\"Dienstfahrt mit Motorrad\",Statistik!$K$12*G22,IF(F22=\"Dienstfahrt mit Mofa / E-Bike\",Statistik!$K$13*G22,IF(F22=\"Privatfahrt mit pers. Dienstfahrzeug\",Statistik!$K$14*G22,IF(F22=\"Privatfahrt mit Poolfahrzeug\",Statistik!$K$15*G22,IF(F22=\"Dienstfahrt mit Velo\",Statistik!#REF!*G22,IF(M22<7000,G22*Statistik!$K$11,IF(M21>=7000,G22*Statistik!$L$11,(7000-M21)*Statistik!$K$11+(M22-7000)*Statistik!$L$11)))))))","v":0},null,null,0,{"$f":"SUM(N10:N22)","v":0},0]
[null,null,null,null,null,"Dienstfahrt mit Privatauto",null,null,{"$f":"IF(F23=\"Dienstfahrt mit Motorrad\",Statistik!$K$12*G23,IF(F23=\"Dienstfahrt mit Mofa / E-Bike\",Statistik!$K$13*G23,IF(F23=\"Privatfahrt mit pers. Dienstfahrzeug\",Statistik!$K$14*G23,IF(F23=\"Privatfahrt mit Poolfahrzeug\",Statistik!$K$15*G23,IF(F23=\"Dienstfahrt mit Velo\",Statistik!#REF!*G23,IF(M23<7000,G23*Statistik!$K$11,IF(M22>=7000,G23*Statistik!$L$11,(7000-M22)*Statistik!$K$11+(M23-7000)*Statistik!$L$11)))))))","v":0},null,null,0,{"$f":"SUM(N10:N23)","v":0},0]
[null,null,null,null,null,"Dienstfahrt mit Privatauto",null,null,{"$f":"IF(F24=\"Dienstfahrt mit Motorrad\",Statistik!$K$12*G24,IF(F24=\"Dienstfahrt mit Mofa / E-Bike\",Statistik!$K$13*G24,IF(F24=\"Privatfahrt mit pers. Dienstfahrzeug\",Statistik!$K$14*G24,IF(F24=\"Privatfahrt mit Poolfahrzeug\",Statistik!$K$15*G24,IF(F24=\"Dienstfahrt mit Velo\",Statistik!#REF!*G24,IF(M24<7000,G24*Statistik!$K$11,IF(M23>=7000,G24*Statistik!$L$11,(7000-M23)*Statistik!$K$11+(M24-7000)*Statistik!$L$11)))))))","v":0},null,null,0,{"$f":"SUM(N10:N24)","v":0},0]
[null,null,null,null,null,"Dienstfahrt mit Privatauto",null,null,{"$f":"IF(F25=\"Dienstfahrt mit Motorrad\",Statistik!$K$12*G25,IF(F25=\"Dienstfahrt mit Mofa / E-Bike\",Statistik!$K$13*G25,IF(F25=\"Privatfahrt mit pers. Dienstfahrzeug\",Statistik!$K$14*G25,IF(F25=\"Privatfahrt mit Poolfahrzeug\",Statistik!$K$15*G25,IF(F25=\"Dienstfahrt mit Velo\",Statistik!#REF!*G25,IF(M25<7000,G25*Statistik!$K$11,IF(M24>=7000,G25*Statistik!$L$11,(7000-M24)*Statistik!$K$11+(M25-7000)*Statistik!$L$11)))))))","v":0},null,null,0,{"$f":"SUM(N10:N25)","v":0},0]
[null,null,null,null,null,"Dienstfahrt mit Privatauto",null,null,{"$f":"IF(F26=\"Dienstfahrt mit Motorrad\",Statistik!$K$12*G26,IF(F26=\"Dienstfahrt mit Mofa / E-Bike\",Statistik!$K$13*G26,IF(F26=\"Privatfahrt mit pers. Dienstfahrzeug\",Statistik!$K$14*G26,IF(F26=\"Privatfahrt mit Poolfahrzeug\",Statistik!$K$15*G26,IF(F26=\"Dienstfahrt mit Velo\",Statistik!#REF!*G26,IF(M26<7000,G26*Statistik!$K$11,IF(M25>=7000,G26*Statistik!$L$11,(7000-M25)*Statistik!$K$11+(M26-7000)*Statistik!$L$11)))))))","v":0},null,null,0,{"$f":"SUM(N10:N26)","v":0},0]
[null,null,null,null,null,"Dienstfahrt mit Privatauto",null,null,{"$f":"IF(F27=\"Dienstfahrt mit Motorrad\",Statistik!$K$12*G27,IF(F27=\"Dienstfahrt mit Mofa / E-Bike\",Statistik!$K$13*G27,IF(F27=\"Privatfahrt mit pers. Dienstfahrzeug\",Statistik!$K$14*G27,IF(F27=\"Privatfahrt mit Poolfahrzeug\",Statistik!$K$15*G27,IF(F27=\"Dienstfahrt mit Velo\",Statistik!#REF!*G27,IF(M27<7000,G27*Statistik!$K$11,IF(M26>=7000,G27*Statistik!$L$11,(7000-M26)*Statistik!$K$11+(M27-7000)*Statistik!$L$11)))))))","v":0},null,null,0,{"$f":"SUM(N10:N27)","v":0},0]
[null,null,null,null,null,"Dienstfahrt mit Privatauto",null,null,{"$f":"IF(F28=\"Dienstfahrt mit Motorrad\",Statistik!$K$12*G28,IF(F28=\"Dienstfahrt mit Mofa / E-Bike\",Statistik!$K$13*G28,IF(F28=\"Privatfahrt mit pers. Dienstfahrzeug\",Statistik!$K$14*G28,IF(F28=\"Privatfahrt mit Poolfahrzeug\",Statistik!$K$15*G28,IF(F28=\"Dienstfahrt mit Velo\",Statistik!#REF!*G28,IF(M28<7000,G28*Statistik!$K$11,IF(M27>=7000,G28*Statistik!$L$11,(7000-M27)*Statistik!$K$11+(M28-7000)*Statistik!$L$11)))))))","v":0},null,null,0,{"$f":"SUM(N10:N28)","v":0},0]
[null,null,null,null,null,"Dienstfahrt mit Privatauto",null,null,{"$f":"IF(F29=\"Dienstfahrt mit Motorrad\",Statistik!$K$12*G29,IF(F29=\"Dienstfahrt mit Mofa / E-Bike\",Statistik!$K$13*G29,IF(F29=\"Privatfahrt mit pers. Dienstfahrzeug\",Statistik!$K$14*G29,IF(F29=\"Privatfahrt mit Poolfahrzeug\",Statistik!$K$15*G29,IF(F29=\"Dienstfahrt mit Velo\",Statistik!#REF!*G29,IF(M29<7000,G29*Statistik!$K$11,IF(M28>=7000,G29*Statistik!$L$11,(7000-M28)*Statistik!$K$11+(M29-7000)*Statistik!$L$11)))))))","v":0},null,null,0,{"$f":"SUM(N10:N29)","v":0},0]
[null,null,null,null,"Vergütung Reisen mit iV laufender Monat:",null,{"$f":"SUM(G11:G29)","v":0},null,{"$f":"SUM(I11:I29)","v":0},{"$f":"SUM(J11:J29)","v":0},{"$f":"SUM(K11:K29)","v":0},null,null,{"$f":"SUM(N10:N29)","v":0}]
[null,null,null,null,"Übernahme Vormonate",null,{"$f":"März!G32","v":0},null,{"$f":"März!I32","v":0},{"$f":"März!J32","v":0},{"$f":"März!K32","v":0}]
[null,null,null,null,"Total km / Ausgaben laufendes Jahr:",null,{"$f":"SUM(G30:G31)","v":0},null,{"$f":"SUM(I30:I31)","v":0},{"$f":"SUM(J30:J31)","v":0},{"$f":"SUM(K30:K31)","v":0}]
["Kostenart: ",null,"Kostenstelle: ",null,null,"Auftrag: ",null,null,null,null,"Tot. Spesen für Reisen mit Indiv. Verkehrsmitteln",{"$f":"SUM(L11:L29)","v":0}]
[]
[]
["Abrechnung Spesen für Reisen mit öV",null,null,"Als Vergütung an Halbtax oder GA maximal noch anrechenbar:",null,null,null,{"$f":"190-H60","v":190}]
[]
["Datum\n( 01.01.9999 )","Gegenstand der Rechnungsstellung",null,"Zeit der Abreise\n( 08:00 )","Zeit der Rückkehr\n( 18:00 )","Vergütungs-Grundlage","Ausgaben für Billettkosten durch MA","Vergütung  \nan Halbtaxabo oder GA","Vergütung Bahnspesen","Auslagen für Verpflegung","Diverse Auslagen","Total"]
[null,null,null,null,null,"1/2 Billett und Verg. für Halbtax-Abo",0,0,{"$f":"SUM(G39:H39)","v":0},null,null,{"$f":"SUM(I39+J39+K39)","v":0}]
[null,null,null,null,null,"1/2 Billett und Verg. für Halbtax-Abo",0,0,{"$f":"SUM(G40:H40)","v":0},null,null,{"$f":"SUM(I40+J40+K40)","v":0}]
[null,null,null,null,null,"1/2 Billett und Verg. für Halbtax-Abo",0,0,0,null,null,0]
[null,null,null,null,null,"1/2 Billett und Verg. für Halbtax-Abo",0,0,0,null,null,0]
[null,null,null,null,null,"1/2 Billett und Verg. für Halbtax-Abo",0,0,0,null,null,0]
[null,null,null,null,null,"1/2 Billett und Verg. für Halbtax-Abo",0,0,0,null,null,0]
[null,null,null,null,null,"1/2 Billett und Verg. für Halbtax-Abo",0,0,0,null,null,0]
[null,null,null,null,null,"1/2 Billett und Verg. für Halbtax-Abo",0,0,0,null,null,0]
[null,null,null,null,null,"1/2 Billett und Verg. für Halbtax-Abo",0,0,0,null,null,0]
[null,null,null,null,null,"1/2 Billett und Verg. für Halbtax-Abo",0,0,0,null,null,0]
[null,null,null,null,null,"1/2 Billett und Verg. für Halbtax-Abo",0,0,0,null,null,0]
[null,null,null,null,null,"1/2 Billett und Verg. für Halbtax-Abo",0,0,0,null,null,0]
[null,null,null,null,null,"1/2 Billett und Verg. für Halbtax-Abo",0,0,0,null,null,0]
[null,null,null,null,null,"1/2 Billett und Verg. für Halbtax-Abo",0,0,0,null,null,0]
[null,null,null,null,null,"1/2 Billett und Verg. für Halbtax-Abo",0,0,0,null,null,0]
[null,null,null,null,null,"1/2 Billett und Verg. für Halbtax-Abo",0,0,0,null,null,0]
[null,null,null,null,null,"1/2 Billett und Verg. für Halbtax-Abo",0,0,0,null,null,0]
[null,null,null,null,null,"1/2 Billett und Verg. für Halbtax-Abo",0,0,0,null,null,0]
[null,null,null,null,null,"1/2 Billett und Verg. für Halbtax-Abo",0,0,0,null,null,0]
[null,null,null,null,"Vergütung Reisen mit öV laufender Monat:",null,{"$f":"SUM(G39:G57)","v":0},{"$f":"SUM(H39:H57)","v":0},{"$f":"SUM(I39:I57)","v":0},{"$f":"SUM(J39:J57)","v":0},{"$f":"SUM(K39:K57)","v":0}]
[null,null,null,null,"Übernahme Vormonate:",null,{"$f":"März!G60","v":0},{"$f":"März!H60","v":0},{"$f":"März!I60","v":0},{"$f":"März!J60","v":0},{"$f":"März!K60","v":0}]
[null,null,null,null,"Total Billettkosten laufendes Jahr:",null,{"$f":"SUM(G58:G59)","v":0},{"$f":"SUM(H58:H59)","v":0},{"$f":"SUM(I58:I59)","v":0},{"$f":"SUM(J58:J59)","v":0},{"$f":"SUM(K58:K59)","v":0}]
["Kostenart: ",{"$f":"IF(B33=\"\",\"\",B33)","v":""},"Kostenstelle: ",{"$f":"IF(D33=\"\",\"\",D33)","v":""},null,"Auftrag: ",{"$f":"IF(G33=\"\",\"\",G33)","v":""},null,null,null,"Tot. Spesen für Reisen mit öffentl. Verkehrsmitteln",{"$f":"SUM(L39:L57)","v":0}]
[]
["Abrechnung Spesen für diverse Ausgaben ",null,null,null,"(spezielle Kostenarten, bitte je Kostenart in separaten Block eingeben)"]
[]
["Datum\n( 01.01.9999 )","Gegenstand der Rechnungsstellung",null,null,null,null,null,null,null,null,null,"Betrag"]
[]
[]
[]
[]
[]
[]
[]
[]
[]
[]
[]
["Kostenart: ",null,"Kostenstelle: ",null,null,"Auftrag: ",null,null,null,null,"Total Spesen für diverse Auslagen Block 1",{"$f":"SUM(L66:L75)","v":0}]
[]
["Datum\n( 01.01.9999 )","Gegenstand der Rechnungsstellung",null,null,null,null,null,null,null,null,null,"Betrag"]
[]
[]
[]
[]
[]
[]
[]
[]
[]
[]
[]
["Kostenart: ",null,"Kostenstelle: ",null,null,"Auftrag: ",null,null,null,null,"Total Spesen für diverse Auslagen Block 2 ",{"$f":"SUM(L80:L89)","v":0}]
[]
["Zusammenfassung "]
["Kostenart: ",{"$f":"IF(B33=\"\",\"\",B33)","v":""},"Kostenstelle: ",{"$f":"IF(D33=\"\",\"\",D33)","v":""},null,"Auftrag: ",{"$f":"IF(G33=\"\",\"\",G33)","v":""},null,null,null,{"$f":"K33","v":"Tot. Spesen für Reisen mit Indiv. Verkehrsmitteln"},{"$f":"L33","v":0}]
[]
["Kostenart: ",{"$f":"B61","v":""},"Kostenstelle: ",{"$f":"D61","v":""},null,"Auftrag: ",{"$f":"G61","v":""},null,null,null,{"$f":"K61","v":"Tot. Spesen für Reisen mit öffentl. Verkehrsmitteln"},{"$f":"L61","v":0},{"$f":"J30+J58","v":0}]
[]
["Kostenart: ",{"$f":"IF(B77=\"\",\"\",B77)","v":""},"Kostenstelle: ",{"$f":"IF(D77=\"\",\"\",D77)","v":""},null,"Auftrag: ",{"$f":"IF(G77=\"\",\"\",G77)","v":""},null,null,null,{"$f":"K77","v":"Total Spesen für diverse Auslagen Block 1"},{"$f":"L77","v":0}]
[]
["Kostenart: ",{"$f":"IF(B91=\"\",\"\",B91)","v":""},"Kostenstelle: ",{"$f":"IF(D91=\"\",\"\",D91)","v":""},null,"Auftrag: ",{"$f":"IF(G91=\"\",\"\",G91)","v":""},null,null,null,{"$f":"K91","v":"Total Spesen für diverse Auslagen Block 2 "},{"$f":"L91","v":0},{"$f":"L100+L98+K58+K30","v":0}]
[]
["Total Spesen ",null,null,null,null,null,null,"Total Spesen April",null,null,null,{"$f":"SUM(L94:L100)","v":0}]
[]
[null,"Datum/Unterschrift:          Rechnungssteller/in",null,null,null,"Vorgesetze/r",null,null,"Verantwortliche/r"]

{"sheet":"Mai","index":4,"n_rows":104,"n_cols":14,"rows_kept":104,"cut":false,"hidden":false,"merged":[[0,0,0,8],[0,9,0,11],[2,1,2,2],[2,5,2,8],[3,1,3,2],[3,5,3,8],[4,1,4,2],[4,5,4,8],[27,1,27,2],[28,1,28,2],[32,3,32,4],[24,1,24,2],[25,1,25,2],[26,1,26,2],[19,1,19,2],[20,1,20,2],[21,1,21,2],[22,1,22,2],[23,1,23,2],[9,1,9,2],[10,1,10,2],[15,1,15,2],[35,3,35,6],[37,1,37,2],[38,1,38,2],[39,1,39,2],[40,1,40,2],[16,1,16,2],[17,1,17,2],[18,1,18,2],[11,1,11,2],[12,1,12,2],[13,1,13,2],[14,1,14,2],[41,1,41,2],[42,1,42,2],[43,1,43,2],[44,1,44,2],[45,1,45,2],[46,1,46,2],[47,1,47,2],[48,1,48,2],[49,1,49,2],[50,1,50,2],[51,1,51,2],[52,1,52,2],[53,1,53,2],[54,1,54,2],[55,1,55,2],[56,1,56,2],[60,3,60,4],[64,1,64,2],[65,1,65,10],[66,1,66,10],[67,1,67,10],[68,1,68,10],[69,1,69,10],[70,1,70,10],[71,1,71,10],[72,1,72,10],[73,1,73,10],[74,1,74,10],[76,3,76,4],[78,1,78,2],[79,1,79,10],[80,1,80,10],[81,1,81,10],[82,1,82,10],[83,1,83,10],[84,1,84,10],[85,1,85,10],[86,1,86,10],[87,1,87,10],[88,1,88,10],[101,7,101,10],[90,3,90,4],[93,3,93,4],[95,3,95,4],[97,3,97,4],[99,3,99,4]]}
[{"$f":"Januar!A1","v":"Spesenabrechnung 2025"}]
[null,null,null,null,null,null,null,null,null,null,"Mai"]
["Name: ",{"$f":"IF(Januar!B3=\"\",\"\",Januar!B3)","v":""},null,null,"Vorname: ",{"$f":"IF(Januar!F3=\"\",\"\",Januar!F3)","v":""},null,null,null,"Personen-ID:",{"$f":"IF(Januar!K3=\"\",\"\",Januar!K3)","v":""}]
["Dienststelle: ",{"$f":"IF(Januar!B4=\"\",\"\",Januar!B4)","v":""},null,null,"Abteilung: ",{"$f":"IF(Januar!F4=\"\",\"\",Januar!F4)","v":""},null,null,null,"PersNr.:",{"$f":"IF(Januar!K4=\"\",\"\",Januar!K4)","v":""}]
["Wohnort: ",{"$f":"IF(Januar!B5=\"\",\"\",Januar!B5)","v":""},null,null,"Durchwahl: ",{"$f":"IF(Januar!F5=\"\",\"\",Januar!F5)","v":""},null,null,null,"(Vertragsnr.:)"]
[]
[]
["Abrechnung Spesen für Reisen mit individuellen Verkehrsmitteln (Auto, Moto etc.) bzw. Verrechnung Fahrzeug Privatgebrauch"]
[null,null,null,null,null,null,null,null,null,null,null,null,"AutoKMTotal"]
["Datum\n( 01.01.9999 )","Gegenstand der Rechnungsstellung",null,"Zeit der Abreise\n( 08:00 )","Zeit der Rückkehr\n( 18:00 )","Fahrzeug-\nart","Kilometer",null,"Vergütung Fahrzeugspesen","Auslagen für Verpflegung","Diverse Auslagen","Total",null,{"$f":"April!N30","v":0}]
[null,null,null,null,null,"Dienstfahrt mit Privatauto",null,null,{"$f":"IF(F11=\"Dienstfahrt mit Motorrad\",Statistik!$K$12*G11,IF(F11=\"Dienstfahrt mit Mofa / E-Bike\",Statistik!$K$13*G11,IF(F11=\"Privatfahrt mit pers. Dienstfahrzeug\",Statistik!$K$14*G11,IF(F11=\"Privatfahrt mit Poolfahrzeug\",Statistik!$K$15*G11,IF(F11=\"Dienstfahrt mit Velo\",Statistik!#REF!*G11,IF(M11<7000,G11*Statistik!$K$11,IF(N10>=7000,G11*Statistik!$L$11,(7000-N10)*Statistik!$K$11+(M11-7000)*Statistik!$L$11)))))))","v":0},null,null,{"$f":"SUM(I11+J11+K11)","v":0},{"$f":"SUM(N10:N11)","v":0},{"$f":"IF(F11=\"Dienstfahrt mit Privatauto\",SUM(G11),0)","v":0}]
[null,null,null,null,null,"Dienstfahrt mit Privatauto",null,null,{"$f":"IF(F12=\"Dienstfahrt mit Motorrad\",Statistik!$K$12*G12,IF(F12=\"Dienstfahrt mit Mofa / E-Bike\",Statistik!$K$13*G12,IF(F12=\"Privatfahrt mit pers. Dienstfahrzeug\",Statistik!$K$14*G12,IF(F12=\"Privatfahrt mit Poolfahrzeug\",Statistik!$K$15*G12,IF(F12=\"Dienstfahrt mit Velo\",Statistik!#REF!*G12,IF(M12<7000,G12*Statistik!$K$11,IF(M11>=7000,G12*Statistik!$L$11,(7000-M11)*Statistik!$K$11+(M12-7000)*Statistik!$L$11)))))))","v":0},null,null,{"$f":"SUM(I12+J12+K12)","v":0},{"$f":"SUM(N10:N12)","v":0},{"$f":"IF(F12=\"Dienstfahrt mit Privatauto\",SUM(G12),0)","v":0}]
[null,null,null,null,null,"Dienstfahrt mit Privatauto",null,null,{"$f":"IF(F13=\"Dienstfahrt mit Motorrad\",Statistik!$K$12*G13,IF(F13=\"Dienstfahrt mit Mofa / E-Bike\",Statistik!$K$13*G13,IF(F13=\"Privatfahrt mit pers. Dienstfahrzeug\",Statistik!$K$14*G13,IF(F13=\"Privatfahrt mit Poolfahrzeug\",Statistik!$K$15*G13,IF(F13=\"Dienstfahrt mit Velo\",Statistik!#REF!*G13,IF(M13<7000,G13*Statistik!$K$11,IF(M12>=7000,G13*Statistik!$L$11,(7000-M12)*Statistik!$K$11+(M13-7000)*Statistik!$L$11)))))))","v":0},null,null,0,{"$f":"SUM(N10:N13)","v":0},0]
[null,null,null,null,null,"Dienstfahrt mit Privatauto",null,null,{"$f":"IF(F14=\"Dienstfahrt mit Motorrad\",Statistik!$K$12*G14,IF(F14=\"Dienstfahrt mit Mofa / E-Bike\",Statistik!$K$13*G14,IF(F14=\"Privatfahrt mit pers. Dienstfahrzeug\",Statistik!$K$14*G14,IF(F14=\"Privatfahrt mit Poolfahrzeug\",Statistik!$K$15*G14,IF(F14=\"Dienstfahrt mit Velo\",Statistik!#REF!*G14,IF(M14<7000,G14*Statistik!$K$11,IF(M13>=7000,G14*Statistik!$L$11,(7000-M13)*Statistik!$K$11+(M14-7000)*Statistik!$L$11)))))))","v":0},null,null,0,{"$f":"SUM(N10:N14)","v":0},0]
[null,null,null,null,null,"Dienstfahrt mit Privatauto",null,null,{"$f":"IF(F15=\"Dienstfahrt mit Motorrad\",Statistik!$K$12*G15,IF(F15=\"Dienstfahrt mit Mofa / E-Bike\",Statistik!$K$13*G15,IF(F15=\"Privatfahrt mit pers. Dienstfahrzeug\",Statistik!$K$14*G15,IF(F15=\"Privatfahrt mit Poolfahrzeug\",Statistik!$K$15*G15,IF(F15=\"Dienstfahrt mit Velo\",Statistik!#REF!*G15,IF(M15<7000,G15*Statistik!$K$11,IF(M14>=7000,G15*Statistik!$L$11,(7000-M14)*Statistik!$K$11+(M15-7000)*Statistik!$L$11)))))))","v":0},null,null,0,{"$f":"SUM(N10:N15)","v":0},0]
[null,null,null,null,null,"Dienstfahrt mit Privatauto",null,null,{"$f":"IF(F16=\"Dienstfahrt mit Motorrad\",Statistik!$K$12*G16,IF(F16=\"Dienstfahrt mit Mofa / E-Bike\",Statistik!$K$13*G16,IF(F16=\"Privatfahrt mit pers. Dienstfahrzeug\",Statistik!$K$14*G16,IF(F16=\"Privatfahrt mit Poolfahrzeug\",Statistik!$K$15*G16,IF(F16=\"Dienstfahrt mit Velo\",Statistik!#REF!*G16,IF(M16<7000,G16*Statistik!$K$11,IF(M15>=7000,G16*Statistik!$L$11,(7000-M15)*Statistik!$K$11+(M16-7000)*Statistik!$L$11)))))))","v":0},null,null,0,{"$f":"SUM(N10:N16)","v":0},0]
[null,null,null,null,null,"Dienstfahrt mit Privatauto",null,null,{"$f":"IF(F17=\"Dienstfahrt mit Motorrad\",Statistik!$K$12*G17,IF(F17=\"Dienstfahrt mit Mofa / E-Bike\",Statistik!$K$13*G17,IF(F17=\"Privatfahrt mit pers. Dienstfahrzeug\",Statistik!$K$14*G17,IF(F17=\"Privatfahrt mit Poolfahrzeug\",Statistik!$K$15*G17,IF(F17=\"Dienstfahrt mit Velo\",Statistik!#REF!*G17,IF(M17<7000,G17*Statistik!$K$11,IF(M16>=7000,G17*Statistik!$L$11,(7000-M16)*Statistik!$K$11+(M17-7000)*Statistik!$L$11)))))))","v":0},null,null,0,{"$f":"SUM(N10:N17)","v":0},0]
[null,null,null,null,null,"Dienstfahrt mit Privatauto",null,null,{"$f":"IF(F18=\"Dienstfahrt mit Motorrad\",Statistik!$K$12*G18,IF(F18=\"Dienstfahrt mit Mofa / E-Bike\",Statistik!$K$13*G18,IF(F18=\"Privatfahrt mit pers. Dienstfahrzeug\",Statistik!$K$14*G18,IF(F18=\"Privatfahrt mit Poolfahrzeug\",Statistik!$K$15*G18,IF(F18=\"Dienstfahrt mit Velo\",Statistik!#REF!*G18,IF(M18<7000,G18*Statistik!$K$11,IF(M17>=7000,G18*Statistik!$L$11,(7000-M17)*Statistik!$K$11+(M18-7000)*Statistik!$L$11)))))))","v":0},null,null,0,{"$f":"SUM(N10:N18)","v":0},0]
[null,null,null,null,null,"Dienstfahrt mit Privatauto",null,null,{"$f":"IF(F19=\"Dienstfahrt mit Motorrad\",Statistik!$K$12*G19,IF(F19=\"Dienstfahrt mit Mofa / E-Bike\",Statistik!$K$13*G19,IF(F19=\"Privatfahrt mit pers. Dienstfahrzeug\",Statistik!$K$14*G19,IF(F19=\"Privatfahrt mit Poolfahrzeug\",Statistik!$K$15*G19,IF(F19=\"Dienstfahrt mit Velo\",Statistik!#REF!*G19,IF(M19<7000,G19*Statistik!$K$11,IF(M18>=7000,G19*Statistik!$L$11,(7000-M18)*Statistik!$K$11+(M19-7000)*Statistik!$L$11)))))))","v":0},null,null,0,{"$f":"SUM(N10:N19)","v":0},0]
[null,null,null,null,null,"Dienstfahrt mit Privatauto",null,null,{"$f":"IF(F20=\"Dienstfahrt mit Motorrad\",Statistik!$K$12*G20,IF(F20=\"Dienstfahrt mit Mofa / E-Bike\",Statistik!$K$13*G20,IF(F20=\"Privatfahrt mit pers. Dienstfahrzeug\",Statistik!$K$14*G20,IF(F20=\"Privatfahrt mit Poolfahrzeug\",Statistik!$K$15*G20,IF(F20=\"Dienstfahrt mit Velo\",Statistik!#REF!*G20,IF(M20<7000,G20*Statistik!$K$11,IF(M19>=7000,G20*Statistik!$L$11,(7000-M19)*Statistik!$K$11+(M20-7000)*Statistik!$L$11)))))))","v":0},null,null,0,{"$f":"SUM(N10:N20)","v":0},0]
[null,null,null,null,null,"Dienstfahrt mit Privatauto",null,null,{"$f":"IF(F21=\"Dienstfahrt mit Motorrad\",Statistik!$K$12*G21,IF(F21=\"Dienstfahrt mit Mofa / E-Bike\",Statistik!$K$13*G21,IF(F21=\"Privatfahrt mit pers. Dienstfahrzeug\",Statistik!$K$14*G21,IF(F21=\"Privatfahrt mit Poolfahrzeug\",Statistik!$K$15*G21,IF(F21=\"Dienstfahrt mit Velo\",Statistik!#REF!*G21,IF(M21<7000,G21*Statistik!$K$11,IF(M20>=7000,G21*Statistik!$L$11,(7000-M20)*Statistik!$K$11+(M21-7000)*Statistik!$L$11)))))))","v":0},null,null,0,{"$f":"SUM(N10:N21)","v":0},0]
[null,null,null,null,null,"Dienstfahrt mit Privatauto",null,null,{"$f":"IF(F22=\"Dienstfahrt mit Motorrad\",Statistik!$K$12*G22,IF(F22=\"Dienstfahrt mit Mofa / E-Bike\",Statistik!$K$13*G22,IF(F22=\"Privatfahrt mit pers. Dienstfahrzeug\",Statistik!$K$14*G22,IF(F22=\"Privatfahrt mit Poolfahrzeug\",Statistik!$K$15*G22,IF(F22=\"Dienstfahrt mit Velo\",Statistik!#REF!*G22,IF(M22<7000,G22*Statistik!$K$11,IF(M21>=7000,G22*Statistik!$L$11,(7000-M21)*Statistik!$K$11+(M22-7000)*Statistik!$L$11)))))))","v":0},null,null,0,{"$f":"SUM(N10:N22)","v":0},0]
[null,null,null,null,null,"Dienstfahrt mit Privatauto",null,null,{"$f":"IF(F23=\"Dienstfahrt mit Motorrad\",Statistik!$K$12*G23,IF(F23=\"Dienstfahrt mit Mofa / E-Bike\",Statistik!$K$13*G23,IF(F23=\"Privatfahrt mit pers. Dienstfahrzeug\",Statistik!$K$14*G23,IF(F23=\"Privatfahrt mit Poolfahrzeug\",Statistik!$K$15*G23,IF(F23=\"Dienstfahrt mit Velo\",Statistik!#REF!*G23,IF(M23<7000,G23*Statistik!$K$11,IF(M22>=7000,G23*Statistik!$L$11,(7000-M22)*Statistik!$K$11+(M23-7000)*Statistik!$L$11)))))))","v":0},null,null,0,{"$f":"SUM(N10:N23)","v":0},0]
[null,null,null,null,null,"Dienstfahrt mit Privatauto",null,null,{"$f":"IF(F24=\"Dienstfahrt mit Motorrad\",Statistik!$K$12*G24,IF(F24=\"Dienstfahrt mit Mofa / E-Bike\",Statistik!$K$13*G24,IF(F24=\"Privatfahrt mit pers. Dienstfahrzeug\",Statistik!$K$14*G24,IF(F24=\"Privatfahrt mit Poolfahrzeug\",Statistik!$K$15*G24,IF(F24=\"Dienstfahrt mit Velo\",Statistik!#REF!*G24,IF(M24<7000,G24*Statistik!$K$11,IF(M23>=7000,G24*Statistik!$L$11,(7000-M23)*Statistik!$K$11+(M24-7000)*Statistik!$L$11)))))))","v":0},null,null,0,{"$f":"SUM(N10:N24)","v":0},0]
[null,null,null,null,null,"Dienstfahrt mit Privatauto",null,null,{"$f":"IF(F25=\"Dienstfahrt mit Motorrad\",Statistik!$K$12*G25,IF(F25=\"Dienstfahrt mit Mofa / E-Bike\",Statistik!$K$13*G25,IF(F25=\"Privatfahrt mit pers. Dienstfahrzeug\",Statistik!$K$14*G25,IF(F25=\"Privatfahrt mit Poolfahrzeug\",Statistik!$K$15*G25,IF(F25=\"Dienstfahrt mit Velo\",Statistik!#REF!*G25,IF(M25<7000,G25*Statistik!$K$11,IF(M24>=7000,G25*Statistik!$L$11,(7000-M24)*Statistik!$K$11+(M25-7000)*Statistik!$L$11)))))))","v":0},null,null,0,{"$f":"SUM(N10:N25)","v":0},0]
[null,null,null,null,null,"Dienstfahrt mit Privatauto",null,null,{"$f":"IF(F26=\"Dienstfahrt mit Motorrad\",Statistik!$K$12*G26,IF(F26=\"Dienstfahrt mit Mofa / E-Bike\",Statistik!$K$13*G26,IF(F26=\"Privatfahrt mit pers. Dienstfahrzeug\",Statistik!$K$14*G26,IF(F26=\"Privatfahrt mit Poolfahrzeug\",Statistik!$K$15*G26,IF(F26=\"Dienstfahrt mit Velo\",Statistik!#REF!*G26,IF(M26<7000,G26*Statistik!$K$11,IF(M25>=7000,G26*Statistik!$L$11,(7000-M25)*Statistik!$K$11+(M26-7000)*Statistik!$L$11)))))))","v":0},null,null,0,{"$f":"SUM(N10:N26)","v":0},0]
[null,null,null,null,null,"Dienstfahrt mit Privatauto",null,null,{"$f":"IF(F27=\"Dienstfahrt mit Motorrad\",Statistik!$K$12*G27,IF(F27=\"Dienstfahrt mit Mofa / E-Bike\",Statistik!$K$13*G27,IF(F27=\"Privatfahrt mit pers. Dienstfahrzeug\",Statistik!$K$14*G27,IF(F27=\"Privatfahrt mit Poolfahrzeug\",Statistik!$K$15*G27,IF(F27=\"Dienstfahrt mit Velo\",Statistik!#REF!*G27,IF(M27<7000,G27*Statistik!$K$11,IF(M26>=7000,G27*Statistik!$L$11,(7000-M26)*Statistik!$K$11+(M27-7000)*Statistik!$L$11)))))))","v":0},null,null,0,{"$f":"SUM(N10:N27)","v":0},0]
[null,null,null,null,null,"Dienstfahrt mit Privatauto",null,null,{"$f":"IF(F28=\"Dienstfahrt mit Motorrad\",Statistik!$K$12*G28,IF(F28=\"Dienstfahrt mit Mofa / E-Bike\",Statistik!$K$13*G28,IF(F28=\"Privatfahrt mit pers. Dienstfahrzeug\",Statistik!$K$14*G28,IF(F28=\"Privatfahrt mit Poolfahrzeug\",Statistik!$K$15*G28,IF(F28=\"Dienstfahrt mit Velo\",Statistik!#REF!*G28,IF(M28<7000,G28*Statistik!$K$11,IF(M27>=7000,G28*Statistik!$L$11,(7000-M27)*Statistik!$K$11+(M28-7000)*Statistik!$L$11)))))))","v":0},null,null,0,{"$f":"SUM(N10:N28)","v":0},0]
[null,null,null,null,null,"Dienstfahrt mit Privatauto",null,null,{"$f":"IF(F29=\"Dienstfahrt mit Motorrad\",Statistik!$K$12*G29,IF(F29=\"Dienstfahrt mit Mofa / E-Bike\",Statistik!$K$13*G29,IF(F29=\"Privatfahrt mit pers. Dienstfahrzeug\",Statistik!$K$14*G29,IF(F29=\"Privatfahrt mit Poolfahrzeug\",Statistik!$K$15*G29,IF(F29=\"Dienstfahrt mit Velo\",Statistik!#REF!*G29,IF(M29<7000,G29*Statistik!$K$11,IF(M28>=7000,G29*Statistik!$L$11,(7000-M28)*Statistik!$K$11+(M29-7000)*Statistik!$L$11)))))))","v":0},null,null,0,{"$f":"SUM(N10:N29)","v":0},0]
[null,null,null,null,"Vergütung Reisen mit iV laufender Monat:",null,{"$f":"SUM(G11:G29)","v":0},null,{"$f":"SUM(I11:I29)","v":0},{"$f":"SUM(J11:J29)","v":0},{"$f":"SUM(K11:K29)","v":0},null,null,{"$f":"SUM(N10:N29)","v":0}]
[null,null,null,null,"Übernahme Vormonate",null,{"$f":"April!G32","v":0},null,{"$f":"April!I32","v":0},{"$f":"April!J32","v":0},{"$f":"April!K32","v":0}]
[null,null,null,null,"Total km / Ausgaben laufendes Jahr:",null,{"$f":"SUM(G30:G31)","v":0},null,{"$f":"SUM(I30:I31)","v":0},{"$f":"SUM(J30:J31)","v":0},{"$f":"SUM(K30:K31)","v":0}]
["Kostenart: ",null,"Kostenstelle: ",null,null,"Auftrag: ",null,null,null,null,"Tot. Spesen für Reisen mit Indiv. Verkehrsmitteln",{"$f":"SUM(L11:L29)","v":0}]
[]
[]
["Abrechnung Spesen für Reisen mit öV",null,null,"Als Vergütung an Halbtax oder GA maximal noch anrechenbar:",null,null,null,{"$f":"190-H60","v":190}]
[]
["Datum\n( 01.01.9999 )","Gegenstand der Rechnungsstellung",null,"Zeit der Abreise\n( 08:00 )","Zeit der Rückkehr\n( 18:00 )","Vergütungs-Grundlage","Ausgaben für Billettkosten durch MA","Vergütung  \nan Halbtaxabo oder GA","Vergütung Bahnspesen","Auslagen für Verpflegung","Diverse Auslagen","Total"]
[null,null,null,null,null,"1/2 Billett und Verg. für Halbtax-Abo",0,0,{"$f":"SUM(G39:H39)","v":0},null,null,{"$f":"SUM(I39+J39+K39)","v":0}]
[null,null,null,null,null,"1/2 Billett und Verg. für Halbtax-Abo",0,0,{"$f":"SUM(G40:H40)","v":0},null,null,{"$f":"SUM(I40+J40+K40)","v":0}]
[null,null,null,null,null,"1/2 Billett und Verg. für Halbtax-Abo",0,0,0,null,null,0]
[null,null,null,null,null,"1/2 Billett und Verg. für Halbtax-Abo",0,0,0,null,null,0]
[null,null,null,null,null,"1/2 Billett und Verg. für Halbtax-Abo",0,0,0,null,null,0]
[null,null,null,null,null,"1/2 Billett und Verg. für Halbtax-Abo",0,0,0,null,null,0]
[null,null,null,null,null,"1/2 Billett und Verg. für Halbtax-Abo",0,0,0,null,null,0]
[null,null,null,null,null,"1/2 Billett und Verg. für Halbtax-Abo",0,0,0,null,null,0]
[null,null,null,null,null,"1/2 Billett und Verg. für Halbtax-Abo",0,0,0,null,null,0]
[null,null,null,null,null,"1/2 Billett und Verg. für Halbtax-Abo",0,0,0,null,null,0]
[null,null,null,null,null,"1/2 Billett und Verg. für Halbtax-Abo",0,0,0,null,null,0]
[null,null,null,null,null,"1/2 Billett und Verg. für Halbtax-Abo",0,0,0,null,null,0]
[null,null,null,null,null,"1/2 Billett und Verg. für Halbtax-Abo",0,0,0,null,null,0]
[null,null,null,null,null,"1/2 Billett und Verg. für Halbtax-Abo",0,0,0,null,null,0]
[null,null,null,null,null,"1/2 Billett und Verg. für Halbtax-Abo",0,0,0,null,null,0]
[null,null,null,null,null,"1/2 Billett und Verg. für Halbtax-Abo",0,0,0,null,null,0]
[null,null,null,null,null,"1/2 Billett und Verg. für Halbtax-Abo",0,0,0,null,null,0]
[null,null,null,null,null,"1/2 Billett und Verg. für Halbtax-Abo",0,0,0,null,null,0]
[null,null,null,null,null,"1/2 Billett und Verg. für Halbtax-Abo",0,0,0,null,null,0]
[null,null,null,null,"Vergütung Reisen mit öV laufender Monat:",null,{"$f":"SUM(G39:G57)","v":0},{"$f":"SUM(H39:H57)","v":0},{"$f":"SUM(I39:I57)","v":0},{"$f":"SUM(J39:J57)","v":0},{"$f":"SUM(K39:K57)","v":0}]
[null,null,null,null,"Übernahme Vormonate:",null,{"$f":"April!G60","v":0},{"$f":"April!H60","v":0},{"$f":"April!I60","v":0},{"$f":"April!J60","v":0},{"$f":"April!K60","v":0}]
[null,null,null,null,"Total Billettkosten laufendes Jahr:",null,{"$f":"SUM(G58:G59)","v":0},{"$f":"SUM(H58:H59)","v":0},{"$f":"SUM(I58:I59)","v":0},{"$f":"SUM(J58:J59)","v":0},{"$f":"SUM(K58:K59)","v":0}]
["Kostenart: ",{"$f":"IF(B33=\"\",\"\",B33)","v":""},"Kostenstelle: ",{"$f":"IF(D33=\"\",\"\",D33)","v":""},null,"Auftrag: ",{"$f":"IF(G33=\"\",\"\",G33)","v":""},null,null,null,"Tot. Spesen für Reisen mit öffentl. Verkehrsmitteln",{"$f":"SUM(L39:L57)","v":0}]
[]
["Abrechnung Spesen für diverse Ausgaben ",null,null,null,"(spezielle Kostenarten, bitte je Kostenart in separaten Block eingeben)"]
[]
["Datum\n( 01.01.9999 )","Gegenstand der Rechnungsstellung",null,null,null,null,null,null,null,null,null,"Betrag"]
[]
[]
[]
[]
[]
[]
[]
[]
[]
[]
[]
["Kostenart: ",null,"Kostenstelle: ",null,null,"Auftrag: ",null,null,null,null,"Total Spesen für diverse Auslagen Block 1",{"$f":"SUM(L66:L75)","v":0}]
[]
["Datum\n( 01.01.9999 )","Gegenstand der Rechnungsstellung",null,null,null,null,null,null,null,null,null,"Betrag"]
[]
[]
[]
[]
[]
[]
[]
[]
[]
[]
[]
["Kostenart: ",null,"Kostenstelle: ",null,null,"Auftrag: ",null,null,null,null,"Total Spesen für diverse Auslagen Block 2 ",{"$f":"SUM(L80:L89)","v":0}]
[]
["Zusammenfassung "]
["Kostenart: ",{"$f":"IF(B33=\"\",\"\",B33)","v":""},"Kostenstelle: ",{"$f":"IF(D33=\"\",\"\",D33)","v":""},null,"Auftrag: ",{"$f":"IF(G33=\"\",\"\",G33)","v":""},null,null,null,{"$f":"K33","v":"Tot. Spesen für Reisen mit Indiv. Verkehrsmitteln"},{"$f":"L33","v":0}]
[]
["Kostenart: ",{"$f":"B61","v":""},"Kostenstelle: ",{"$f":"D61","v":""},null,"Auftrag: ",{"$f":"G61","v":""},null,null,null,{"$f":"K61","v":"Tot. Spesen für Reisen mit öffentl. Verkehrsmitteln"},{"$f":"L61","v":0},{"$f":"J30+J58","v":0}]
[]
["Kostenart: ",{"$f":"IF(B77=\"\",\"\",B77)","v":""},"Kostenstelle: ",{"$f":"IF(D77=\"\",\"\",D77)","v":""},null,"Auftrag: ",{"$f":"IF(G77=\"\",\"\",G77)","v":""},null,null,null,{"$f":"K77","v":"Total Spesen für diverse Auslagen Block 1"},{"$f":"L77","v":0}]
[]
["Kostenart: ",{"$f":"IF(B91=\"\",\"\",B91)","v":""},"Kostenstelle: ",{"$f":"IF(D91=\"\",\"\",D91)","v":""},null,"Auftrag: ",{"$f":"IF(G91=\"\",\"\",G91)","v":""},null,null,null,{"$f":"K91","v":"Total Spesen für diverse Auslagen Block 2 "},{"$f":"L91","v":0},{"$f":"L100+L98+K58+K30","v":0}]
[]
["Total Spesen ",null,null,null,null,null,null,"Total Spesen Mai",null,null,null,{"$f":"SUM(L94:L100)","v":0}]
[]
[null,"Datum/Unterschrift:          Rechnungssteller/in",null,null,null,"Vorgesetze/r",null,null,"Verantwortliche/r"]

{"sheet":"Juni","index":5,"n_rows":104,"n_cols":14,"rows_kept":104,"cut":false,"hidden":false,"merged":[[0,0,0,8],[0,9,0,11],[2,1,2,2],[2,5,2,8],[3,1,3,2],[3,5,3,8],[4,1,4,2],[4,5,4,8],[27,1,27,2],[28,1,28,2],[32,3,32,4],[24,1,24,2],[25,1,25,2],[26,1,26,2],[19,1,19,2],[20,1,20,2],[21,1,21,2],[22,1,22,2],[23,1,23,2],[9,1,9,2],[10,1,10,2],[15,1,15,2],[35,3,35,6],[37,1,37,2],[38,1,38,2],[39,1,39,2],[40,1,40,2],[16,1,16,2],[17,1,17,2],[18,1,18,2],[11,1,11,2],[12,1,12,2],[13,1,13,2],[14,1,14,2],[41,1,41,2],[42,1,42,2],[43,1,43,2],[44,1,44,2],[45,1,45,2],[46,1,46,2],[47,1,47,2],[48,1,48,2],[49,1,49,2],[50,1,50,2],[51,1,51,2],[52,1,52,2],[53,1,53,2],[54,1,54,2],[55,1,55,2],[56,1,56,2],[60,3,60,4],[64,1,64,2],[65,1,65,10],[66,1,66,10],[67,1,67,10],[68,1,68,10],[69,1,69,10],[70,1,70,10],[71,1,71,10],[72,1,72,10],[73,1,73,10],[74,1,74,10],[76,3,76,4],[78,1,78,2],[79,1,79,10],[80,1,80,10],[81,1,81,10],[82,1,82,10],[83,1,83,10],[84,1,84,10],[85,1,85,10],[86,1,86,10],[87,1,87,10],[88,1,88,10],[101,7,101,10],[90,3,90,4],[93,3,93,4],[95,3,95,4],[97,3,97,4],[99,3,99,4]]}
[{"$f":"Januar!A1","v":"Spesenabrechnung 2025"}]
[null,null,null,null,null,null,null,null,null,null,"Juni"]
["Name: ",{"$f":"IF(Januar!B3=\"\",\"\",Januar!B3)","v":""},null,null,"Vorname: ",{"$f":"IF(Januar!F3=\"\",\"\",Januar!F3)","v":""},null,null,null,"Personen-ID:",{"$f":"IF(Januar!K3=\"\",\"\",Januar!K3)","v":""}]
["Dienststelle: ",{"$f":"IF(Januar!B4=\"\",\"\",Januar!B4)","v":""},null,null,"Abteilung: ",{"$f":"IF(Januar!F4=\"\",\"\",Januar!F4)","v":""},null,null,null,"PersNr.:",{"$f":"IF(Januar!K4=\"\",\"\",Januar!K4)","v":""}]
["Wohnort: ",{"$f":"IF(Januar!B5=\"\",\"\",Januar!B5)","v":""},null,null,"Durchwahl: ",{"$f":"IF(Januar!F5=\"\",\"\",Januar!F5)","v":""},null,null,null,"(Vertragsnr.:)"]
[]
[]
["Abrechnung Spesen für Reisen mit individuellen Verkehrsmitteln (Auto, Moto etc.) bzw. Verrechnung Fahrzeug Privatgebrauch"]
[null,null,null,null,null,null,null,null,null,null,null,null,"AutoKMTotal"]
["Datum\n( 01.01.9999 )","Gegenstand der Rechnungsstellung",null,"Zeit der Abreise\n( 08:00 )","Zeit der Rückkehr\n( 18:00 )","Fahrzeug-\nart","Kilometer",null,"Vergütung Fahrzeugspesen","Auslagen für Verpflegung","Diverse Auslagen","Total",null,{"$f":"Mai!N30","v":0}]
[null,null,null,null,null,"Dienstfahrt mit Privatauto",null,null,{"$f":"IF(F11=\"Dienstfahrt mit Motorrad\",Statistik!$K$12*G11,IF(F11=\"Dienstfahrt mit Mofa / E-Bike\",Statistik!$K$13*G11,IF(F11=\"Privatfahrt mit pers. Dienstfahrzeug\",Statistik!$K$14*G11,IF(F11=\"Privatfahrt mit Poolfahrzeug\",Statistik!$K$15*G11,IF(F11=\"Dienstfahrt mit Velo\",Statistik!#REF!*G11,IF(M11<7000,G11*Statistik!$K$11,IF(N10>=7000,G11*Statistik!$L$11,(7000-N10)*Statistik!$K$11+(M11-7000)*Statistik!$L$11)))))))","v":0},null,null,{"$f":"SUM(I11+J11+K11)","v":0},{"$f":"SUM(N10:N11)","v":0},{"$f":"IF(F11=\"Dienstfahrt mit Privatauto\",SUM(G11),0)","v":0}]
[null,null,null,null,null,"Dienstfahrt mit Privatauto",null,null,{"$f":"IF(F12=\"Dienstfahrt mit Motorrad\",Statistik!$K$12*G12,IF(F12=\"Dienstfahrt mit Mofa / E-Bike\",Statistik!$K$13*G12,IF(F12=\"Privatfahrt mit pers. Dienstfahrzeug\",Statistik!$K$14*G12,IF(F12=\"Privatfahrt mit Poolfahrzeug\",Statistik!$K$15*G12,IF(F12=\"Dienstfahrt mit Velo\",Statistik!#REF!*G12,IF(M12<7000,G12*Statistik!$K$11,IF(M11>=7000,G12*Statistik!$L$11,(7000-M11)*Statistik!$K$11+(M12-7000)*Statistik!$L$11)))))))","v":0},null,null,{"$f":"SUM(I12+J12+K12)","v":0},{"$f":"SUM(N10:N12)","v":0},{"$f":"IF(F12=\"Dienstfahrt mit Privatauto\",SUM(G12),0)","v":0}]
[null,null,null,null,null,"Dienstfahrt mit Privatauto",null,null,{"$f":"IF(F13=\"Dienstfahrt mit Motorrad\",Statistik!$K$12*G13,IF(F13=\"Dienstfahrt mit Mofa / E-Bike\",Statistik!$K$13*G13,IF(F13=\"Privatfahrt mit pers. Dienstfahrzeug\",Statistik!$K$14*G13,IF(F13=\"Privatfahrt mit Poolfahrzeug\",Statistik!$K$15*G13,IF(F13=\"Dienstfahrt mit Velo\",Statistik!#REF!*G13,IF(M13<7000,G13*Statistik!$K$11,IF(M12>=7000,G13*Statistik!$L$11,(7000-M12)*Statistik!$K$11+(M13-7000)*Statistik!$L$11)))))))","v":0},null,null,0,{"$f":"SUM(N10:N13)","v":0},0]
[null,null,null,null,null,"Dienstfahrt mit Privatauto",null,null,{"$f":"IF(F14=\"Dienstfahrt mit Motorrad\",Statistik!$K$12*G14,IF(F14=\"Dienstfahrt mit Mofa / E-Bike\",Statistik!$K$13*G14,IF(F14=\"Privatfahrt mit pers. Dienstfahrzeug\",Statistik!$K$14*G14,IF(F14=\"Privatfahrt mit Poolfahrzeug\",Statistik!$K$15*G14,IF(F14=\"Dienstfahrt mit Velo\",Statistik!#REF!*G14,IF(M14<7000,G14*Statistik!$K$11,IF(M13>=7000,G14*Statistik!$L$11,(7000-M13)*Statistik!$K$11+(M14-7000)*Statistik!$L$11)))))))","v":0},null,null,0,{"$f":"SUM(N10:N14)","v":0},0]
[null,null,null,null,null,"Dienstfahrt mit Privatauto",null,null,{"$f":"IF(F15=\"Dienstfahrt mit Motorrad\",Statistik!$K$12*G15,IF(F15=\"Dienstfahrt mit Mofa / E-Bike\",Statistik!$K$13*G15,IF(F15=\"Privatfahrt mit pers. Dienstfahrzeug\",Statistik!$K$14*G15,IF(F15=\"Privatfahrt mit Poolfahrzeug\",Statistik!$K$15*G15,IF(F15=\"Dienstfahrt mit Velo\",Statistik!#REF!*G15,IF(M15<7000,G15*Statistik!$K$11,IF(M14>=7000,G15*Statistik!$L$11,(7000-M14)*Statistik!$K$11+(M15-7000)*Statistik!$L$11)))))))","v":0},null,null,0,{"$f":"SUM(N10:N15)","v":0},0]
[null,null,null,null,null,"Dienstfahrt mit Privatauto",null,null,{"$f":"IF(F16=\"Dienstfahrt mit Motorrad\",Statistik!$K$12*G16,IF(F16=\"Dienstfahrt mit Mofa / E-Bike\",Statistik!$K$13*G16,IF(F16=\"Privatfahrt mit pers. Dienstfahrzeug\",Statistik!$K$14*G16,IF(F16=\"Privatfahrt mit Poolfahrzeug\",Statistik!$K$15*G16,IF(F16=\"Dienstfahrt mit Velo\",Statistik!#REF!*G16,IF(M16<7000,G16*Statistik!$K$11,IF(M15>=7000,G16*Statistik!$L$11,(7000-M15)*Statistik!$K$11+(M16-7000)*Statistik!$L$11)))))))","v":0},null,null,0,{"$f":"SUM(N10:N16)","v":0},0]
[null,null,null,null,null,"Dienstfahrt mit Privatauto",null,null,{"$f":"IF(F17=\"Dienstfahrt mit Motorrad\",Statistik!$K$12*G17,IF(F17=\"Dienstfahrt mit Mofa / E-Bike\",Statistik!$K$13*G17,IF(F17=\"Privatfahrt mit pers. Dienstfahrzeug\",Statistik!$K$14*G17,IF(F17=\"Privatfahrt mit Poolfahrzeug\",Statistik!$K$15*G17,IF(F17=\"Dienstfahrt mit Velo\",Statistik!#REF!*G17,IF(M17<7000,G17*Statistik!$K$11,IF(M16>=7000,G17*Statistik!$L$11,(7000-M16)*Statistik!$K$11+(M17-7000)*Statistik!$L$11)))))))","v":0},null,null,0,{"$f":"SUM(N10:N17)","v":0},0]
[null,null,null,null,null,"Dienstfahrt mit Privatauto",null,null,{"$f":"IF(F18=\"Dienstfahrt mit Motorrad\",Statistik!$K$12*G18,IF(F18=\"Dienstfahrt mit Mofa / E-Bike\",Statistik!$K$13*G18,IF(F18=\"Privatfahrt mit pers. Dienstfahrzeug\",Statistik!$K$14*G18,IF(F18=\"Privatfahrt mit Poolfahrzeug\",Statistik!$K$15*G18,IF(F18=\"Dienstfahrt mit Velo\",Statistik!#REF!*G18,IF(M18<7000,G18*Statistik!$K$11,IF(M17>=7000,G18*Statistik!$L$11,(7000-M17)*Statistik!$K$11+(M18-7000)*Statistik!$L$11)))))))","v":0},null,null,0,{"$f":"SUM(N10:N18)","v":0},0]
[null,null,null,null,null,"Dienstfahrt mit Privatauto",null,null,{"$f":"IF(F19=\"Dienstfahrt mit Motorrad\",Statistik!$K$12*G19,IF(F19=\"Dienstfahrt mit Mofa / E-Bike\",Statistik!$K$13*G19,IF(F19=\"Privatfahrt mit pers. Dienstfahrzeug\",Statistik!$K$14*G19,IF(F19=\"Privatfahrt mit Poolfahrzeug\",Statistik!$K$15*G19,IF(F19=\"Dienstfahrt mit Velo\",Statistik!#REF!*G19,IF(M19<7000,G19*Statistik!$K$11,IF(M18>=7000,G19*Statistik!$L$11,(7000-M18)*Statistik!$K$11+(M19-7000)*Statistik!$L$11)))))))","v":0},null,null,0,{"$f":"SUM(N10:N19)","v":0},0]
[null,null,null,null,null,"Dienstfahrt mit Privatauto",null,null,{"$f":"IF(F20=\"Dienstfahrt mit Motorrad\",Statistik!$K$12*G20,IF(F20=\"Dienstfahrt mit Mofa / E-Bike\",Statistik!$K$13*G20,IF(F20=\"Privatfahrt mit pers. Dienstfahrzeug\",Statistik!$K$14*G20,IF(F20=\"Privatfahrt mit Poolfahrzeug\",Statistik!$K$15*G20,IF(F20=\"Dienstfahrt mit Velo\",Statistik!#REF!*G20,IF(M20<7000,G20*Statistik!$K$11,IF(M19>=7000,G20*Statistik!$L$11,(7000-M19)*Statistik!$K$11+(M20-7000)*Statistik!$L$11)))))))","v":0},null,null,0,{"$f":"SUM(N10:N20)","v":0},0]
[null,null,null,null,null,"Dienstfahrt mit Privatauto",null,null,{"$f":"IF(F21=\"Dienstfahrt mit Motorrad\",Statistik!$K$12*G21,IF(F21=\"Dienstfahrt mit Mofa / E-Bike\",Statistik!$K$13*G21,IF(F21=\"Privatfahrt mit pers. Dienstfahrzeug\",Statistik!$K$14*G21,IF(F21=\"Privatfahrt mit Poolfahrzeug\",Statistik!$K$15*G21,IF(F21=\"Dienstfahrt mit Velo\",Statistik!#REF!*G21,IF(M21<7000,G21*Statistik!$K$11,IF(M20>=7000,G21*Statistik!$L$11,(7000-M20)*Statistik!$K$11+(M21-7000)*Statistik!$L$11)))))))","v":0},null,null,0,{"$f":"SUM(N10:N21)","v":0},0]
[null,null,null,null,null,"Dienstfahrt mit Privatauto",null,null,{"$f":"IF(F22=\"Dienstfahrt mit Motorrad\",Statistik!$K$12*G22,IF(F22=\"Dienstfahrt mit Mofa / E-Bike\",Statistik!$K$13*G22,IF(F22=\"Privatfahrt mit pers. Dienstfahrzeug\",Statistik!$K$14*G22,IF(F22=\"Privatfahrt mit Poolfahrzeug\",Statistik!$K$15*G22,IF(F22=\"Dienstfahrt mit Velo\",Statistik!#REF!*G22,IF(M22<7000,G22*Statistik!$K$11,IF(M21>=7000,G22*Statistik!$L$11,(7000-M21)*Statistik!$K$11+(M22-7000)*Statistik!$L$11)))))))","v":0},null,null,0,{"$f":"SUM(N10:N22)","v":0},0]
[null,null,null,null,null,"Dienstfahrt mit Privatauto",null,null,{"$f":"IF(F23=\"Dienstfahrt mit Motorrad\",Statistik!$K$12*G23,IF(F23=\"Dienstfahrt mit Mofa / E-Bike\",Statistik!$K$13*G23,IF(F23=\"Privatfahrt mit pers. Dienstfahrzeug\",Statistik!$K$14*G23,IF(F23=\"Privatfahrt mit Poolfahrzeug\",Statistik!$K$15*G23,IF(F23=\"Dienstfahrt mit Velo\",Statistik!#REF!*G23,IF(M23<7000,G23*Statistik!$K$11,IF(M22>=7000,G23*Statistik!$L$11,(7000-M22)*Statistik!$K$11+(M23-7000)*Statistik!$L$11)))))))","v":0},null,null,0,{"$f":"SUM(N10:N23)","v":0},0]
[null,null,null,null,null,"Dienstfahrt mit Privatauto",null,null,{"$f":"IF(F24=\"Dienstfahrt mit Motorrad\",Statistik!$K$12*G24,IF(F24=\"Dienstfahrt mit Mofa / E-Bike\",Statistik!$K$13*G24,IF(F24=\"Privatfahrt mit pers. Dienstfahrzeug\",Statistik!$K$14*G24,IF(F24=\"Privatfahrt mit Poolfahrzeug\",Statistik!$K$15*G24,IF(F24=\"Dienstfahrt mit Velo\",Statistik!#REF!*G24,IF(M24<7000,G24*Statistik!$K$11,IF(M23>=7000,G24*Statistik!$L$11,(7000-M23)*Statistik!$K$11+(M24-7000)*Statistik!$L$11)))))))","v":0},null,null,0,{"$f":"SUM(N10:N24)","v":0},0]
[null,null,null,null,null,"Dienstfahrt mit Privatauto",null,null,{"$f":"IF(F25=\"Dienstfahrt mit Motorrad\",Statistik!$K$12*G25,IF(F25=\"Dienstfahrt mit Mofa / E-Bike\",Statistik!$K$13*G25,IF(F25=\"Privatfahrt mit pers. Dienstfahrzeug\",Statistik!$K$14*G25,IF(F25=\"Privatfahrt mit Poolfahrzeug\",Statistik!$K$15*G25,IF(F25=\"Dienstfahrt mit Velo\",Statistik!#REF!*G25,IF(M25<7000,G25*Statistik!$K$11,IF(M24>=7000,G25*Statistik!$L$11,(7000-M24)*Statistik!$K$11+(M25-7000)*Statistik!$L$11)))))))","v":0},null,null,0,{"$f":"SUM(N10:N25)","v":0},0]
[null,null,null,null,null,"Dienstfahrt mit Privatauto",null,null,{"$f":"IF(F26=\"Dienstfahrt mit Motorrad\",Statistik!$K$12*G26,IF(F26=\"Dienstfahrt mit Mofa / E-Bike\",Statistik!$K$13*G26,IF(F26=\"Privatfahrt mit pers. Dienstfahrzeug\",Statistik!$K$14*G26,IF(F26=\"Privatfahrt mit Poolfahrzeug\",Statistik!$K$15*G26,IF(F26=\"Dienstfahrt mit Velo\",Statistik!#REF!*G26,IF(M26<7000,G26*Statistik!$K$11,IF(M25>=7000,G26*Statistik!$L$11,(7000-M25)*Statistik!$K$11+(M26-7000)*Statistik!$L$11)))))))","v":0},null,null,0,{"$f":"SUM(N10:N26)","v":0},0]
[null,null,null,null,null,"Dienstfahrt mit Privatauto",null,null,{"$f":"IF(F27=\"Dienstfahrt mit Motorrad\",Statistik!$K$12*G27,IF(F27=\"Dienstfahrt mit Mofa / E-Bike\",Statistik!$K$13*G27,IF(F27=\"Privatfahrt mit pers. Dienstfahrzeug\",Statistik!$K$14*G27,IF(F27=\"Privatfahrt mit Poolfahrzeug\",Statistik!$K$15*G27,IF(F27=\"Dienstfahrt mit Velo\",Statistik!#REF!*G27,IF(M27<7000,G27*Statistik!$K$11,IF(M26>=7000,G27*Statistik!$L$11,(7000-M26)*Statistik!$K$11+(M27-7000)*Statistik!$L$11)))))))","v":0},null,null,0,{"$f":"SUM(N10:N27)","v":0},0]
[null,null,null,null,null,"Dienstfahrt mit Privatauto",null,null,{"$f":"IF(F28=\"Dienstfahrt mit Motorrad\",Statistik!$K$12*G28,IF(F28=\"Dienstfahrt mit Mofa / E-Bike\",Statistik!$K$13*G28,IF(F28=\"Privatfahrt mit pers. Dienstfahrzeug\",Statistik!$K$14*G28,IF(F28=\"Privatfahrt mit Poolfahrzeug\",Statistik!$K$15*G28,IF(F28=\"Dienstfahrt mit Velo\",Statistik!#REF!*G28,IF(M28<7000,G28*Statistik!$K$11,IF(M27>=7000,G28*Statistik!$L$11,(7000-M27)*Statistik!$K$11+(M28-7000)*Statistik!$L$11)))))))","v":0},null,null,0,{"$f":"SUM(N10:N28)","v":0},0]
[null,null,null,null,null,"Dienstfahrt mit Privatauto",null,null,{"$f":"IF(F29=\"Dienstfahrt mit Motorrad\",Statistik!$K$12*G29,IF(F29=\"Dienstfahrt mit Mofa / E-Bike\",Statistik!$K$13*G29,IF(F29=\"Privatfahrt mit pers. Dienstfahrzeug\",Statistik!$K$14*G29,IF(F29=\"Privatfahrt mit Poolfahrzeug\",Statistik!$K$15*G29,IF(F29=\"Dienstfahrt mit Velo\",Statistik!#REF!*G29,IF(M29<7000,G29*Statistik!$K$11,IF(M28>=7000,G29*Statistik!$L$11,(7000-M28)*Statistik!$K$11+(M29-7000)*Statistik!$L$11)))))))","v":0},null,null,0,{"$f":"SUM(N10:N29)","v":0},0]
[null,null,null,null,"Vergütung Reisen mit iV laufender Monat:",null,{"$f":"SUM(G11:G29)","v":0},null,{"$f":"SUM(I11:I29)","v":0},{"$f":"SUM(J11:J29)","v":0},{"$f":"SUM(K11:K29)","v":0},null,null,{"$f":"SUM(N10:N29)","v":0}]
[null,null,null,null,"Übernahme Vormonate",null,{"$f":"Mai!G32","v":0},null,{"$f":"Mai!I32","v":0},{"$f":"Mai!J32","v":0},{"$f":"Mai!K32","v":0}]
[null,null,null,null,"Total km / Ausgaben laufendes Jahr:",null,{"$f":"SUM(G30:G31)","v":0},null,{"$f":"SUM(I30:I31)","v":0},{"$f":"SUM(J30:J31)","v":0},{"$f":"SUM(K30:K31)","v":0}]
["Kostenart: ",null,"Kostenstelle: ",null,null,"Auftrag: ",null,null,null,null,"Tot. Spesen für Reisen mit Indiv. Verkehrsmitteln",{"$f":"SUM(L11:L29)","v":0}]
[]
[]
["Abrechnung Spesen für Reisen mit öV",null,null,"Als Vergütung an Halbtax oder GA maximal noch anrechenbar:",null,null,null,{"$f":"190-H60","v":190}]
[]
["Datum\n( 01.01.9999 )","Gegenstand der Rechnungsstellung",null,"Zeit der Abreise\n( 08:00 )","Zeit der Rückkehr\n( 18:00 )","Vergütungs-Grundlage","Ausgaben für Billettkosten durch MA","Vergütung  \nan Halbtaxabo oder GA","Vergütung Bahnspesen","Auslagen für Verpflegung","Diverse Auslagen","Total"]
[null,null,null,null,null,"1/2 Billett und Verg. für Halbtax-Abo",0,0,{"$f":"SUM(G39:H39)","v":0},null,null,{"$f":"SUM(I39+J39+K39)","v":0}]
[null,null,null,null,null,"1/2 Billett und Verg. für Halbtax-Abo",0,0,{"$f":"SUM(G40:H40)","v":0},null,null,{"$f":"SUM(I40+J40+K40)","v":0}]
[null,null,null,null,null,"1/2 Billett und Verg. für Halbtax-Abo",0,0,0,null,null,0]
[null,null,null,null,null,"1/2 Billett und Verg. für Halbtax-Abo",0,0,0,null,null,0]
[null,null,null,null,null,"1/2 Billett und Verg. für Halbtax-Abo",0,0,0,null,null,0]
[null,null,null,null,null,"1/2 Billett und Verg. für Halbtax-Abo",0,0,0,null,null,0]
[null,null,null,null,null,"1/2 Billett und Verg. für Halbtax-Abo",0,0,0,null,null,0]
[null,null,null,null,null,"1/2 Billett und Verg. für Halbtax-Abo",0,0,0,null,null,0]
[null,null,null,null,null,"1/2 Billett und Verg. für Halbtax-Abo",0,0,0,null,null,0]
[null,null,null,null,null,"1/2 Billett und Verg. für Halbtax-Abo",0,0,0,null,null,0]
[null,null,null,null,null,"1/2 Billett und Verg. für Halbtax-Abo",0,0,0,null,null,0]
[null,null,null,null,null,"1/2 Billett und Verg. für Halbtax-Abo",0,0,0,null,null,0]
[null,null,null,null,null,"1/2 Billett und Verg. für Halbtax-Abo",0,0,0,null,null,0]
[null,null,null,null,null,"1/2 Billett und Verg. für Halbtax-Abo",0,0,0,null,null,0]
[null,null,null,null,null,"1/2 Billett und Verg. für Halbtax-Abo",0,0,0,null,null,0]
[null,null,null,null,null,"1/2 Billett und Verg. für Halbtax-Abo",0,0,0,null,null,0]
[null,null,null,null,null,"1/2 Billett und Verg. für Halbtax-Abo",0,0,0,null,null,0]
[null,null,null,null,null,"1/2 Billett und Verg. für Halbtax-Abo",0,0,0,null,null,0]
[null,null,null,null,null,"1/2 Billett und Verg. für Halbtax-Abo",0,0,0,null,null,0]
[null,null,null,null,"Vergütung Reisen mit öV laufender Monat:",null,{"$f":"SUM(G39:G57)","v":0},{"$f":"SUM(H39:H57)","v":0},{"$f":"SUM(I39:I57)","v":0},{"$f":"SUM(J39:J57)","v":0},{"$f":"SUM(K39:K57)","v":0}]
[null,null,null,null,"Übernahme Vormonate:",null,{"$f":"Mai!G60","v":0},{"$f":"Mai!H60","v":0},{"$f":"Mai!I60","v":0},{"$f":"Mai!J60","v":0},{"$f":"Mai!K60","v":0}]
[null,null,null,null,"Total Billettkosten laufendes Jahr:",null,{"$f":"SUM(G58:G59)","v":0},{"$f":"SUM(H58:H59)","v":0},{"$f":"SUM(I58:I59)","v":0},{"$f":"SUM(J58:J59)","v":0},{"$f":"SUM(K58:K59)","v":0}]
["Kostenart: ",{"$f":"IF(B33=\"\",\"\",B33)","v":""},"Kostenstelle: ",{"$f":"IF(D33=\"\",\"\",D33)","v":""},null,"Auftrag: ",{"$f":"IF(G33=\"\",\"\",G33)","v":""},null,null,null,"Tot. Spesen für Reisen mit öffentl. Verkehrsmitteln",{"$f":"SUM(L39:L57)","v":0}]
[]
["Abrechnung Spesen für diverse Ausgaben ",null,null,null,"(spezielle Kostenarten, bitte je Kostenart in separaten Block eingeben)"]
[]
["Datum\n( 01.01.9999 )","Gegenstand der Rechnungsstellung",null,null,null,null,null,null,null,null,null,"Betrag"]
[]
[]
[]
[]
[]
[]
[]
[]
[]
[]
[]
["Kostenart: ",null,"Kostenstelle: ",null,null,"Auftrag: ",null,null,null,null,"Total Spesen für diverse Auslagen Block 1",{"$f":"SUM(L66:L75)","v":0}]
[]
["Datum\n( 01.01.9999 )","Gegenstand der Rechnungsstellung",null,null,null,null,null,null,null,null,null,"Betrag"]
[]
[]
[]
[]
[]
[]
[]
[]
[]
[]
[]
["Kostenart: ",null,"Kostenstelle: ",null,null,"Auftrag: ",null,null,null,null,"Total Spesen für diverse Auslagen Block 2 ",{"$f":"SUM(L80:L89)","v":0}]
[]
["Zusammenfassung "]
["Kostenart: ",{"$f":"IF(B33=\"\",\"\",B33)","v":""},"Kostenstelle: ",{"$f":"IF(D33=\"\",\"\",D33)","v":""},null,"Auftrag: ",{"$f":"IF(G33=\"\",\"\",G33)","v":""},null,null,null,{"$f":"K33","v":"Tot. Spesen für Reisen mit Indiv. Verkehrsmitteln"},{"$f":"L33","v":0}]
[]
["Kostenart: ",{"$f":"B61","v":""},"Kostenstelle: ",{"$f":"D61","v":""},null,"Auftrag: ",{"$f":"G61","v":""},null,null,null,{"$f":"K61","v":"Tot. Spesen für Reisen mit öffentl. Verkehrsmitteln"},{"$f":"L61","v":0},{"$f":"J30+J58","v":0}]
[]
["Kostenart: ",{"$f":"IF(B77=\"\",\"\",B77)","v":""},"Kostenstelle: ",{"$f":"IF(D77=\"\",\"\",D77)","v":""},null,"Auftrag: ",{"$f":"IF(G77=\"\",\"\",G77)","v":""},null,null,null,{"$f":"K77","v":"Total Spesen für diverse Auslagen Block 1"},{"$f":"L77","v":0}]
[]
["Kostenart: ",{"$f":"IF(B91=\"\",\"\",B91)","v":""},"Kostenstelle: ",{"$f":"IF(D91=\"\",\"\",D91)","v":""},null,"Auftrag: ",{"$f":"IF(G91=\"\",\"\",G91)","v":""},null,null,null,{"$f":"K91","v":"Total Spesen für diverse Auslagen Block 2 "},{"$f":"L91","v":0},{"$f":"L100+L98+K58+K30","v":0}]
[]
["Total Spesen ",null,null,null,null,null,null,"Total Spesen Juni",null,null,null,{"$f":"SUM(L94:L100)","v":0}]
[]
[null,"Datum/Unterschrift:          Rechnungssteller/in",null,null,null,"Vorgesetze/r",null,null,"Verantwortliche/r"]

{"sheet":"Juli","index":6,"n_rows":104,"n_cols":14,"rows_kept":104,"cut":false,"hidden":false,"merged":[[0,0,0,8],[0,9,0,11],[2,1,2,2],[2,5,2,8],[3,1,3,2],[3,5,3,8],[4,1,4,2],[4,5,4,8],[27,1,27,2],[28,1,28,2],[32,3,32,4],[24,1,24,2],[25,1,25,2],[26,1,26,2],[19,1,19,2],[20,1,20,2],[21,1,21,2],[22,1,22,2],[23,1,23,2],[9,1,9,2],[10,1,10,2],[15,1,15,2],[35,3,35,6],[37,1,37,2],[38,1,38,2],[39,1,39,2],[40,1,40,2],[16,1,16,2],[17,1,17,2],[18,1,18,2],[11,1,11,2],[12,1,12,2],[13,1,13,2],[14,1,14,2],[41,1,41,2],[42,1,42,2],[43,1,43,2],[44,1,44,2],[45,1,45,2],[46,1,46,2],[47,1,47,2],[48,1,48,2],[49,1,49,2],[50,1,50,2],[51,1,51,2],[52,1,52,2],[53,1,53,2],[54,1,54,2],[55,1,55,2],[56,1,56,2],[60,3,60,4],[64,1,64,2],[65,1,65,10],[66,1,66,10],[67,1,67,10],[68,1,68,10],[69,1,69,10],[70,1,70,10],[71,1,71,10],[72,1,72,10],[73,1,73,10],[74,1,74,10],[76,3,76,4],[78,1,78,2],[79,1,79,10],[80,1,80,10],[81,1,81,10],[82,1,82,10],[83,1,83,10],[84,1,84,10],[85,1,85,10],[86,1,86,10],[87,1,87,10],[88,1,88,10],[101,7,101,10],[90,3,90,4],[93,3,93,4],[95,3,95,4],[97,3,97,4],[99,3,99,4]]}
[{"$f":"Januar!A1","v":"Spesenabrechnung 2025"}]
[null,null,null,null,null,null,null,null,null,null,"Juli"]
["Name: ",{"$f":"IF(Januar!B3=\"\",\"\",Januar!B3)","v":""},null,null,"Vorname: ",{"$f":"IF(Januar!F3=\"\",\"\",Januar!F3)","v":""},null,null,null,"Personen-ID:",{"$f":"IF(Januar!K3=\"\",\"\",Januar!K3)","v":""}]
["Dienststelle: ",{"$f":"IF(Januar!B4=\"\",\"\",Januar!B4)","v":""},null,null,"Abteilung: ",{"$f":"IF(Januar!F4=\"\",\"\",Januar!F4)","v":""},null,null,null,"PersNr.:",{"$f":"IF(Januar!K4=\"\",\"\",Januar!K4)","v":""}]
["Wohnort: ",{"$f":"IF(Januar!B5=\"\",\"\",Januar!B5)","v":""},null,null,"Durchwahl: ",{"$f":"IF(Januar!F5=\"\",\"\",Januar!F5)","v":""},null,null,null,"(Vertragsnr.:)"]
[]
[]
["Abrechnung Spesen für Reisen mit individuellen Verkehrsmitteln (Auto, Moto etc.) bzw. Verrechnung Fahrzeug Privatgebrauch"]
[null,null,null,null,null,null,null,null,null,null,null,null,"AutoKMTotal"]
["Datum\n( 01.01.9999 )","Gegenstand der Rechnungsstellung",null,"Zeit der Abreise\n( 08:00 )","Zeit der Rückkehr\n( 18:00 )","Fahrzeug-\nart","Kilometer",null,"Vergütung Fahrzeugspesen","Auslagen für Verpflegung","Diverse Auslagen","Total",null,{"$f":"Juni!N30","v":0}]
[null,null,null,null,null,"Dienstfahrt mit Privatauto",null,null,{"$f":"IF(F11=\"Dienstfahrt mit Motorrad\",Statistik!$K$12*G11,IF(F11=\"Dienstfahrt mit Mofa / E-Bike\",Statistik!$K$13*G11,IF(F11=\"Privatfahrt mit pers. Dienstfahrzeug\",Statistik!$K$14*G11,IF(F11=\"Privatfahrt mit Poolfahrzeug\",Statistik!$K$15*G11,IF(F11=\"Dienstfahrt mit Velo\",Statistik!#REF!*G11,IF(M11<7000,G11*Statistik!$K$11,IF(N10>=7000,G11*Statistik!$L$11,(7000-N10)*Statistik!$K$11+(M11-7000)*Statistik!$L$11)))))))","v":0},null,null,{"$f":"SUM(I11+J11+K11)","v":0},{"$f":"SUM(N10:N11)","v":0},{"$f":"IF(F11=\"Dienstfahrt mit Privatauto\",SUM(G11),0)","v":0}]
[null,null,null,null,null,"Dienstfahrt mit Privatauto",null,null,{"$f":"IF(F12=\"Dienstfahrt mit Motorrad\",Statistik!$K$12*G12,IF(F12=\"Dienstfahrt mit Mofa / E-Bike\",Statistik!$K$13*G12,IF(F12=\"Privatfahrt mit pers. Dienstfahrzeug\",Statistik!$K$14*G12,IF(F12=\"Privatfahrt mit Poolfahrzeug\",Statistik!$K$15*G12,IF(F12=\"Dienstfahrt mit Velo\",Statistik!#REF!*G12,IF(M12<7000,G12*Statistik!$K$11,IF(M11>=7000,G12*Statistik!$L$11,(7000-M11)*Statistik!$K$11+(M12-7000)*Statistik!$L$11)))))))","v":0},null,null,{"$f":"SUM(I12+J12+K12)","v":0},{"$f":"SUM(N10:N12)","v":0},{"$f":"IF(F12=\"Dienstfahrt mit Privatauto\",SUM(G12),0)","v":0}]
[null,null,null,null,null,"Dienstfahrt mit Privatauto",null,null,{"$f":"IF(F13=\"Dienstfahrt mit Motorrad\",Statistik!$K$12*G13,IF(F13=\"Dienstfahrt mit Mofa / E-Bike\",Statistik!$K$13*G13,IF(F13=\"Privatfahrt mit pers. Dienstfahrzeug\",Statistik!$K$14*G13,IF(F13=\"Privatfahrt mit Poolfahrzeug\",Statistik!$K$15*G13,IF(F13=\"Dienstfahrt mit Velo\",Statistik!#REF!*G13,IF(M13<7000,G13*Statistik!$K$11,IF(M12>=7000,G13*Statistik!$L$11,(7000-M12)*Statistik!$K$11+(M13-7000)*Statistik!$L$11)))))))","v":0},null,null,0,{"$f":"SUM(N10:N13)","v":0},0]
[null,null,null,null,null,"Dienstfahrt mit Privatauto",null,null,{"$f":"IF(F14=\"Dienstfahrt mit Motorrad\",Statistik!$K$12*G14,IF(F14=\"Dienstfahrt mit Mofa / E-Bike\",Statistik!$K$13*G14,IF(F14=\"Privatfahrt mit pers. Dienstfahrzeug\",Statistik!$K$14*G14,IF(F14=\"Privatfahrt mit Poolfahrzeug\",Statistik!$K$15*G14,IF(F14=\"Dienstfahrt mit Velo\",Statistik!#REF!*G14,IF(M14<7000,G14*Statistik!$K$11,IF(M13>=7000,G14*Statistik!$L$11,(7000-M13)*Statistik!$K$11+(M14-7000)*Statistik!$L$11)))))))","v":0},null,null,0,{"$f":"SUM(N10:N14)","v":0},0]
[null,null,null,null,null,"Dienstfahrt mit Privatauto",null,null,{"$f":"IF(F15=\"Dienstfahrt mit Motorrad\",Statistik!$K$12*G15,IF(F15=\"Dienstfahrt mit Mofa / E-Bike\",Statistik!$K$13*G15,IF(F15=\"Privatfahrt mit pers. Dienstfahrzeug\",Statistik!$K$14*G15,IF(F15=\"Privatfahrt mit Poolfahrzeug\",Statistik!$K$15*G15,IF(F15=\"Dienstfahrt mit Velo\",Statistik!#REF!*G15,IF(M15<7000,G15*Statistik!$K$11,IF(M14>=7000,G15*Statistik!$L$11,(7000-M14)*Statistik!$K$11+(M15-7000)*Statistik!$L$11)))))))","v":0},null,null,0,{"$f":"SUM(N10:N15)","v":0},0]
[null,null,null,null,null,"Dienstfahrt mit Privatauto",null,null,{"$f":"IF(F16=\"Dienstfahrt mit Motorrad\",Statistik!$K$12*G16,IF(F16=\"Dienstfahrt mit Mofa / E-Bike\",Statistik!$K$13*G16,IF(F16=\"Privatfahrt mit pers. Dienstfahrzeug\",Statistik!$K$14*G16,IF(F16=\"Privatfahrt mit Poolfahrzeug\",Statistik!$K$15*G16,IF(F16=\"Dienstfahrt mit Velo\",Statistik!#REF!*G16,IF(M16<7000,G16*Statistik!$K$11,IF(M15>=7000,G16*Statistik!$L$11,(7000-M15)*Statistik!$K$11+(M16-7000)*Statistik!$L$11)))))))","v":0},null,null,0,{"$f":"SUM(N10:N16)","v":0},0]
[null,null,null,null,null,"Dienstfahrt mit Privatauto",null,null,{"$f":"IF(F17=\"Dienstfahrt mit Motorrad\",Statistik!$K$12*G17,IF(F17=\"Dienstfahrt mit Mofa / E-Bike\",Statistik!$K$13*G17,IF(F17=\"Privatfahrt mit pers. Dienstfahrzeug\",Statistik!$K$14*G17,IF(F17=\"Privatfahrt mit Poolfahrzeug\",Statistik!$K$15*G17,IF(F17=\"Dienstfahrt mit Velo\",Statistik!#REF!*G17,IF(M17<7000,G17*Statistik!$K$11,IF(M16>=7000,G17*Statistik!$L$11,(7000-M16)*Statistik!$K$11+(M17-7000)*Statistik!$L$11)))))))","v":0},null,null,0,{"$f":"SUM(N10:N17)","v":0},0]
[null,null,null,null,null,"Dienstfahrt mit Privatauto",null,null,{"$f":"IF(F18=\"Dienstfahrt mit Motorrad\",Statistik!$K$12*G18,IF(F18=\"Dienstfahrt mit Mofa / E-Bike\",Statistik!$K$13*G18,IF(F18=\"Privatfahrt mit pers. Dienstfahrzeug\",Statistik!$K$14*G18,IF(F18=\"Privatfahrt mit Poolfahrzeug\",Statistik!$K$15*G18,IF(F18=\"Dienstfahrt mit Velo\",Statistik!#REF!*G18,IF(M18<7000,G18*Statistik!$K$11,IF(M17>=7000,G18*Statistik!$L$11,(7000-M17)*Statistik!$K$11+(M18-7000)*Statistik!$L$11)))))))","v":0},null,null,0,{"$f":"SUM(N10:N18)","v":0},0]
[null,null,null,null,null,"Dienstfahrt mit Privatauto",null,null,{"$f":"IF(F19=\"Dienstfahrt mit Motorrad\",Statistik!$K$12*G19,IF(F19=\"Dienstfahrt mit Mofa / E-Bike\",Statistik!$K$13*G19,IF(F19=\"Privatfahrt mit pers. Dienstfahrzeug\",Statistik!$K$14*G19,IF(F19=\"Privatfahrt mit Poolfahrzeug\",Statistik!$K$15*G19,IF(F19=\"Dienstfahrt mit Velo\",Statistik!#REF!*G19,IF(M19<7000,G19*Statistik!$K$11,IF(M18>=7000,G19*Statistik!$L$11,(7000-M18)*Statistik!$K$11+(M19-7000)*Statistik!$L$11)))))))","v":0},null,null,0,{"$f":"SUM(N10:N19)","v":0},0]
[null,null,null,null,null,"Dienstfahrt mit Privatauto",null,null,{"$f":"IF(F20=\"Dienstfahrt mit Motorrad\",Statistik!$K$12*G20,IF(F20=\"Dienstfahrt mit Mofa / E-Bike\",Statistik!$K$13*G20,IF(F20=\"Privatfahrt mit pers. Dienstfahrzeug\",Statistik!$K$14*G20,IF(F20=\"Privatfahrt mit Poolfahrzeug\",Statistik!$K$15*G20,IF(F20=\"Dienstfahrt mit Velo\",Statistik!#REF!*G20,IF(M20<7000,G20*Statistik!$K$11,IF(M19>=7000,G20*Statistik!$L$11,(7000-M19)*Statistik!$K$11+(M20-7000)*Statistik!$L$11)))))))","v":0},null,null,0,{"$f":"SUM(N10:N20)","v":0},0]
[null,null,null,null,null,"Dienstfahrt mit Privatauto",null,null,{"$f":"IF(F21=\"Dienstfahrt mit Motorrad\",Statistik!$K$12*G21,IF(F21=\"Dienstfahrt mit Mofa / E-Bike\",Statistik!$K$13*G21,IF(F21=\"Privatfahrt mit pers. Dienstfahrzeug\",Statistik!$K$14*G21,IF(F21=\"Privatfahrt mit Poolfahrzeug\",Statistik!$K$15*G21,IF(F21=\"Dienstfahrt mit Velo\",Statistik!#REF!*G21,IF(M21<7000,G21*Statistik!$K$11,IF(M20>=7000,G21*Statistik!$L$11,(7000-M20)*Statistik!$K$11+(M21-7000)*Statistik!$L$11)))))))","v":0},null,null,0,{"$f":"SUM(N10:N21)","v":0},0]
[null,null,null,null,null,"Dienstfahrt mit Privatauto",null,null,{"$f":"IF(F22=\"Dienstfahrt mit Motorrad\",Statistik!$K$12*G22,IF(F22=\"Dienstfahrt mit Mofa / E-Bike\",Statistik!$K$13*G22,IF(F22=\"Privatfahrt mit pers. Dienstfahrzeug\",Statistik!$K$14*G22,IF(F22=\"Privatfahrt mit Poolfahrzeug\",Statistik!$K$15*G22,IF(F22=\"Dienstfahrt mit Velo\",Statistik!#REF!*G22,IF(M22<7000,G22*Statistik!$K$11,IF(M21>=7000,G22*Statistik!$L$11,(7000-M21)*Statistik!$K$11+(M22-7000)*Statistik!$L$11)))))))","v":0},null,null,0,{"$f":"SUM(N10:N22)","v":0},0]
[null,null,null,null,null,"Dienstfahrt mit Privatauto",null,null,{"$f":"IF(F23=\"Dienstfahrt mit Motorrad\",Statistik!$K$12*G23,IF(F23=\"Dienstfahrt mit Mofa / E-Bike\",Statistik!$K$13*G23,IF(F23=\"Privatfahrt mit pers. Dienstfahrzeug\",Statistik!$K$14*G23,IF(F23=\"Privatfahrt mit Poolfahrzeug\",Statistik!$K$15*G23,IF(F23=\"Dienstfahrt mit Velo\",Statistik!#REF!*G23,IF(M23<7000,G23*Statistik!$K$11,IF(M22>=7000,G23*Statistik!$L$11,(7000-M22)*Statistik!$K$11+(M23-7000)*Statistik!$L$11)))))))","v":0},null,null,0,{"$f":"SUM(N10:N23)","v":0},0]
[null,null,null,null,null,"Dienstfahrt mit Privatauto",null,null,{"$f":"IF(F24=\"Dienstfahrt mit Motorrad\",Statistik!$K$12*G24,IF(F24=\"Dienstfahrt mit Mofa / E-Bike\",Statistik!$K$13*G24,IF(F24=\"Privatfahrt mit pers. Dienstfahrzeug\",Statistik!$K$14*G24,IF(F24=\"Privatfahrt mit Poolfahrzeug\",Statistik!$K$15*G24,IF(F24=\"Dienstfahrt mit Velo\",Statistik!#REF!*G24,IF(M24<7000,G24*Statistik!$K$11,IF(M23>=7000,G24*Statistik!$L$11,(7000-M23)*Statistik!$K$11+(M24-7000)*Statistik!$L$11)))))))","v":0},null,null,0,{"$f":"SUM(N10:N24)","v":0},0]
[null,null,null,null,null,"Dienstfahrt mit Privatauto",null,null,{"$f":"IF(F25=\"Dienstfahrt mit Motorrad\",Statistik!$K$12*G25,IF(F25=\"Dienstfahrt mit Mofa / E-Bike\",Statistik!$K$13*G25,IF(F25=\"Privatfahrt mit pers. Dienstfahrzeug\",Statistik!$K$14*G25,IF(F25=\"Privatfahrt mit Poolfahrzeug\",Statistik!$K$15*G25,IF(F25=\"Dienstfahrt mit Velo\",Statistik!#REF!*G25,IF(M25<7000,G25*Statistik!$K$11,IF(M24>=7000,G25*Statistik!$L$11,(7000-M24)*Statistik!$K$11+(M25-7000)*Statistik!$L$11)))))))","v":0},null,null,0,{"$f":"SUM(N10:N25)","v":0},0]
[null,null,null,null,null,"Dienstfahrt mit Privatauto",null,null,{"$f":"IF(F26=\"Dienstfahrt mit Motorrad\",Statistik!$K$12*G26,IF(F26=\"Dienstfahrt mit Mofa / E-Bike\",Statistik!$K$13*G26,IF(F26=\"Privatfahrt mit pers. Dienstfahrzeug\",Statistik!$K$14*G26,IF(F26=\"Privatfahrt mit Poolfahrzeug\",Statistik!$K$15*G26,IF(F26=\"Dienstfahrt mit Velo\",Statistik!#REF!*G26,IF(M26<7000,G26*Statistik!$K$11,IF(M25>=7000,G26*Statistik!$L$11,(7000-M25)*Statistik!$K$11+(M26-7000)*Statistik!$L$11)))))))","v":0},null,null,0,{"$f":"SUM(N10:N26)","v":0},0]
[null,null,null,null,null,"Dienstfahrt mit Privatauto",null,null,{"$f":"IF(F27=\"Dienstfahrt mit Motorrad\",Statistik!$K$12*G27,IF(F27=\"Dienstfahrt mit Mofa / E-Bike\",Statistik!$K$13*G27,IF(F27=\"Privatfahrt mit pers. Dienstfahrzeug\",Statistik!$K$14*G27,IF(F27=\"Privatfahrt mit Poolfahrzeug\",Statistik!$K$15*G27,IF(F27=\"Dienstfahrt mit Velo\",Statistik!#REF!*G27,IF(M27<7000,G27*Statistik!$K$11,IF(M26>=7000,G27*Statistik!$L$11,(7000-M26)*Statistik!$K$11+(M27-7000)*Statistik!$L$11)))))))","v":0},null,null,0,{"$f":"SUM(N10:N27)","v":0},0]
[null,null,null,null,null,"Dienstfahrt mit Privatauto",null,null,{"$f":"IF(F28=\"Dienstfahrt mit Motorrad\",Statistik!$K$12*G28,IF(F28=\"Dienstfahrt mit Mofa / E-Bike\",Statistik!$K$13*G28,IF(F28=\"Privatfahrt mit pers. Dienstfahrzeug\",Statistik!$K$14*G28,IF(F28=\"Privatfahrt mit Poolfahrzeug\",Statistik!$K$15*G28,IF(F28=\"Dienstfahrt mit Velo\",Statistik!#REF!*G28,IF(M28<7000,G28*Statistik!$K$11,IF(M27>=7000,G28*Statistik!$L$11,(7000-M27)*Statistik!$K$11+(M28-7000)*Statistik!$L$11)))))))","v":0},null,null,0,{"$f":"SUM(N10:N28)","v":0},0]
[null,null,null,null,null,"Dienstfahrt mit Privatauto",null,null,{"$f":"IF(F29=\"Dienstfahrt mit Motorrad\",Statistik!$K$12*G29,IF(F29=\"Dienstfahrt mit Mofa / E-Bike\",Statistik!$K$13*G29,IF(F29=\"Privatfahrt mit pers. Dienstfahrzeug\",Statistik!$K$14*G29,IF(F29=\"Privatfahrt mit Poolfahrzeug\",Statistik!$K$15*G29,IF(F29=\"Dienstfahrt mit Velo\",Statistik!#REF!*G29,IF(M29<7000,G29*Statistik!$K$11,IF(M28>=7000,G29*Statistik!$L$11,(7000-M28)*Statistik!$K$11+(M29-7000)*Statistik!$L$11)))))))","v":0},null,null,0,{"$f":"SUM(N10:N29)","v":0},0]
[null,null,null,null,"Vergütung Reisen mit iV laufender Monat:",null,{"$f":"SUM(G11:G29)","v":0},null,{"$f":"SUM(I11:I29)","v":0},{"$f":"SUM(J11:J29)","v":0},{"$f":"SUM(K11:K29)","v":0},null,null,{"$f":"SUM(N10:N29)","v":0}]
[null,null,null,null,"Übernahme Vormonate",null,{"$f":"Juni!G32","v":0},null,{"$f":"Juni!I32","v":0},{"$f":"Juni!J32","v":0},{"$f":"Juni!K32","v":0}]
[null,null,null,null,"Total km / Ausgaben laufendes Jahr:",null,{"$f":"SUM(G30:G31)","v":0},null,{"$f":"SUM(I30:I31)","v":0},{"$f":"SUM(J30:J31)","v":0},{"$f":"SUM(K30:K31)","v":0}]
["Kostenart: ",null,"Kostenstelle: ",null,null,"Auftrag: ",null,null,null,null,"Tot. Spesen für Reisen mit Indiv. Verkehrsmitteln",{"$f":"SUM(L11:L29)","v":0}]
[]
[]
["Abrechnung Spesen für Reisen mit öV",null,null,"Als Vergütung an Halbtax oder GA maximal noch anrechenbar:",null,null,null,{"$f":"190-H60","v":190}]
[]
["Datum\n( 01.01.9999 )","Gegenstand der Rechnungsstellung",null,"Zeit der Abreise\n( 08:00 )","Zeit der Rückkehr\n( 18:00 )","Vergütungs-Grundlage","Ausgaben für Billettkosten durch MA","Vergütung  \nan Halbtaxabo oder GA","Vergütung Bahnspesen","Auslagen für Verpflegung","Diverse Auslagen","Total"]
[null,null,null,null,null,"1/2 Billett und Verg. für Halbtax-Abo",0,0,{"$f":"SUM(G39:H39)","v":0},null,null,{"$f":"SUM(I39+J39+K39)","v":0}]
[null,null,null,null,null,"1/2 Billett und Verg. für Halbtax-Abo",0,0,{"$f":"SUM(G40:H40)","v":0},null,null,{"$f":"SUM(I40+J40+K40)","v":0}]
[null,null,null,null,null,"1/2 Billett und Verg. für Halbtax-Abo",0,0,0,null,null,0]
[null,null,null,null,null,"1/2 Billett und Verg. für Halbtax-Abo",0,0,0,null,null,0]
[null,null,null,null,null,"1/2 Billett und Verg. für Halbtax-Abo",0,0,0,null,null,0]
[null,null,null,null,null,"1/2 Billett und Verg. für Halbtax-Abo",0,0,0,null,null,0]
[null,null,null,null,null,"1/2 Billett und Verg. für Halbtax-Abo",0,0,0,null,null,0]
[null,null,null,null,null,"1/2 Billett und Verg. für Halbtax-Abo",0,0,0,null,null,0]
[null,null,null,null,null,"1/2 Billett und Verg. für Halbtax-Abo",0,0,0,null,null,0]
[null,null,null,null,null,"1/2 Billett und Verg. für Halbtax-Abo",0,0,0,null,null,0]
[null,null,null,null,null,"1/2 Billett und Verg. für Halbtax-Abo",0,0,0,null,null,0]
[null,null,null,null,null,"1/2 Billett und Verg. für Halbtax-Abo",0,0,0,null,null,0]
[null,null,null,null,null,"1/2 Billett und Verg. für Halbtax-Abo",0,0,0,null,null,0]
[null,null,null,null,null,"1/2 Billett und Verg. für Halbtax-Abo",0,0,0,null,null,0]
[null,null,null,null,null,"1/2 Billett und Verg. für Halbtax-Abo",0,0,0,null,null,0]
[null,null,null,null,null,"1/2 Billett und Verg. für Halbtax-Abo",0,0,0,null,null,0]
[null,null,null,null,null,"1/2 Billett und Verg. für Halbtax-Abo",0,0,0,null,null,0]
[null,null,null,null,null,"1/2 Billett und Verg. für Halbtax-Abo",0,0,0,null,null,0]
[null,null,null,null,null,"1/2 Billett und Verg. für Halbtax-Abo",0,0,0,null,null,0]
[null,null,null,null,"Vergütung Reisen mit öV laufender Monat:",null,{"$f":"SUM(G39:G57)","v":0},{"$f":"SUM(H39:H57)","v":0},{"$f":"SUM(I39:I57)","v":0},{"$f":"SUM(J39:J57)","v":0},{"$f":"SUM(K39:K57)","v":0}]
[null,null,null,null,"Übernahme Vormonate:",null,{"$f":"Juni!G60","v":0},{"$f":"Juni!H60","v":0},{"$f":"Juni!I60","v":0},{"$f":"Juni!J60","v":0},{"$f":"Juni!K60","v":0}]
[null,null,null,null,"Total Billettkosten laufendes Jahr:",null,{"$f":"SUM(G58:G59)","v":0},{"$f":"SUM(H58:H59)","v":0},{"$f":"SUM(I58:I59)","v":0},{"$f":"SUM(J58:J59)","v":0},{"$f":"SUM(K58:K59)","v":0}]
["Kostenart: ",{"$f":"IF(B33=\"\",\"\",B33)","v":""},"Kostenstelle: ",{"$f":"IF(D33=\"\",\"\",D33)","v":""},null,"Auftrag: ",{"$f":"IF(G33=\"\",\"\",G33)","v":""},null,null,null,"Tot. Spesen für Reisen mit öffentl. Verkehrsmitteln",{"$f":"SUM(L39:L57)","v":0}]
[]
["Abrechnung Spesen für diverse Ausgaben ",null,null,null,"(spezielle Kostenarten, bitte je Kostenart in separaten Block eingeben)"]
[]
["Datum\n( 01.01.9999 )","Gegenstand der Rechnungsstellung",null,null,null,null,null,null,null,null,null,"Betrag"]
[]
[]
[]
[]
[]
[]
[]
[]
[]
[]
[]
["Kostenart: ",null,"Kostenstelle: ",null,null,"Auftrag: ",null,null,null,null,"Total Spesen für diverse Auslagen Block 1",{"$f":"SUM(L66:L75)","v":0}]
[]
["Datum\n( 01.01.9999 )","Gegenstand der Rechnungsstellung",null,null,null,null,null,null,null,null,null,"Betrag"]
[]
[]
[]
[]
[]
[]
[]
[]
[]
[]
[]
["Kostenart: ",null,"Kostenstelle: ",null,null,"Auftrag: ",null,null,null,null,"Total Spesen für diverse Auslagen Block 2 ",{"$f":"SUM(L80:L89)","v":0}]
[]
["Zusammenfassung "]
["Kostenart: ",{"$f":"IF(B33=\"\",\"\",B33)","v":""},"Kostenstelle: ",{"$f":"IF(D33=\"\",\"\",D33)","v":""},null,"Auftrag: ",{"$f":"IF(G33=\"\",\"\",G33)","v":""},null,null,null,{"$f":"K33","v":"Tot. Spesen für Reisen mit Indiv. Verkehrsmitteln"},{"$f":"L33","v":0}]
[]
["Kostenart: ",{"$f":"B61","v":""},"Kostenstelle: ",{"$f":"D61","v":""},null,"Auftrag: ",{"$f":"G61","v":""},null,null,null,{"$f":"K61","v":"Tot. Spesen für Reisen mit öffentl. Verkehrsmitteln"},{"$f":"L61","v":0},{"$f":"J30+J58","v":0}]
[]
["Kostenart: ",{"$f":"IF(B77=\"\",\"\",B77)","v":""},"Kostenstelle: ",{"$f":"IF(D77=\"\",\"\",D77)","v":""},null,"Auftrag: ",{"$f":"IF(G77=\"\",\"\",G77)","v":""},null,null,null,{"$f":"K77","v":"Total Spesen für diverse Auslagen Block 1"},{"$f":"L77","v":0}]
[]
["Kostenart: ",{"$f":"IF(B91=\"\",\"\",B91)","v":""},"Kostenstelle: ",{"$f":"IF(D91=\"\",\"\",D91)","v":""},null,"Auftrag: ",{"$f":"IF(G91=\"\",\"\",G91)","v":""},null,null,null,{"$f":"K91","v":"Total Spesen für diverse Auslagen Block 2 "},{"$f":"L91","v":0},{"$f":"L100+L98+K58+K30","v":0}]
[]
["Total Spesen ",null,null,null,null,null,null,"Total Spesen Juli",null,null,null,{"$f":"SUM(L94:L100)","v":0}]
[]
[null,"Datum/Unterschrift:          Rechnungssteller/in",null,null,null,"Vorgesetze/r",null,null,"Verantwortliche/r"]

{"sheet":"August","index":7,"n_rows":104,"n_cols":14,"rows_kept":104,"cut":false,"hidden":false,"merged":[[0,0,0,8],[0,9,0,11],[2,1,2,2],[2,5,2,8],[3,1,3,2],[3,5,3,8],[4,1,4,2],[4,5,4,8],[27,1,27,2],[28,1,28,2],[32,3,32,4],[24,1,24,2],[25,1,25,2],[26,1,26,2],[19,1,19,2],[20,1,20,2],[21,1,21,2],[22,1,22,2],[23,1,23,2],[9,1,9,2],[10,1,10,2],[15,1,15,2],[35,3,35,6],[37,1,37,2],[38,1,38,2],[39,1,39,2],[40,1,40,2],[16,1,16,2],[17,1,17,2],[18,1,18,2],[11,1,11,2],[12,1,12,2],[13,1,13,2],[14,1,14,2],[41,1,41,2],[42,1,42,2],[43,1,43,2],[44,1,44,2],[45,1,45,2],[46,1,46,2],[47,1,47,2],[48,1,48,2],[49,1,49,2],[50,1,50,2],[51,1,51,2],[52,1,52,2],[53,1,53,2],[54,1,54,2],[55,1,55,2],[56,1,56,2],[60,3,60,4],[64,1,64,2],[65,1,65,10],[66,1,66,10],[67,1,67,10],[68,1,68,10],[69,1,69,10],[70,1,70,10],[71,1,71,10],[72,1,72,10],[73,1,73,10],[74,1,74,10],[76,3,76,4],[78,1,78,2],[79,1,79,10],[80,1,80,10],[81,1,81,10],[82,1,82,10],[83,1,83,10],[84,1,84,10],[85,1,85,10],[86,1,86,10],[87,1,87,10],[88,1,88,10],[101,7,101,10],[90,3,90,4],[93,3,93,4],[95,3,95,4],[97,3,97,4],[99,3,99,4]]}
[{"$f":"Januar!A1","v":"Spesenabrechnung 2025"}]
[null,null,null,null,null,null,null,null,null,null,"August"]
["Name: ",{"$f":"IF(Januar!B3=\"\",\"\",Januar!B3)","v":""},null,null,"Vorname: ",{"$f":"IF(Januar!F3=\"\",\"\",Januar!F3)","v":""},null,null,null,"Personen-ID:",{"$f":"IF(Januar!K3=\"\",\"\",Januar!K3)","v":""}]
["Dienststelle: ",{"$f":"IF(Januar!B4=\"\",\"\",Januar!B4)","v":""},null,null,"Abteilung: ",{"$f":"IF(Januar!F4=\"\",\"\",Januar!F4)","v":""},null,null,null,"PersNr.:",{"$f":"IF(Januar!K4=\"\",\"\",Januar!K4)","v":""}]
["Wohnort: ",{"$f":"IF(Januar!B5=\"\",\"\",Januar!B5)","v":""},null,null,"Durchwahl: ",{"$f":"IF(Januar!F5=\"\",\"\",Januar!F5)","v":""},null,null,null,"(Vertragsnr.:)"]
[]
[]
["Abrechnung Spesen für Reisen mit individuellen Verkehrsmitteln (Auto, Moto etc.) bzw. Verrechnung Fahrzeug Privatgebrauch"]
[null,null,null,null,null,null,null,null,null,null,null,null,"AutoKMTotal"]
["Datum\n( 01.01.9999 )","Gegenstand der Rechnungsstellung",null,"Zeit der Abreise\n( 08:00 )","Zeit der Rückkehr\n( 18:00 )","Fahrzeug-\nart","Kilometer",null,"Vergütung Fahrzeugspesen","Auslagen für Verpflegung","Diverse Auslagen","Total",null,{"$f":"Juli!N30","v":0}]
[null,null,null,null,null,"Dienstfahrt mit Privatauto",null,null,{"$f":"IF(F11=\"Dienstfahrt mit Motorrad\",Statistik!$K$12*G11,IF(F11=\"Dienstfahrt mit Mofa / E-Bike\",Statistik!$K$13*G11,IF(F11=\"Privatfahrt mit pers. Dienstfahrzeug\",Statistik!$K$14*G11,IF(F11=\"Privatfahrt mit Poolfahrzeug\",Statistik!$K$15*G11,IF(F11=\"Dienstfahrt mit Velo\",Statistik!#REF!*G11,IF(M11<7000,G11*Statistik!$K$11,IF(N10>=7000,G11*Statistik!$L$11,(7000-N10)*Statistik!$K$11+(M11-7000)*Statistik!$L$11)))))))","v":0},null,null,{"$f":"SUM(I11+J11+K11)","v":0},{"$f":"SUM(N10:N11)","v":0},{"$f":"IF(F11=\"Dienstfahrt mit Privatauto\",SUM(G11),0)","v":0}]
[null,null,null,null,null,"Dienstfahrt mit Privatauto",null,null,{"$f":"IF(F12=\"Dienstfahrt mit Motorrad\",Statistik!$K$12*G12,IF(F12=\"Dienstfahrt mit Mofa / E-Bike\",Statistik!$K$13*G12,IF(F12=\"Privatfahrt mit pers. Dienstfahrzeug\",Statistik!$K$14*G12,IF(F12=\"Privatfahrt mit Poolfahrzeug\",Statistik!$K$15*G12,IF(F12=\"Dienstfahrt mit Velo\",Statistik!#REF!*G12,IF(M12<7000,G12*Statistik!$K$11,IF(M11>=7000,G12*Statistik!$L$11,(7000-M11)*Statistik!$K$11+(M12-7000)*Statistik!$L$11)))))))","v":0},null,null,{"$f":"SUM(I12+J12+K12)","v":0},{"$f":"SUM(N10:N12)","v":0},{"$f":"IF(F12=\"Dienstfahrt mit Privatauto\",SUM(G12),0)","v":0}]
[null,null,null,null,null,"Dienstfahrt mit Privatauto",null,null,{"$f":"IF(F13=\"Dienstfahrt mit Motorrad\",Statistik!$K$12*G13,IF(F13=\"Dienstfahrt mit Mofa / E-Bike\",Statistik!$K$13*G13,IF(F13=\"Privatfahrt mit pers. Dienstfahrzeug\",Statistik!$K$14*G13,IF(F13=\"Privatfahrt mit Poolfahrzeug\",Statistik!$K$15*G13,IF(F13=\"Dienstfahrt mit Velo\",Statistik!#REF!*G13,IF(M13<7000,G13*Statistik!$K$11,IF(M12>=7000,G13*Statistik!$L$11,(7000-M12)*Statistik!$K$11+(M13-7000)*Statistik!$L$11)))))))","v":0},null,null,0,{"$f":"SUM(N10:N13)","v":0},0]
[null,null,null,null,null,"Dienstfahrt mit Privatauto",null,null,{"$f":"IF(F14=\"Dienstfahrt mit Motorrad\",Statistik!$K$12*G14,IF(F14=\"Dienstfahrt mit Mofa / E-Bike\",Statistik!$K$13*G14,IF(F14=\"Privatfahrt mit pers. Dienstfahrzeug\",Statistik!$K$14*G14,IF(F14=\"Privatfahrt mit Poolfahrzeug\",Statistik!$K$15*G14,IF(F14=\"Dienstfahrt mit Velo\",Statistik!#REF!*G14,IF(M14<7000,G14*Statistik!$K$11,IF(M13>=7000,G14*Statistik!$L$11,(7000-M13)*Statistik!$K$11+(M14-7000)*Statistik!$L$11)))))))","v":0},null,null,0,{"$f":"SUM(N10:N14)","v":0},0]
[null,null,null,null,null,"Dienstfahrt mit Privatauto",null,null,{"$f":"IF(F15=\"Dienstfahrt mit Motorrad\",Statistik!$K$12*G15,IF(F15=\"Dienstfahrt mit Mofa / E-Bike\",Statistik!$K$13*G15,IF(F15=\"Privatfahrt mit pers. Dienstfahrzeug\",Statistik!$K$14*G15,IF(F15=\"Privatfahrt mit Poolfahrzeug\",Statistik!$K$15*G15,IF(F15=\"Dienstfahrt mit Velo\",Statistik!#REF!*G15,IF(M15<7000,G15*Statistik!$K$11,IF(M14>=7000,G15*Statistik!$L$11,(7000-M14)*Statistik!$K$11+(M15-7000)*Statistik!$L$11)))))))","v":0},null,null,0,{"$f":"SUM(N10:N15)","v":0},0]
[null,null,null,null,null,"Dienstfahrt mit Privatauto",null,null,{"$f":"IF(F16=\"Dienstfahrt mit Motorrad\",Statistik!$K$12*G16,IF(F16=\"Dienstfahrt mit Mofa / E-Bike\",Statistik!$K$13*G16,IF(F16=\"Privatfahrt mit pers. Dienstfahrzeug\",Statistik!$K$14*G16,IF(F16=\"Privatfahrt mit Poolfahrzeug\",Statistik!$K$15*G16,IF(F16=\"Dienstfahrt mit Velo\",Statistik!#REF!*G16,IF(M16<7000,G16*Statistik!$K$11,IF(M15>=7000,G16*Statistik!$L$11,(7000-M15)*Statistik!$K$11+(M16-7000)*Statistik!$L$11)))))))","v":0},null,null,0,{"$f":"SUM(N10:N16)","v":0},0]
[null,null,null,null,null,"Dienstfahrt mit Privatauto",null,null,{"$f":"IF(F17=\"Dienstfahrt mit Motorrad\",Statistik!$K$12*G17,IF(F17=\"Dienstfahrt mit Mofa / E-Bike\",Statistik!$K$13*G17,IF(F17=\"Privatfahrt mit pers. Dienstfahrzeug\",Statistik!$K$14*G17,IF(F17=\"Privatfahrt mit Poolfahrzeug\",Statistik!$K$15*G17,IF(F17=\"Dienstfahrt mit Velo\",Statistik!#REF!*G17,IF(M17<7000,G17*Statistik!$K$11,IF(M16>=7000,G17*Statistik!$L$11,(7000-M16)*Statistik!$K$11+(M17-7000)*Statistik!$L$11)))))))","v":0},null,null,0,{"$f":"SUM(N10:N17)","v":0},0]
[null,null,null,null,null,"Dienstfahrt mit Privatauto",null,null,{"$f":"IF(F18=\"Dienstfahrt mit Motorrad\",Statistik!$K$12*G18,IF(F18=\"Dienstfahrt mit Mofa / E-Bike\",Statistik!$K$13*G18,IF(F18=\"Privatfahrt mit pers. Dienstfahrzeug\",Statistik!$K$14*G18,IF(F18=\"Privatfahrt mit Poolfahrzeug\",Statistik!$K$15*G18,IF(F18=\"Dienstfahrt mit Velo\",Statistik!#REF!*G18,IF(M18<7000,G18*Statistik!$K$11,IF(M17>=7000,G18*Statistik!$L$11,(7000-M17)*Statistik!$K$11+(M18-7000)*Statistik!$L$11)))))))","v":0},null,null,0,{"$f":"SUM(N10:N18)","v":0},0]
[null,null,null,null,null,"Dienstfahrt mit Privatauto",null,null,{"$f":"IF(F19=\"Dienstfahrt mit Motorrad\",Statistik!$K$12*G19,IF(F19=\"Dienstfahrt mit Mofa / E-Bike\",Statistik!$K$13*G19,IF(F19=\"Privatfahrt mit pers. Dienstfahrzeug\",Statistik!$K$14*G19,IF(F19=\"Privatfahrt mit Poolfahrzeug\",Statistik!$K$15*G19,IF(F19=\"Dienstfahrt mit Velo\",Statistik!#REF!*G19,IF(M19<7000,G19*Statistik!$K$11,IF(M18>=7000,G19*Statistik!$L$11,(7000-M18)*Statistik!$K$11+(M19-7000)*Statistik!$L$11)))))))","v":0},null,null,0,{"$f":"SUM(N10:N19)","v":0},0]
[null,null,null,null,null,"Dienstfahrt mit Privatauto",null,null,{"$f":"IF(F20=\"Dienstfahrt mit Motorrad\",Statistik!$K$12*G20,IF(F20=\"Dienstfahrt mit Mofa / E-Bike\",Statistik!$K$13*G20,IF(F20=\"Privatfahrt mit pers. Dienstfahrzeug\",Statistik!$K$14*G20,IF(F20=\"Privatfahrt mit Poolfahrzeug\",Statistik!$K$15*G20,IF(F20=\"Dienstfahrt mit Velo\",Statistik!#REF!*G20,IF(M20<7000,G20*Statistik!$K$11,IF(M19>=7000,G20*Statistik!$L$11,(7000-M19)*Statistik!$K$11+(M20-7000)*Statistik!$L$11)))))))","v":0},null,null,0,{"$f":"SUM(N10:N20)","v":0},0]
[null,null,null,null,null,"Dienstfahrt mit Privatauto",null,null,{"$f":"IF(F21=\"Dienstfahrt mit Motorrad\",Statistik!$K$12*G21,IF(F21=\"Dienstfahrt mit Mofa / E-Bike\",Statistik!$K$13*G21,IF(F21=\"Privatfahrt mit pers. Dienstfahrzeug\",Statistik!$K$14*G21,IF(F21=\"Privatfahrt mit Poolfahrzeug\",Statistik!$K$15*G21,IF(F21=\"Dienstfahrt mit Velo\",Statistik!#REF!*G21,IF(M21<7000,G21*Statistik!$K$11,IF(M20>=7000,G21*Statistik!$L$11,(7000-M20)*Statistik!$K$11+(M21-7000)*Statistik!$L$11)))))))","v":0},null,null,0,{"$f":"SUM(N10:N21)","v":0},0]
[null,null,null,null,null,"Dienstfahrt mit Privatauto",null,null,{"$f":"IF(F22=\"Dienstfahrt mit Motorrad\",Statistik!$K$12*G22,IF(F22=\"Dienstfahrt mit Mofa / E-Bike\",Statistik!$K$13*G22,IF(F22=\"Privatfahrt mit pers. Dienstfahrzeug\",Statistik!$K$14*G22,IF(F22=\"Privatfahrt mit Poolfahrzeug\",Statistik!$K$15*G22,IF(F22=\"Dienstfahrt mit Velo\",Statistik!#REF!*G22,IF(M22<7000,G22*Statistik!$K$11,IF(M21>=7000,G22*Statistik!$L$11,(7000-M21)*Statistik!$K$11+(M22-7000)*Statistik!$L$11)))))))","v":0},null,null,0,{"$f":"SUM(N10:N22)","v":0},0]
[null,null,null,null,null,"Dienstfahrt mit Privatauto",null,null,{"$f":"IF(F23=\"Dienstfahrt mit Motorrad\",Statistik!$K$12*G23,IF(F23=\"Dienstfahrt mit Mofa / E-Bike\",Statistik!$K$13*G23,IF(F23=\"Privatfahrt mit pers. Dienstfahrzeug\",Statistik!$K$14*G23,IF(F23=\"Privatfahrt mit Poolfahrzeug\",Statistik!$K$15*G23,IF(F23=\"Dienstfahrt mit Velo\",Statistik!#REF!*G23,IF(M23<7000,G23*Statistik!$K$11,IF(M22>=7000,G23*Statistik!$L$11,(7000-M22)*Statistik!$K$11+(M23-7000)*Statistik!$L$11)))))))","v":0},null,null,0,{"$f":"SUM(N10:N23)","v":0},0]
[null,null,null,null,null,"Dienstfahrt mit Privatauto",null,null,{"$f":"IF(F24=\"Dienstfahrt mit Motorrad\",Statistik!$K$12*G24,IF(F24=\"Dienstfahrt mit Mofa / E-Bike\",Statistik!$K$13*G24,IF(F24=\"Privatfahrt mit pers. Dienstfahrzeug\",Statistik!$K$14*G24,IF(F24=\"Privatfahrt mit Poolfahrzeug\",Statistik!$K$15*G24,IF(F24=\"Dienstfahrt mit Velo\",Statistik!#REF!*G24,IF(M24<7000,G24*Statistik!$K$11,IF(M23>=7000,G24*Statistik!$L$11,(7000-M23)*Statistik!$K$11+(M24-7000)*Statistik!$L$11)))))))","v":0},null,null,0,{"$f":"SUM(N10:N24)","v":0},0]
[null,null,null,null,null,"Dienstfahrt mit Privatauto",null,null,{"$f":"IF(F25=\"Dienstfahrt mit Motorrad\",Statistik!$K$12*G25,IF(F25=\"Dienstfahrt mit Mofa / E-Bike\",Statistik!$K$13*G25,IF(F25=\"Privatfahrt mit pers. Dienstfahrzeug\",Statistik!$K$14*G25,IF(F25=\"Privatfahrt mit Poolfahrzeug\",Statistik!$K$15*G25,IF(F25=\"Dienstfahrt mit Velo\",Statistik!#REF!*G25,IF(M25<7000,G25*Statistik!$K$11,IF(M24>=7000,G25*Statistik!$L$11,(7000-M24)*Statistik!$K$11+(M25-7000)*Statistik!$L$11)))))))","v":0},null,null,0,{"$f":"SUM(N10:N25)","v":0},0]
[null,null,null,null,null,"Dienstfahrt mit Privatauto",null,null,{"$f":"IF(F26=\"Dienstfahrt mit Motorrad\",Statistik!$K$12*G26,IF(F26=\"Dienstfahrt mit Mofa / E-Bike\",Statistik!$K$13*G26,IF(F26=\"Privatfahrt mit pers. Dienstfahrzeug\",Statistik!$K$14*G26,IF(F26=\"Privatfahrt mit Poolfahrzeug\",Statistik!$K$15*G26,IF(F26=\"Dienstfahrt mit Velo\",Statistik!#REF!*G26,IF(M26<7000,G26*Statistik!$K$11,IF(M25>=7000,G26*Statistik!$L$11,(7000-M25)*Statistik!$K$11+(M26-7000)*Statistik!$L$11)))))))","v":0},null,null,0,{"$f":"SUM(N10:N26)","v":0},0]
[null,null,null,null,null,"Dienstfahrt mit Privatauto",null,null,{"$f":"IF(F27=\"Dienstfahrt mit Motorrad\",Statistik!$K$12*G27,IF(F27=\"Dienstfahrt mit Mofa / E-Bike\",Statistik!$K$13*G27,IF(F27=\"Privatfahrt mit pers. Dienstfahrzeug\",Statistik!$K$14*G27,IF(F27=\"Privatfahrt mit Poolfahrzeug\",Statistik!$K$15*G27,IF(F27=\"Dienstfahrt mit Velo\",Statistik!#REF!*G27,IF(M27<7000,G27*Statistik!$K$11,IF(M26>=7000,G27*Statistik!$L$11,(7000-M26)*Statistik!$K$11+(M27-7000)*Statistik!$L$11)))))))","v":0},null,null,0,{"$f":"SUM(N10:N27)","v":0},0]
[null,null,null,null,null,"Dienstfahrt mit Privatauto",null,null,{"$f":"IF(F28=\"Dienstfahrt mit Motorrad\",Statistik!$K$12*G28,IF(F28=\"Dienstfahrt mit Mofa / E-Bike\",Statistik!$K$13*G28,IF(F28=\"Privatfahrt mit pers. Dienstfahrzeug\",Statistik!$K$14*G28,IF(F28=\"Privatfahrt mit Poolfahrzeug\",Statistik!$K$15*G28,IF(F28=\"Dienstfahrt mit Velo\",Statistik!#REF!*G28,IF(M28<7000,G28*Statistik!$K$11,IF(M27>=7000,G28*Statistik!$L$11,(7000-M27)*Statistik!$K$11+(M28-7000)*Statistik!$L$11)))))))","v":0},null,null,0,{"$f":"SUM(N10:N28)","v":0},0]
[null,null,null,null,null,"Dienstfahrt mit Privatauto",null,null,{"$f":"IF(F29=\"Dienstfahrt mit Motorrad\",Statistik!$K$12*G29,IF(F29=\"Dienstfahrt mit Mofa / E-Bike\",Statistik!$K$13*G29,IF(F29=\"Privatfahrt mit pers. Dienstfahrzeug\",Statistik!$K$14*G29,IF(F29=\"Privatfahrt mit Poolfahrzeug\",Statistik!$K$15*G29,IF(F29=\"Dienstfahrt mit Velo\",Statistik!#REF!*G29,IF(M29<7000,G29*Statistik!$K$11,IF(M28>=7000,G29*Statistik!$L$11,(7000-M28)*Statistik!$K$11+(M29-7000)*Statistik!$L$11)))))))","v":0},null,null,0,{"$f":"SUM(N10:N29)","v":0},0]
[null,null,null,null,"Vergütung Reisen mit iV laufender Monat:",null,{"$f":"SUM(G11:G29)","v":0},null,{"$f":"SUM(I11:I29)","v":0},{"$f":"SUM(J11:J29)","v":0},{"$f":"SUM(K11:K29)","v":0},null,null,{"$f":"SUM(N10:N29)","v":0}]
[null,null,null,null,"Übernahme Vormonate",null,{"$f":"Juli!G32","v":0},null,{"$f":"Juli!I32","v":0},{"$f":"Juli!J32","v":0},{"$f":"Juli!K32","v":0}]
[null,null,null,null,"Total km / Ausgaben laufendes Jahr:",null,{"$f":"SUM(G30:G31)","v":0},null,{"$f":"SUM(I30:I31)","v":0},{"$f":"SUM(J30:J31)","v":0},{"$f":"SUM(K30:K31)","v":0}]
["Kostenart: ",null,"Kostenstelle: ",null,null,"Auftrag: ",null,null,null,null,"Tot. Spesen für Reisen mit Indiv. Verkehrsmitteln",{"$f":"SUM(L11:L29)","v":0}]
[]
[]
["Abrechnung Spesen für Reisen mit öV",null,null,"Als Vergütung an Halbtax oder GA maximal noch anrechenbar:",null,null,null,{"$f":"190-H60","v":190}]
[]
["Datum\n( 01.01.9999 )","Gegenstand der Rechnungsstellung",null,"Zeit der Abreise\n( 08:00 )","Zeit der Rückkehr\n( 18:00 )","Vergütungs-Grundlage","Ausgaben für Billettkosten durch MA","Vergütung  \nan Halbtaxabo oder GA","Vergütung Bahnspesen","Auslagen für Verpflegung","Diverse Auslagen","Total"]
[null,null,null,null,null,"1/2 Billett und Verg. für Halbtax-Abo",0,0,{"$f":"SUM(G39:H39)","v":0},null,null,{"$f":"SUM(I39+J39+K39)","v":0}]
[null,null,null,null,null,"1/2 Billett und Verg. für Halbtax-Abo",0,0,{"$f":"SUM(G40:H40)","v":0},null,null,{"$f":"SUM(I40+J40+K40)","v":0}]
[null,null,null,null,null,"1/2 Billett und Verg. für Halbtax-Abo",0,0,0,null,null,0]
[null,null,null,null,null,"1/2 Billett und Verg. für Halbtax-Abo",0,0,0,null,null,0]
[null,null,null,null,null,"1/2 Billett und Verg. für Halbtax-Abo",0,0,0,null,null,0]
[null,null,null,null,null,"1/2 Billett und Verg. für Halbtax-Abo",0,0,0,null,null,0]
[null,null,null,null,null,"1/2 Billett und Verg. für Halbtax-Abo",0,0,0,null,null,0]
[null,null,null,null,null,"1/2 Billett und Verg. für Halbtax-Abo",0,0,0,null,null,0]
[null,null,null,null,null,"1/2 Billett und Verg. für Halbtax-Abo",0,0,0,null,null,0]
[null,null,null,null,null,"1/2 Billett und Verg. für Halbtax-Abo",0,0,0,null,null,0]
[null,null,null,null,null,"1/2 Billett und Verg. für Halbtax-Abo",0,0,0,null,null,0]
[null,null,null,null,null,"1/2 Billett und Verg. für Halbtax-Abo",0,0,0,null,null,0]
[null,null,null,null,null,"1/2 Billett und Verg. für Halbtax-Abo",0,0,0,null,null,0]
[null,null,null,null,null,"1/2 Billett und Verg. für Halbtax-Abo",0,0,0,null,null,0]
[null,null,null,null,null,"1/2 Billett und Verg. für Halbtax-Abo",0,0,0,null,null,0]
[null,null,null,null,null,"1/2 Billett und Verg. für Halbtax-Abo",0,0,0,null,null,0]
[null,null,null,null,null,"1/2 Billett und Verg. für Halbtax-Abo",0,0,0,null,null,0]
[null,null,null,null,null,"1/2 Billett und Verg. für Halbtax-Abo",0,0,0,null,null,0]
[null,null,null,null,null,"1/2 Billett und Verg. für Halbtax-Abo",0,0,0,null,null,0]
[null,null,null,null,"Vergütung Reisen mit öV laufender Monat:",null,{"$f":"SUM(G39:G57)","v":0},{"$f":"SUM(H39:H57)","v":0},{"$f":"SUM(I39:I57)","v":0},{"$f":"SUM(J39:J57)","v":0},{"$f":"SUM(K39:K57)","v":0}]
[null,null,null,null,"Übernahme Vormonate:",null,{"$f":"Juli!G60","v":0},{"$f":"Juli!H60","v":0},{"$f":"Juli!I60","v":0},{"$f":"Juli!J60","v":0},{"$f":"Juli!K60","v":0}]
[null,null,null,null,"Total Billettkosten laufendes Jahr:",null,{"$f":"SUM(G58:G59)","v":0},{"$f":"SUM(H58:H59)","v":0},{"$f":"SUM(I58:I59)","v":0},{"$f":"SUM(J58:J59)","v":0},{"$f":"SUM(K58:K59)","v":0}]
["Kostenart: ",{"$f":"IF(B33=\"\",\"\",B33)","v":""},"Kostenstelle: ",{"$f":"IF(D33=\"\",\"\",D33)","v":""},null,"Auftrag: ",{"$f":"IF(G33=\"\",\"\",G33)","v":""},null,null,null,"Tot. Spesen für Reisen mit öffentl. Verkehrsmitteln",{"$f":"SUM(L39:L57)","v":0}]
[]
["Abrechnung Spesen für diverse Ausgaben ",null,null,null,"(spezielle Kostenarten, bitte je Kostenart in separaten Block eingeben)"]
[]
["Datum\n( 01.01.9999 )","Gegenstand der Rechnungsstellung",null,null,null,null,null,null,null,null,null,"Betrag"]
[]
[]
[]
[]
[]
[]
[]
[]
[]
[]
[]
["Kostenart: ",null,"Kostenstelle: ",null,null,"Auftrag: ",null,null,null,null,"Total Spesen für diverse Auslagen Block 1",{"$f":"SUM(L66:L75)","v":0}]
[]
["Datum\n( 01.01.9999 )","Gegenstand der Rechnungsstellung",null,null,null,null,null,null,null,null,null,"Betrag"]
[]
[]
[]
[]
[]
[]
[]
[]
[]
[]
[]
["Kostenart: ",null,"Kostenstelle: ",null,null,"Auftrag: ",null,null,null,null,"Total Spesen für diverse Auslagen Block 2 ",{"$f":"SUM(L80:L89)","v":0}]
[]
["Zusammenfassung"]
["Kostenart: ",{"$f":"IF(B33=\"\",\"\",B33)","v":""},"Kostenstelle: ",{"$f":"IF(D33=\"\",\"\",D33)","v":""},null,"Auftrag: ",{"$f":"IF(G33=\"\",\"\",G33)","v":""},null,null,null,{"$f":"K33","v":"Tot. Spesen für Reisen mit Indiv. Verkehrsmitteln"},{"$f":"L33","v":0}]
[]
["Kostenart: ",{"$f":"B61","v":""},"Kostenstelle: ",{"$f":"D61","v":""},null,"Auftrag: ",{"$f":"G61","v":""},null,null,null,{"$f":"K61","v":"Tot. Spesen für Reisen mit öffentl. Verkehrsmitteln"},{"$f":"L61","v":0},{"$f":"J30+J58","v":0}]
[]
["Kostenart: ",{"$f":"IF(B77=\"\",\"\",B77)","v":""},"Kostenstelle: ",{"$f":"IF(D77=\"\",\"\",D77)","v":""},null,"Auftrag: ",{"$f":"IF(G77=\"\",\"\",G77)","v":""},null,null,null,{"$f":"K77","v":"Total Spesen für diverse Auslagen Block 1"},{"$f":"L77","v":0}]
[]
["Kostenart: ",{"$f":"IF(B91=\"\",\"\",B91)","v":""},"Kostenstelle: ",{"$f":"IF(D91=\"\",\"\",D91)","v":""},null,"Auftrag: ",{"$f":"IF(G91=\"\",\"\",G91)","v":""},null,null,null,{"$f":"K91","v":"Total Spesen für diverse Auslagen Block 2 "},{"$f":"L91","v":0},{"$f":"L100+L98+K58+K30","v":0}]
[]
["Total Spesen ",null,null,null,null,null,null,"Total Spesen August",null,null,null,{"$f":"SUM(L94:L100)","v":0}]
[]
[null,"Datum/Unterschrift:          Rechnungssteller/in",null,null,null,"Vorgesetze/r",null,null,"Verantwortliche/r"]

{"sheet":"September","index":8,"n_rows":104,"n_cols":14,"rows_kept":104,"cut":false,"hidden":false,"merged":[[0,0,0,8],[0,9,0,11],[2,1,2,2],[2,5,2,8],[3,1,3,2],[3,5,3,8],[4,1,4,2],[4,5,4,8],[27,1,27,2],[28,1,28,2],[32,3,32,4],[24,1,24,2],[25,1,25,2],[26,1,26,2],[19,1,19,2],[20,1,20,2],[21,1,21,2],[22,1,22,2],[23,1,23,2],[9,1,9,2],[10,1,10,2],[15,1,15,2],[35,3,35,6],[37,1,37,2],[38,1,38,2],[39,1,39,2],[40,1,40,2],[16,1,16,2],[17,1,17,2],[18,1,18,2],[11,1,11,2],[12,1,12,2],[13,1,13,2],[14,1,14,2],[41,1,41,2],[42,1,42,2],[43,1,43,2],[44,1,44,2],[45,1,45,2],[46,1,46,2],[47,1,47,2],[48,1,48,2],[49,1,49,2],[50,1,50,2],[51,1,51,2],[52,1,52,2],[53,1,53,2],[54,1,54,2],[55,1,55,2],[56,1,56,2],[60,3,60,4],[64,1,64,2],[65,1,65,10],[66,1,66,10],[67,1,67,10],[68,1,68,10],[69,1,69,10],[70,1,70,10],[71,1,71,10],[72,1,72,10],[73,1,73,10],[74,1,74,10],[76,3,76,4],[78,1,78,2],[79,1,79,10],[80,1,80,10],[81,1,81,10],[82,1,82,10],[83,1,83,10],[84,1,84,10],[85,1,85,10],[86,1,86,10],[87,1,87,10],[88,1,88,10],[101,7,101,10],[90,3,90,4],[93,3,93,4],[95,3,95,4],[97,3,97,4],[99,3,99,4]]}
[{"$f":"Januar!A1","v":"Spesenabrechnung 2025"}]
[null,null,null,null,null,null,null,null,null,null,"September"]
["Name: ",{"$f":"IF(Januar!B3=\"\",\"\",Januar!B3)","v":""},null,null,"Vorname: ",{"$f":"IF(Januar!F3=\"\",\"\",Januar!F3)","v":""},null,null,null,"Personen-ID:",{"$f":"IF(Januar!K3=\"\",\"\",Januar!K3)","v":""}]
["Dienststelle: ",{"$f":"IF(Januar!B4=\"\",\"\",Januar!B4)","v":""},null,null,"Abteilung: ",{"$f":"IF(Januar!F4=\"\",\"\",Januar!F4)","v":""},null,null,null,"PersNr.:",{"$f":"IF(Januar!K4=\"\",\"\",Januar!K4)","v":""}]
["Wohnort: ",{"$f":"IF(Januar!B5=\"\",\"\",Januar!B5)","v":""},null,null,"Durchwahl: ",{"$f":"IF(Januar!F5=\"\",\"\",Januar!F5)","v":""},null,null,null,"(Vertragsnr.:)"]
[]
[]
["Abrechnung Spesen für Reisen mit individuellen Verkehrsmitteln (Auto, Moto etc.) bzw. Verrechnung Fahrzeug Privatgebrauch"]
[null,null,null,null,null,null,null,null,null,null,null,null,"AutoKMTotal"]
["Datum\n( 01.01.9999 )","Gegenstand der Rechnungsstellung",null,"Zeit der Abreise\n( 08:00 )","Zeit der Rückkehr\n( 18:00 )","Fahrzeug-\nart","Kilometer",null,"Vergütung Fahrzeugspesen","Auslagen für Verpflegung","Diverse Auslagen","Total",null,{"$f":"August!N30","v":0}]
[null,null,null,null,null,"Dienstfahrt mit Privatauto",null,null,{"$f":"IF(F11=\"Dienstfahrt mit Motorrad\",Statistik!$K$12*G11,IF(F11=\"Dienstfahrt mit Mofa / E-Bike\",Statistik!$K$13*G11,IF(F11=\"Privatfahrt mit pers. Dienstfahrzeug\",Statistik!$K$14*G11,IF(F11=\"Privatfahrt mit Poolfahrzeug\",Statistik!$K$15*G11,IF(F11=\"Dienstfahrt mit Velo\",Statistik!#REF!*G11,IF(M11<7000,G11*Statistik!$K$11,IF(N10>=7000,G11*Statistik!$L$11,(7000-N10)*Statistik!$K$11+(M11-7000)*Statistik!$L$11)))))))","v":0},null,null,{"$f":"SUM(I11+J11+K11)","v":0},{"$f":"SUM(N10:N11)","v":0},{"$f":"IF(F11=\"Dienstfahrt mit Privatauto\",SUM(G11),0)","v":0}]
[null,null,null,null,null,"Dienstfahrt mit Privatauto",null,null,{"$f":"IF(F12=\"Dienstfahrt mit Motorrad\",Statistik!$K$12*G12,IF(F12=\"Dienstfahrt mit Mofa / E-Bike\",Statistik!$K$13*G12,IF(F12=\"Privatfahrt mit pers. Dienstfahrzeug\",Statistik!$K$14*G12,IF(F12=\"Privatfahrt mit Poolfahrzeug\",Statistik!$K$15*G12,IF(F12=\"Dienstfahrt mit Velo\",Statistik!#REF!*G12,IF(M12<7000,G12*Statistik!$K$11,IF(M11>=7000,G12*Statistik!$L$11,(7000-M11)*Statistik!$K$11+(M12-7000)*Statistik!$L$11)))))))","v":0},null,null,{"$f":"SUM(I12+J12+K12)","v":0},{"$f":"SUM(N10:N12)","v":0},{"$f":"IF(F12=\"Dienstfahrt mit Privatauto\",SUM(G12),0)","v":0}]
[null,null,null,null,null,"Dienstfahrt mit Privatauto",null,null,{"$f":"IF(F13=\"Dienstfahrt mit Motorrad\",Statistik!$K$12*G13,IF(F13=\"Dienstfahrt mit Mofa / E-Bike\",Statistik!$K$13*G13,IF(F13=\"Privatfahrt mit pers. Dienstfahrzeug\",Statistik!$K$14*G13,IF(F13=\"Privatfahrt mit Poolfahrzeug\",Statistik!$K$15*G13,IF(F13=\"Dienstfahrt mit Velo\",Statistik!#REF!*G13,IF(M13<7000,G13*Statistik!$K$11,IF(M12>=7000,G13*Statistik!$L$11,(7000-M12)*Statistik!$K$11+(M13-7000)*Statistik!$L$11)))))))","v":0},null,null,0,{"$f":"SUM(N10:N13)","v":0},0]
[null,null,null,null,null,"Dienstfahrt mit Privatauto",null,null,{"$f":"IF(F14=\"Dienstfahrt mit Motorrad\",Statistik!$K$12*G14,IF(F14=\"Dienstfahrt mit Mofa / E-Bike\",Statistik!$K$13*G14,IF(F14=\"Privatfahrt mit pers. Dienstfahrzeug\",Statistik!$K$14*G14,IF(F14=\"Privatfahrt mit Poolfahrzeug\",Statistik!$K$15*G14,IF(F14=\"Dienstfahrt mit Velo\",Statistik!#REF!*G14,IF(M14<7000,G14*Statistik!$K$11,IF(M13>=7000,G14*Statistik!$L$11,(7000-M13)*Statistik!$K$11+(M14-7000)*Statistik!$L$11)))))))","v":0},null,null,0,{"$f":"SUM(N10:N14)","v":0},0]
[null,null,null,null,null,"Dienstfahrt mit Privatauto",null,null,{"$f":"IF(F15=\"Dienstfahrt mit Motorrad\",Statistik!$K$12*G15,IF(F15=\"Dienstfahrt mit Mofa / E-Bike\",Statistik!$K$13*G15,IF(F15=\"Privatfahrt mit pers. Dienstfahrzeug\",Statistik!$K$14*G15,IF(F15=\"Privatfahrt mit Poolfahrzeug\",Statistik!$K$15*G15,IF(F15=\"Dienstfahrt mit Velo\",Statistik!#REF!*G15,IF(M15<7000,G15*Statistik!$K$11,IF(M14>=7000,G15*Statistik!$L$11,(7000-M14)*Statistik!$K$11+(M15-7000)*Statistik!$L$11)))))))","v":0},null,null,0,{"$f":"SUM(N10:N15)","v":0},0]
[null,null,null,null,null,"Dienstfahrt mit Privatauto",null,null,{"$f":"IF(F16=\"Dienstfahrt mit Motorrad\",Statistik!$K$12*G16,IF(F16=\"Dienstfahrt mit Mofa / E-Bike\",Statistik!$K$13*G16,IF(F16=\"Privatfahrt mit pers. Dienstfahrzeug\",Statistik!$K$14*G16,IF(F16=\"Privatfahrt mit Poolfahrzeug\",Statistik!$K$15*G16,IF(F16=\"Dienstfahrt mit Velo\",Statistik!#REF!*G16,IF(M16<7000,G16*Statistik!$K$11,IF(M15>=7000,G16*Statistik!$L$11,(7000-M15)*Statistik!$K$11+(M16-7000)*Statistik!$L$11)))))))","v":0},null,null,0,{"$f":"SUM(N10:N16)","v":0},0]
[null,null,null,null,null,"Dienstfahrt mit Privatauto",null,null,{"$f":"IF(F17=\"Dienstfahrt mit Motorrad\",Statistik!$K$12*G17,IF(F17=\"Dienstfahrt mit Mofa / E-Bike\",Statistik!$K$13*G17,IF(F17=\"Privatfahrt mit pers. Dienstfahrzeug\",Statistik!$K$14*G17,IF(F17=\"Privatfahrt mit Poolfahrzeug\",Statistik!$K$15*G17,IF(F17=\"Dienstfahrt mit Velo\",Statistik!#REF!*G17,IF(M17<7000,G17*Statistik!$K$11,IF(M16>=7000,G17*Statistik!$L$11,(7000-M16)*Statistik!$K$11+(M17-7000)*Statistik!$L$11)))))))","v":0},null,null,0,{"$f":"SUM(N10:N17)","v":0},0]
[null,null,null,null,null,"Dienstfahrt mit Privatauto",null,null,{"$f":"IF(F18=\"Dienstfahrt mit Motorrad\",Statistik!$K$12*G18,IF(F18=\"Dienstfahrt mit Mofa / E-Bike\",Statistik!$K$13*G18,IF(F18=\"Privatfahrt mit pers. Dienstfahrzeug\",Statistik!$K$14*G18,IF(F18=\"Privatfahrt mit Poolfahrzeug\",Statistik!$K$15*G18,IF(F18=\"Dienstfahrt mit Velo\",Statistik!#REF!*G18,IF(M18<7000,G18*Statistik!$K$11,IF(M17>=7000,G18*Statistik!$L$11,(7000-M17)*Statistik!$K$11+(M18-7000)*Statistik!$L$11)))))))","v":0},null,null,0,{"$f":"SUM(N10:N18)","v":0},0]
[null,null,null,null,null,"Dienstfahrt mit Privatauto",null,null,{"$f":"IF(F19=\"Dienstfahrt mit Motorrad\",Statistik!$K$12*G19,IF(F19=\"Dienstfahrt mit Mofa / E-Bike\",Statistik!$K$13*G19,IF(F19=\"Privatfahrt mit pers. Dienstfahrzeug\",Statistik!$K$14*G19,IF(F19=\"Privatfahrt mit Poolfahrzeug\",Statistik!$K$15*G19,IF(F19=\"Dienstfahrt mit Velo\",Statistik!#REF!*G19,IF(M19<7000,G19*Statistik!$K$11,IF(M18>=7000,G19*Statistik!$L$11,(7000-M18)*Statistik!$K$11+(M19-7000)*Statistik!$L$11)))))))","v":0},null,null,0,{"$f":"SUM(N10:N19)","v":0},0]
[null,null,null,null,null,"Dienstfahrt mit Privatauto",null,null,{"$f":"IF(F20=\"Dienstfahrt mit Motorrad\",Statistik!$K$12*G20,IF(F20=\"Dienstfahrt mit Mofa / E-Bike\",Statistik!$K$13*G20,IF(F20=\"Privatfahrt mit pers. Dienstfahrzeug\",Statistik!$K$14*G20,IF(F20=\"Privatfahrt mit Poolfahrzeug\",Statistik!$K$15*G20,IF(F20=\"Dienstfahrt mit Velo\",Statistik!#REF!*G20,IF(M20<7000,G20*Statistik!$K$11,IF(M19>=7000,G20*Statistik!$L$11,(7000-M19)*Statistik!$K$11+(M20-7000)*Statistik!$L$11)))))))","v":0},null,null,0,{"$f":"SUM(N10:N20)","v":0},0]
[null,null,null,null,null,"Dienstfahrt mit Privatauto",null,null,{"$f":"IF(F21=\"Dienstfahrt mit Motorrad\",Statistik!$K$12*G21,IF(F21=\"Dienstfahrt mit Mofa / E-Bike\",Statistik!$K$13*G21,IF(F21=\"Privatfahrt mit pers. Dienstfahrzeug\",Statistik!$K$14*G21,IF(F21=\"Privatfahrt mit Poolfahrzeug\",Statistik!$K$15*G21,IF(F21=\"Dienstfahrt mit Velo\",Statistik!#REF!*G21,IF(M21<7000,G21*Statistik!$K$11,IF(M20>=7000,G21*Statistik!$L$11,(7000-M20)*Statistik!$K$11+(M21-7000)*Statistik!$L$11)))))))","v":0},null,null,0,{"$f":"SUM(N10:N21)","v":0},0]
[null,null,null,null,null,"Dienstfahrt mit Privatauto",null,null,{"$f":"IF(F22=\"Dienstfahrt mit Motorrad\",Statistik!$K$12*G22,IF(F22=\"Dienstfahrt mit Mofa / E-Bike\",Statistik!$K$13*G22,IF(F22=\"Privatfahrt mit pers. Dienstfahrzeug\",Statistik!$K$14*G22,IF(F22=\"Privatfahrt mit Poolfahrzeug\",Statistik!$K$15*G22,IF(F22=\"Dienstfahrt mit Velo\",Statistik!#REF!*G22,IF(M22<7000,G22*Statistik!$K$11,IF(M21>=7000,G22*Statistik!$L$11,(7000-M21)*Statistik!$K$11+(M22-7000)*Statistik!$L$11)))))))","v":0},null,null,0,{"$f":"SUM(N10:N22)","v":0},0]
[null,null,null,null,null,"Dienstfahrt mit Privatauto",null,null,{"$f":"IF(F23=\"Dienstfahrt mit Motorrad\",Statistik!$K$12*G23,IF(F23=\"Dienstfahrt mit Mofa / E-Bike\",Statistik!$K$13*G23,IF(F23=\"Privatfahrt mit pers. Dienstfahrzeug\",Statistik!$K$14*G23,IF(F23=\"Privatfahrt mit Poolfahrzeug\",Statistik!$K$15*G23,IF(F23=\"Dienstfahrt mit Velo\",Statistik!#REF!*G23,IF(M23<7000,G23*Statistik!$K$11,IF(M22>=7000,G23*Statistik!$L$11,(7000-M22)*Statistik!$K$11+(M23-7000)*Statistik!$L$11)))))))","v":0},null,null,0,{"$f":"SUM(N10:N23)","v":0},0]
[null,null,null,null,null,"Dienstfahrt mit Privatauto",null,null,{"$f":"IF(F24=\"Dienstfahrt mit Motorrad\",Statistik!$K$12*G24,IF(F24=\"Dienstfahrt mit Mofa / E-Bike\",Statistik!$K$13*G24,IF(F24=\"Privatfahrt mit pers. Dienstfahrzeug\",Statistik!$K$14*G24,IF(F24=\"Privatfahrt mit Poolfahrzeug\",Statistik!$K$15*G24,IF(F24=\"Dienstfahrt mit Velo\",Statistik!#REF!*G24,IF(M24<7000,G24*Statistik!$K$11,IF(M23>=7000,G24*Statistik!$L$11,(7000-M23)*Statistik!$K$11+(M24-7000)*Statistik!$L$11)))))))","v":0},null,null,0,{"$f":"SUM(N10:N24)","v":0},0]
[null,null,null,null,null,"Dienstfahrt mit Privatauto",null,null,{"$f":"IF(F25=\"Dienstfahrt mit Motorrad\",Statistik!$K$12*G25,IF(F25=\"Dienstfahrt mit Mofa / E-Bike\",Statistik!$K$13*G25,IF(F25=\"Privatfahrt mit pers. Dienstfahrzeug\",Statistik!$K$14*G25,IF(F25=\"Privatfahrt mit Poolfahrzeug\",Statistik!$K$15*G25,IF(F25=\"Dienstfahrt mit Velo\",Statistik!#REF!*G25,IF(M25<7000,G25*Statistik!$K$11,IF(M24>=7000,G25*Statistik!$L$11,(7000-M24)*Statistik!$K$11+(M25-7000)*Statistik!$L$11)))))))","v":0},null,null,0,{"$f":"SUM(N10:N25)","v":0},0]
[null,null,null,null,null,"Dienstfahrt mit Privatauto",null,null,{"$f":"IF(F26=\"Dienstfahrt mit Motorrad\",Statistik!$K$12*G26,IF(F26=\"Dienstfahrt mit Mofa / E-Bike\",Statistik!$K$13*G26,IF(F26=\"Privatfahrt mit pers. Dienstfahrzeug\",Statistik!$K$14*G26,IF(F26=\"Privatfahrt mit Poolfahrzeug\",Statistik!$K$15*G26,IF(F26=\"Dienstfahrt mit Velo\",Statistik!#REF!*G26,IF(M26<7000,G26*Statistik!$K$11,IF(M25>=7000,G26*Statistik!$L$11,(7000-M25)*Statistik!$K$11+(M26-7000)*Statistik!$L$11)))))))","v":0},null,null,0,{"$f":"SUM(N10:N26)","v":0},0]
[null,null,null,null,null,"Dienstfahrt mit Privatauto",null,null,{"$f":"IF(F27=\"Dienstfahrt mit Motorrad\",Statistik!$K$12*G27,IF(F27=\"Dienstfahrt mit Mofa / E-Bike\",Statistik!$K$13*G27,IF(F27=\"Privatfahrt mit pers. Dienstfahrzeug\",Statistik!$K$14*G27,IF(F27=\"Privatfahrt mit Poolfahrzeug\",Statistik!$K$15*G27,IF(F27=\"Dienstfahrt mit Velo\",Statistik!#REF!*G27,IF(M27<7000,G27*Statistik!$K$11,IF(M26>=7000,G27*Statistik!$L$11,(7000-M26)*Statistik!$K$11+(M27-7000)*Statistik!$L$11)))))))","v":0},null,null,0,{"$f":"SUM(N10:N27)","v":0},0]
[null,null,null,null,null,"Dienstfahrt mit Privatauto",null,null,{"$f":"IF(F28=\"Dienstfahrt mit Motorrad\",Statistik!$K$12*G28,IF(F28=\"Dienstfahrt mit Mofa / E-Bike\",Statistik!$K$13*G28,IF(F28=\"Privatfahrt mit pers. Dienstfahrzeug\",Statistik!$K$14*G28,IF(F28=\"Privatfahrt mit Poolfahrzeug\",Statistik!$K$15*G28,IF(F28=\"Dienstfahrt mit Velo\",Statistik!#REF!*G28,IF(M28<7000,G28*Statistik!$K$11,IF(M27>=7000,G28*Statistik!$L$11,(7000-M27)*Statistik!$K$11+(M28-7000)*Statistik!$L$11)))))))","v":0},null,null,0,{"$f":"SUM(N10:N28)","v":0},0]
[null,null,null,null,null,"Dienstfahrt mit Privatauto",null,null,{"$f":"IF(F29=\"Dienstfahrt mit Motorrad\",Statistik!$K$12*G29,IF(F29=\"Dienstfahrt mit Mofa / E-Bike\",Statistik!$K$13*G29,IF(F29=\"Privatfahrt mit pers. Dienstfahrzeug\",Statistik!$K$14*G29,IF(F29=\"Privatfahrt mit Poolfahrzeug\",Statistik!$K$15*G29,IF(F29=\"Dienstfahrt mit Velo\",Statistik!#REF!*G29,IF(M29<7000,G29*Statistik!$K$11,IF(M28>=7000,G29*Statistik!$L$11,(7000-M28)*Statistik!$K$11+(M29-7000)*Statistik!$L$11)))))))","v":0},null,null,0,{"$f":"SUM(N10:N29)","v":0},0]
[null,null,null,null,"Vergütung Reisen mit iV laufender Monat:",null,{"$f":"SUM(G11:G29)","v":0},null,{"$f":"SUM(I11:I29)","v":0},{"$f":"SUM(J11:J29)","v":0},{"$f":"SUM(K11:K29)","v":0},null,null,{"$f":"SUM(N10:N29)","v":0}]
[null,null,null,null,"Übernahme Vormonate",null,{"$f":"August!G32","v":0},null,{"$f":"August!I32","v":0},{"$f":"August!J32","v":0},{"$f":"August!K32","v":0}]
[null,null,null,null,"Total km / Ausgaben laufendes Jahr:",null,{"$f":"SUM(G30:G31)","v":0},null,{"$f":"SUM(I30:I31)","v":0},{"$f":"SUM(J30:J31)","v":0},{"$f":"SUM(K30:K31)","v":0}]
["Kostenart: ",null,"Kostenstelle: ",null,null,"Auftrag: ",null,null,null,null,"Tot. Spesen für Reisen mit Indiv. Verkehrsmitteln",{"$f":"SUM(L11:L29)","v":0}]
[]
[]
["Abrechnung Spesen für Reisen mit öV",null,null,"Als Vergütung an Halbtax oder GA maximal noch anrechenbar:",null,null,null,{"$f":"190-H60","v":190}]
[]
["Datum\n( 01.01.9999 )","Gegenstand der Rechnungsstellung",null,"Zeit der Abreise\n( 08:00 )","Zeit der Rückkehr\n( 18:00 )","Vergütungs-Grundlage","Ausgaben für Billettkosten durch MA","Vergütung  \nan Halbtaxabo oder GA","Vergütung Bahnspesen","Auslagen für Verpflegung","Diverse Auslagen","Total"]
[null,null,null,null,null,"1/2 Billett und Verg. für Halbtax-Abo",0,0,{"$f":"SUM(G39:H39)","v":0},null,null,{"$f":"SUM(I39+J39+K39)","v":0}]
[null,null,null,null,null,"1/2 Billett und Verg. für Halbtax-Abo",0,0,{"$f":"SUM(G40:H40)","v":0},null,null,{"$f":"SUM(I40+J40+K40)","v":0}]
[null,null,null,null,null,"1/2 Billett und Verg. für Halbtax-Abo",0,0,0,null,null,0]
[null,null,null,null,null,"1/2 Billett und Verg. für Halbtax-Abo",0,0,0,null,null,0]
[null,null,null,null,null,"1/2 Billett und Verg. für Halbtax-Abo",0,0,0,null,null,0]
[null,null,null,null,null,"1/2 Billett und Verg. für Halbtax-Abo",0,0,0,null,null,0]
[null,null,null,null,null,"1/2 Billett und Verg. für Halbtax-Abo",0,0,0,null,null,0]
[null,null,null,null,null,"1/2 Billett und Verg. für Halbtax-Abo",0,0,0,null,null,0]
[null,null,null,null,null,"1/2 Billett und Verg. für Halbtax-Abo",0,0,0,null,null,0]
[null,null,null,null,null,"1/2 Billett und Verg. für Halbtax-Abo",0,0,0,null,null,0]
[null,null,null,null,null,"1/2 Billett und Verg. für Halbtax-Abo",0,0,0,null,null,0]
[null,null,null,null,null,"1/2 Billett und Verg. für Halbtax-Abo",0,0,0,null,null,0]
[null,null,null,null,null,"1/2 Billett und Verg. für Halbtax-Abo",0,0,0,null,null,0]
[null,null,null,null,null,"1/2 Billett und Verg. für Halbtax-Abo",0,0,0,null,null,0]
[null,null,null,null,null,"1/2 Billett und Verg. für Halbtax-Abo",0,0,0,null,null,0]
[null,null,null,null,null,"1/2 Billett und Verg. für Halbtax-Abo",0,0,0,null,null,0]
[null,null,null,null,null,"1/2 Billett und Verg. für Halbtax-Abo",0,0,0,null,null,0]
[null,null,null,null,null,"1/2 Billett und Verg. für Halbtax-Abo",0,0,0,null,null,0]
[null,null,null,null,null,"1/2 Billett und Verg. für Halbtax-Abo",0,0,0,null,null,0]
[null,null,null,null,"Vergütung Reisen mit öV laufender Monat:",null,{"$f":"SUM(G39:G57)","v":0},{"$f":"SUM(H39:H57)","v":0},{"$f":"SUM(I39:I57)","v":0},{"$f":"SUM(J39:J57)","v":0},{"$f":"SUM(K39:K57)","v":0}]
[null,null,null,null,"Übernahme Vormonate:",null,{"$f":"August!G60","v":0},{"$f":"August!H60","v":0},{"$f":"August!I60","v":0},{"$f":"August!J60","v":0},{"$f":"August!K60","v":0}]
[null,null,null,null,"Total Billettkosten laufendes Jahr:",null,{"$f":"SUM(G58:G59)","v":0},{"$f":"SUM(H58:H59)","v":0},{"$f":"SUM(I58:I59)","v":0},{"$f":"SUM(J58:J59)","v":0},{"$f":"SUM(K58:K59)","v":0}]
["Kostenart: ",{"$f":"IF(B33=\"\",\"\",B33)","v":""},"Kostenstelle: ",{"$f":"IF(D33=\"\",\"\",D33)","v":""},null,"Auftrag: ",{"$f":"IF(G33=\"\",\"\",G33)","v":""},null,null,null,"Tot. Spesen für Reisen mit öffentl. Verkehrsmitteln",{"$f":"SUM(L39:L57)","v":0}]
[]
["Abrechnung Spesen für diverse Ausgaben ",null,null,null,"(spezielle Kostenarten, bitte je Kostenart in separaten Block eingeben)"]
[]
["Datum\n( 01.01.9999 )","Gegenstand der Rechnungsstellung",null,null,null,null,null,null,null,null,null,"Betrag"]
[]
[]
[]
[]
[]
[]
[]
[]
[]
[]
[]
["Kostenart: ",null,"Kostenstelle: ",null,null,"Auftrag: ",null,null,null,null,"Total Spesen für diverse Auslagen Block 1",{"$f":"SUM(L66:L75)","v":0}]
[]
["Datum\n( 01.01.9999 )","Gegenstand der Rechnungsstellung",null,null,null,null,null,null,null,null,null,"Betrag"]
[]
[]
[]
[]
[]
[]
[]
[]
[]
[]
[]
["Kostenart: ",null,"Kostenstelle: ",null,null,"Auftrag: ",null,null,null,null,"Total Spesen für diverse Auslagen Block 2 ",{"$f":"SUM(L80:L89)","v":0}]
[]
["Zusammenfassung "]
["Kostenart: ",{"$f":"IF(B33=\"\",\"\",B33)","v":""},"Kostenstelle: ",{"$f":"IF(D33=\"\",\"\",D33)","v":""},null,"Auftrag: ",{"$f":"IF(G33=\"\",\"\",G33)","v":""},null,null,null,{"$f":"K33","v":"Tot. Spesen für Reisen mit Indiv. Verkehrsmitteln"},{"$f":"L33","v":0}]
[]
["Kostenart: ",{"$f":"B61","v":""},"Kostenstelle: ",{"$f":"D61","v":""},null,"Auftrag: ",{"$f":"G61","v":""},null,null,null,{"$f":"K61","v":"Tot. Spesen für Reisen mit öffentl. Verkehrsmitteln"},{"$f":"L61","v":0},{"$f":"J30+J58","v":0}]
[]
["Kostenart: ",{"$f":"IF(B77=\"\",\"\",B77)","v":""},"Kostenstelle: ",{"$f":"IF(D77=\"\",\"\",D77)","v":""},null,"Auftrag: ",{"$f":"IF(G77=\"\",\"\",G77)","v":""},null,null,null,{"$f":"K77","v":"Total Spesen für diverse Auslagen Block 1"},{"$f":"L77","v":0}]
[]
["Kostenart: ",{"$f":"IF(B91=\"\",\"\",B91)","v":""},"Kostenstelle: ",{"$f":"IF(D91=\"\",\"\",D91)","v":""},null,"Auftrag: ",{"$f":"IF(G91=\"\",\"\",G91)","v":""},null,null,null,{"$f":"K91","v":"Total Spesen für diverse Auslagen Block 2 "},{"$f":"L91","v":0},{"$f":"L100+L98+K58+K30","v":0}]
[]
["Total Spesen ",null,null,null,null,null,null,"Total Spesen September",null,null,null,{"$f":"SUM(L94:L100)","v":0}]
[]
[null,"Datum/Unterschrift:          Rechnungssteller/in",null,null,null,"Vorgesetze/r",null,null,"Verantwortliche/r"]

{"sheet":"Oktober","index":9,"n_rows":104,"n_cols":14,"rows_kept":104,"cut":false,"hidden":false,"merged":[[0,0,0,8],[0,9,0,11],[2,1,2,2],[2,5,2,8],[3,1,3,2],[3,5,3,8],[4,1,4,2],[4,5,4,8],[27,1,27,2],[28,1,28,2],[32,3,32,4],[24,1,24,2],[25,1,25,2],[26,1,26,2],[19,1,19,2],[20,1,20,2],[21,1,21,2],[22,1,22,2],[23,1,23,2],[9,1,9,2],[10,1,10,2],[15,1,15,2],[35,3,35,6],[37,1,37,2],[38,1,38,2],[39,1,39,2],[40,1,40,2],[16,1,16,2],[17,1,17,2],[18,1,18,2],[11,1,11,2],[12,1,12,2],[13,1,13,2],[14,1,14,2],[41,1,41,2],[42,1,42,2],[43,1,43,2],[44,1,44,2],[45,1,45,2],[46,1,46,2],[47,1,47,2],[48,1,48,2],[49,1,49,2],[50,1,50,2],[51,1,51,2],[52,1,52,2],[53,1,53,2],[54,1,54,2],[55,1,55,2],[56,1,56,2],[60,3,60,4],[64,1,64,2],[65,1,65,10],[66,1,66,10],[67,1,67,10],[68,1,68,10],[69,1,69,10],[70,1,70,10],[71,1,71,10],[72,1,72,10],[73,1,73,10],[74,1,74,10],[76,3,76,4],[78,1,78,2],[79,1,79,10],[80,1,80,10],[81,1,81,10],[82,1,82,10],[83,1,83,10],[84,1,84,10],[85,1,85,10],[86,1,86,10],[87,1,87,10],[88,1,88,10],[101,7,101,10],[90,3,90,4],[93,3,93,4],[95,3,95,4],[97,3,97,4],[99,3,99,4]]}
[{"$f":"Januar!A1","v":"Spesenabrechnung 2025"}]
[null,null,null,null,null,null,null,null,null,null,"Oktober"]
["Name: ",{"$f":"IF(Januar!B3=\"\",\"\",Januar!B3)","v":""},null,null,"Vorname: ",{"$f":"IF(Januar!F3=\"\",\"\",Januar!F3)","v":""},null,null,null,"Personen-ID:",{"$f":"IF(Januar!K3=\"\",\"\",Januar!K3)","v":""}]
["Dienststelle: ",{"$f":"IF(Januar!B4=\"\",\"\",Januar!B4)","v":""},null,null,"Abteilung: ",{"$f":"IF(Januar!F4=\"\",\"\",Januar!F4)","v":""},null,null,null,"PersNr.:",{"$f":"IF(Januar!K4=\"\",\"\",Januar!K4)","v":""}]
["Wohnort: ",{"$f":"IF(Januar!B5=\"\",\"\",Januar!B5)","v":""},null,null,"Durchwahl: ",{"$f":"IF(Januar!F5=\"\",\"\",Januar!F5)","v":""},null,null,null,"(Vertragsnr.:)"]
[]
[]
["Abrechnung Spesen für Reisen mit individuellen Verkehrsmitteln (Auto, Moto etc.) bzw. Verrechnung Fahrzeug Privatgebrauch"]
[null,null,null,null,null,null,null,null,null,null,null,null,"AutoKMTotal"]
["Datum\n( 01.01.9999 )","Gegenstand der Rechnungsstellung",null,"Zeit der Abreise\n( 08:00 )","Zeit der Rückkehr\n( 18:00 )","Fahrzeug-\nart","Kilometer",null,"Vergütung Fahrzeugspesen","Auslagen für Verpflegung","Diverse Auslagen","Total",null,{"$f":"September!N30","v":0}]
[null,null,null,null,null,"Dienstfahrt mit Privatauto",null,null,{"$f":"IF(F11=\"Dienstfahrt mit Motorrad\",Statistik!$K$12*G11,IF(F11=\"Dienstfahrt mit Mofa / E-Bike\",Statistik!$K$13*G11,IF(F11=\"Privatfahrt mit pers. Dienstfahrzeug\",Statistik!$K$14*G11,IF(F11=\"Privatfahrt mit Poolfahrzeug\",Statistik!$K$15*G11,IF(F11=\"Dienstfahrt mit Velo\",Statistik!#REF!*G11,IF(M11<7000,G11*Statistik!$K$11,IF(N10>=7000,G11*Statistik!$L$11,(7000-N10)*Statistik!$K$11+(M11-7000)*Statistik!$L$11)))))))","v":0},null,null,{"$f":"SUM(I11+J11+K11)","v":0},{"$f":"SUM(N10:N11)","v":0},{"$f":"IF(F11=\"Dienstfahrt mit Privatauto\",SUM(G11),0)","v":0}]
[null,null,null,null,null,"Dienstfahrt mit Privatauto",null,null,{"$f":"IF(F12=\"Dienstfahrt mit Motorrad\",Statistik!$K$12*G12,IF(F12=\"Dienstfahrt mit Mofa / E-Bike\",Statistik!$K$13*G12,IF(F12=\"Privatfahrt mit pers. Dienstfahrzeug\",Statistik!$K$14*G12,IF(F12=\"Privatfahrt mit Poolfahrzeug\",Statistik!$K$15*G12,IF(F12=\"Dienstfahrt mit Velo\",Statistik!#REF!*G12,IF(M12<7000,G12*Statistik!$K$11,IF(M11>=7000,G12*Statistik!$L$11,(7000-M11)*Statistik!$K$11+(M12-7000)*Statistik!$L$11)))))))","v":0},null,null,{"$f":"SUM(I12+J12+K12)","v":0},{"$f":"SUM(N10:N12)","v":0},{"$f":"IF(F12=\"Dienstfahrt mit Privatauto\",SUM(G12),0)","v":0}]
[null,null,null,null,null,"Dienstfahrt mit Privatauto",null,null,{"$f":"IF(F13=\"Dienstfahrt mit Motorrad\",Statistik!$K$12*G13,IF(F13=\"Dienstfahrt mit Mofa / E-Bike\",Statistik!$K$13*G13,IF(F13=\"Privatfahrt mit pers. Dienstfahrzeug\",Statistik!$K$14*G13,IF(F13=\"Privatfahrt mit Poolfahrzeug\",Statistik!$K$15*G13,IF(F13=\"Dienstfahrt mit Velo\",Statistik!#REF!*G13,IF(M13<7000,G13*Statistik!$K$11,IF(M12>=7000,G13*Statistik!$L$11,(7000-M12)*Statistik!$K$11+(M13-7000)*Statistik!$L$11)))))))","v":0},null,null,0,{"$f":"SUM(N10:N13)","v":0},0]
[null,null,null,null,null,"Dienstfahrt mit Privatauto",null,null,{"$f":"IF(F14=\"Dienstfahrt mit Motorrad\",Statistik!$K$12*G14,IF(F14=\"Dienstfahrt mit Mofa / E-Bike\",Statistik!$K$13*G14,IF(F14=\"Privatfahrt mit pers. Dienstfahrzeug\",Statistik!$K$14*G14,IF(F14=\"Privatfahrt mit Poolfahrzeug\",Statistik!$K$15*G14,IF(F14=\"Dienstfahrt mit Velo\",Statistik!#REF!*G14,IF(M14<7000,G14*Statistik!$K$11,IF(M13>=7000,G14*Statistik!$L$11,(7000-M13)*Statistik!$K$11+(M14-7000)*Statistik!$L$11)))))))","v":0},null,null,0,{"$f":"SUM(N10:N14)","v":0},0]
[null,null,null,null,null,"Dienstfahrt mit Privatauto",null,null,{"$f":"IF(F15=\"Dienstfahrt mit Motorrad\",Statistik!$K$12*G15,IF(F15=\"Dienstfahrt mit Mofa / E-Bike\",Statistik!$K$13*G15,IF(F15=\"Privatfahrt mit pers. Dienstfahrzeug\",Statistik!$K$14*G15,IF(F15=\"Privatfahrt mit Poolfahrzeug\",Statistik!$K$15*G15,IF(F15=\"Dienstfahrt mit Velo\",Statistik!#REF!*G15,IF(M15<7000,G15*Statistik!$K$11,IF(M14>=7000,G15*Statistik!$L$11,(7000-M14)*Statistik!$K$11+(M15-7000)*Statistik!$L$11)))))))","v":0},null,null,0,{"$f":"SUM(N10:N15)","v":0},0]
[null,null,null,null,null,"Dienstfahrt mit Privatauto",null,null,{"$f":"IF(F16=\"Dienstfahrt mit Motorrad\",Statistik!$K$12*G16,IF(F16=\"Dienstfahrt mit Mofa / E-Bike\",Statistik!$K$13*G16,IF(F16=\"Privatfahrt mit pers. Dienstfahrzeug\",Statistik!$K$14*G16,IF(F16=\"Privatfahrt mit Poolfahrzeug\",Statistik!$K$15*G16,IF(F16=\"Dienstfahrt mit Velo\",Statistik!#REF!*G16,IF(M16<7000,G16*Statistik!$K$11,IF(M15>=7000,G16*Statistik!$L$11,(7000-M15)*Statistik!$K$11+(M16-7000)*Statistik!$L$11)))))))","v":0},null,null,0,{"$f":"SUM(N10:N16)","v":0},0]
[null,null,null,null,null,"Dienstfahrt mit Privatauto",null,null,{"$f":"IF(F17=\"Dienstfahrt mit Motorrad\",Statistik!$K$12*G17,IF(F17=\"Dienstfahrt mit Mofa / E-Bike\",Statistik!$K$13*G17,IF(F17=\"Privatfahrt mit pers. Dienstfahrzeug\",Statistik!$K$14*G17,IF(F17=\"Privatfahrt mit Poolfahrzeug\",Statistik!$K$15*G17,IF(F17=\"Dienstfahrt mit Velo\",Statistik!#REF!*G17,IF(M17<7000,G17*Statistik!$K$11,IF(M16>=7000,G17*Statistik!$L$11,(7000-M16)*Statistik!$K$11+(M17-7000)*Statistik!$L$11)))))))","v":0},null,null,0,{"$f":"SUM(N10:N17)","v":0},0]
[null,null,null,null,null,"Dienstfahrt mit Privatauto",null,null,{"$f":"IF(F18=\"Dienstfahrt mit Motorrad\",Statistik!$K$12*G18,IF(F18=\"Dienstfahrt mit Mofa / E-Bike\",Statistik!$K$13*G18,IF(F18=\"Privatfahrt mit pers. Dienstfahrzeug\",Statistik!$K$14*G18,IF(F18=\"Privatfahrt mit Poolfahrzeug\",Statistik!$K$15*G18,IF(F18=\"Dienstfahrt mit Velo\",Statistik!#REF!*G18,IF(M18<7000,G18*Statistik!$K$11,IF(M17>=7000,G18*Statistik!$L$11,(7000-M17)*Statistik!$K$11+(M18-7000)*Statistik!$L$11)))))))","v":0},null,null,0,{"$f":"SUM(N10:N18)","v":0},0]
[null,null,null,null,null,"Dienstfahrt mit Privatauto",null,null,{"$f":"IF(F19=\"Dienstfahrt mit Motorrad\",Statistik!$K$12*G19,IF(F19=\"Dienstfahrt mit Mofa / E-Bike\",Statistik!$K$13*G19,IF(F19=\"Privatfahrt mit pers. Dienstfahrzeug\",Statistik!$K$14*G19,IF(F19=\"Privatfahrt mit Poolfahrzeug\",Statistik!$K$15*G19,IF(F19=\"Dienstfahrt mit Velo\",Statistik!#REF!*G19,IF(M19<7000,G19*Statistik!$K$11,IF(M18>=7000,G19*Statistik!$L$11,(7000-M18)*Statistik!$K$11+(M19-7000)*Statistik!$L$11)))))))","v":0},null,null,0,{"$f":"SUM(N10:N19)","v":0},0]
[null,null,null,null,null,"Dienstfahrt mit Privatauto",null,null,{"$f":"IF(F20=\"Dienstfahrt mit Motorrad\",Statistik!$K$12*G20,IF(F20=\"Dienstfahrt mit Mofa / E-Bike\",Statistik!$K$13*G20,IF(F20=\"Privatfahrt mit pers. Dienstfahrzeug\",Statistik!$K$14*G20,IF(F20=\"Privatfahrt mit Poolfahrzeug\",Statistik!$K$15*G20,IF(F20=\"Dienstfahrt mit Velo\",Statistik!#REF!*G20,IF(M20<7000,G20*Statistik!$K$11,IF(M19>=7000,G20*Statistik!$L$11,(7000-M19)*Statistik!$K$11+(M20-7000)*Statistik!$L$11)))))))","v":0},null,null,0,{"$f":"SUM(N10:N20)","v":0},0]
[null,null,null,null,null,"Dienstfahrt mit Privatauto",null,null,{"$f":"IF(F21=\"Dienstfahrt mit Motorrad\",Statistik!$K$12*G21,IF(F21=\"Dienstfahrt mit Mofa / E-Bike\",Statistik!$K$13*G21,IF(F21=\"Privatfahrt mit pers. Dienstfahrzeug\",Statistik!$K$14*G21,IF(F21=\"Privatfahrt mit Poolfahrzeug\",Statistik!$K$15*G21,IF(F21=\"Dienstfahrt mit Velo\",Statistik!#REF!*G21,IF(M21<7000,G21*Statistik!$K$11,IF(M20>=7000,G21*Statistik!$L$11,(7000-M20)*Statistik!$K$11+(M21-7000)*Statistik!$L$11)))))))","v":0},null,null,0,{"$f":"SUM(N10:N21)","v":0},0]
[null,null,null,null,null,"Dienstfahrt mit Privatauto",null,null,{"$f":"IF(F22=\"Dienstfahrt mit Motorrad\",Statistik!$K$12*G22,IF(F22=\"Dienstfahrt mit Mofa / E-Bike\",Statistik!$K$13*G22,IF(F22=\"Privatfahrt mit pers. Dienstfahrzeug\",Statistik!$K$14*G22,IF(F22=\"Privatfahrt mit Poolfahrzeug\",Statistik!$K$15*G22,IF(F22=\"Dienstfahrt mit Velo\",Statistik!#REF!*G22,IF(M22<7000,G22*Statistik!$K$11,IF(M21>=7000,G22*Statistik!$L$11,(7000-M21)*Statistik!$K$11+(M22-7000)*Statistik!$L$11)))))))","v":0},null,null,0,{"$f":"SUM(N10:N22)","v":0},0]
[null,null,null,null,null,"Dienstfahrt mit Privatauto",null,null,{"$f":"IF(F23=\"Dienstfahrt mit Motorrad\",Statistik!$K$12*G23,IF(F23=\"Dienstfahrt mit Mofa / E-Bike\",Statistik!$K$13*G23,IF(F23=\"Privatfahrt mit pers. Dienstfahrzeug\",Statistik!$K$14*G23,IF(F23=\"Privatfahrt mit Poolfahrzeug\",Statistik!$K$15*G23,IF(F23=\"Dienstfahrt mit Velo\",Statistik!#REF!*G23,IF(M23<7000,G23*Statistik!$K$11,IF(M22>=7000,G23*Statistik!$L$11,(7000-M22)*Statistik!$K$11+(M23-7000)*Statistik!$L$11)))))))","v":0},null,null,0,{"$f":"SUM(N10:N23)","v":0},0]
[null,null,null,null,null,"Dienstfahrt mit Privatauto",null,null,{"$f":"IF(F24=\"Dienstfahrt mit Motorrad\",Statistik!$K$12*G24,IF(F24=\"Dienstfahrt mit Mofa / E-Bike\",Statistik!$K$13*G24,IF(F24=\"Privatfahrt mit pers. Dienstfahrzeug\",Statistik!$K$14*G24,IF(F24=\"Privatfahrt mit Poolfahrzeug\",Statistik!$K$15*G24,IF(F24=\"Dienstfahrt mit Velo\",Statistik!#REF!*G24,IF(M24<7000,G24*Statistik!$K$11,IF(M23>=7000,G24*Statistik!$L$11,(7000-M23)*Statistik!$K$11+(M24-7000)*Statistik!$L$11)))))))","v":0},null,null,0,{"$f":"SUM(N10:N24)","v":0},0]
[null,null,null,null,null,"Dienstfahrt mit Privatauto",null,null,{"$f":"IF(F25=\"Dienstfahrt mit Motorrad\",Statistik!$K$12*G25,IF(F25=\"Dienstfahrt mit Mofa / E-Bike\",Statistik!$K$13*G25,IF(F25=\"Privatfahrt mit pers. Dienstfahrzeug\",Statistik!$K$14*G25,IF(F25=\"Privatfahrt mit Poolfahrzeug\",Statistik!$K$15*G25,IF(F25=\"Dienstfahrt mit Velo\",Statistik!#REF!*G25,IF(M25<7000,G25*Statistik!$K$11,IF(M24>=7000,G25*Statistik!$L$11,(7000-M24)*Statistik!$K$11+(M25-7000)*Statistik!$L$11)))))))","v":0},null,null,0,{"$f":"SUM(N10:N25)","v":0},0]
[null,null,null,null,null,"Dienstfahrt mit Privatauto",null,null,{"$f":"IF(F26=\"Dienstfahrt mit Motorrad\",Statistik!$K$12*G26,IF(F26=\"Dienstfahrt mit Mofa / E-Bike\",Statistik!$K$13*G26,IF(F26=\"Privatfahrt mit pers. Dienstfahrzeug\",Statistik!$K$14*G26,IF(F26=\"Privatfahrt mit Poolfahrzeug\",Statistik!$K$15*G26,IF(F26=\"Dienstfahrt mit Velo\",Statistik!#REF!*G26,IF(M26<7000,G26*Statistik!$K$11,IF(M25>=7000,G26*Statistik!$L$11,(7000-M25)*Statistik!$K$11+(M26-7000)*Statistik!$L$11)))))))","v":0},null,null,0,{"$f":"SUM(N10:N26)","v":0},0]
[null,null,null,null,null,"Dienstfahrt mit Privatauto",null,null,{"$f":"IF(F27=\"Dienstfahrt mit Motorrad\",Statistik!$K$12*G27,IF(F27=\"Dienstfahrt mit Mofa / E-Bike\",Statistik!$K$13*G27,IF(F27=\"Privatfahrt mit pers. Dienstfahrzeug\",Statistik!$K$14*G27,IF(F27=\"Privatfahrt mit Poolfahrzeug\",Statistik!$K$15*G27,IF(F27=\"Dienstfahrt mit Velo\",Statistik!#REF!*G27,IF(M27<7000,G27*Statistik!$K$11,IF(M26>=7000,G27*Statistik!$L$11,(7000-M26)*Statistik!$K$11+(M27-7000)*Statistik!$L$11)))))))","v":0},null,null,0,{"$f":"SUM(N10:N27)","v":0},0]
[null,null,null,null,null,"Dienstfahrt mit Privatauto",null,null,{"$f":"IF(F28=\"Dienstfahrt mit Motorrad\",Statistik!$K$12*G28,IF(F28=\"Dienstfahrt mit Mofa / E-Bike\",Statistik!$K$13*G28,IF(F28=\"Privatfahrt mit pers. Dienstfahrzeug\",Statistik!$K$14*G28,IF(F28=\"Privatfahrt mit Poolfahrzeug\",Statistik!$K$15*G28,IF(F28=\"Dienstfahrt mit Velo\",Statistik!#REF!*G28,IF(M28<7000,G28*Statistik!$K$11,IF(M27>=7000,G28*Statistik!$L$11,(7000-M27)*Statistik!$K$11+(M28-7000)*Statistik!$L$11)))))))","v":0},null,null,0,{"$f":"SUM(N10:N28)","v":0},0]
[null,null,null,null,null,"Dienstfahrt mit Privatauto",null,null,{"$f":"IF(F29=\"Dienstfahrt mit Motorrad\",Statistik!$K$12*G29,IF(F29=\"Dienstfahrt mit Mofa / E-Bike\",Statistik!$K$13*G29,IF(F29=\"Privatfahrt mit pers. Dienstfahrzeug\",Statistik!$K$14*G29,IF(F29=\"Privatfahrt mit Poolfahrzeug\",Statistik!$K$15*G29,IF(F29=\"Dienstfahrt mit Velo\",Statistik!#REF!*G29,IF(M29<7000,G29*Statistik!$K$11,IF(M28>=7000,G29*Statistik!$L$11,(7000-M28)*Statistik!$K$11+(M29-7000)*Statistik!$L$11)))))))","v":0},null,null,0,{"$f":"SUM(N10:N29)","v":0},0]
[null,null,null,null,"Vergütung Reisen mit iV laufender Monat:",null,{"$f":"SUM(G11:G29)","v":0},null,{"$f":"SUM(I11:I29)","v":0},{"$f":"SUM(J11:J29)","v":0},{"$f":"SUM(K11:K29)","v":0},null,null,{"$f":"SUM(N10:N29)","v":0}]
[null,null,null,null,"Übernahme Vormonate",null,{"$f":"September!G32","v":0},null,{"$f":"September!I32","v":0},{"$f":"September!J32","v":0},{"$f":"September!K32","v":0}]
[null,null,null,null,"Total km / Ausgaben laufendes Jahr:",null,{"$f":"SUM(G30:G31)","v":0},null,{"$f":"SUM(I30:I31)","v":0},{"$f":"SUM(J30:J31)","v":0},{"$f":"SUM(K30:K31)","v":0}]
["Kostenart: ",null,"Kostenstelle: ",null,null,"Auftrag: ",null,null,null,null,"Tot. Spesen für Reisen mit Indiv. Verkehrsmitteln",{"$f":"SUM(L11:L29)","v":0}]
[]
[]
["Abrechnung Spesen für Reisen mit öV",null,null,"Als Vergütung an Halbtax oder GA maximal noch anrechenbar:",null,null,null,{"$f":"190-H60","v":190}]
[]
["Datum\n( 01.01.9999 )","Gegenstand der Rechnungsstellung",null,"Zeit der Abreise\n( 08:00 )","Zeit der Rückkehr\n( 18:00 )","Vergütungs-Grundlage","Ausgaben für Billettkosten durch MA","Vergütung  \nan Halbtaxabo oder GA","Vergütung Bahnspesen","Auslagen für Verpflegung","Diverse Auslagen","Total"]
[null,null,null,null,null,"1/2 Billett und Verg. für Halbtax-Abo",0,0,{"$f":"SUM(G39:H39)","v":0},null,null,{"$f":"SUM(I39+J39+K39)","v":0}]
[null,null,null,null,null,"1/2 Billett und Verg. für Halbtax-Abo",0,0,{"$f":"SUM(G40:H40)","v":0},null,null,{"$f":"SUM(I40+J40+K40)","v":0}]
[null,null,null,null,null,"1/2 Billett und Verg. für Halbtax-Abo",0,0,0,null,null,0]
[null,null,null,null,null,"1/2 Billett und Verg. für Halbtax-Abo",0,0,0,null,null,0]
[null,null,null,null,null,"1/2 Billett und Verg. für Halbtax-Abo",0,0,0,null,null,0]
[null,null,null,null,null,"1/2 Billett und Verg. für Halbtax-Abo",0,0,0,null,null,0]
[null,null,null,null,null,"1/2 Billett und Verg. für Halbtax-Abo",0,0,0,null,null,0]
[null,null,null,null,null,"1/2 Billett und Verg. für Halbtax-Abo",0,0,0,null,null,0]
[null,null,null,null,null,"1/2 Billett und Verg. für Halbtax-Abo",0,0,0,null,null,0]
[null,null,null,null,null,"1/2 Billett und Verg. für Halbtax-Abo",0,0,0,null,null,0]
[null,null,null,null,null,"1/2 Billett und Verg. für Halbtax-Abo",0,0,0,null,null,0]
[null,null,null,null,null,"1/2 Billett und Verg. für Halbtax-Abo",0,0,0,null,null,0]
[null,null,null,null,null,"1/2 Billett und Verg. für Halbtax-Abo",0,0,0,null,null,0]
[null,null,null,null,null,"1/2 Billett und Verg. für Halbtax-Abo",0,0,0,null,null,0]
[null,null,null,null,null,"1/2 Billett und Verg. für Halbtax-Abo",0,0,0,null,null,0]
[null,null,null,null,null,"1/2 Billett und Verg. für Halbtax-Abo",0,0,0,null,null,0]
[null,null,null,null,null,"1/2 Billett und Verg. für Halbtax-Abo",0,0,0,null,null,0]
[null,null,null,null,null,"1/2 Billett und Verg. für Halbtax-Abo",0,0,0,null,null,0]
[null,null,null,null,null,"1/2 Billett und Verg. für Halbtax-Abo",0,0,0,null,null,0]
[null,null,null,null,"Vergütung Reisen mit öV laufender Monat:",null,{"$f":"SUM(G39:G57)","v":0},{"$f":"SUM(H39:H57)","v":0},{"$f":"SUM(I39:I57)","v":0},{"$f":"SUM(J39:J57)","v":0},{"$f":"SUM(K39:K57)","v":0}]
[null,null,null,null,"Übernahme Vormonate:",null,{"$f":"September!G60","v":0},{"$f":"September!H60","v":0},{"$f":"September!I60","v":0},{"$f":"September!J60","v":0},{"$f":"September!K60","v":0}]
[null,null,null,null,"Total Billettkosten laufendes Jahr:",null,{"$f":"SUM(G58:G59)","v":0},{"$f":"SUM(H58:H59)","v":0},{"$f":"SUM(I58:I59)","v":0},{"$f":"SUM(J58:J59)","v":0},{"$f":"SUM(K58:K59)","v":0}]
["Kostenart: ",{"$f":"IF(B33=\"\",\"\",B33)","v":""},"Kostenstelle: ",{"$f":"IF(D33=\"\",\"\",D33)","v":""},null,"Auftrag: ",{"$f":"IF(G33=\"\",\"\",G33)","v":""},null,null,null,"Tot. Spesen für Reisen mit öffentl. Verkehrsmitteln",{"$f":"SUM(L39:L57)","v":0}]
[]
["Abrechnung Spesen für diverse Ausgaben ",null,null,null,"(spezielle Kostenarten, bitte je Kostenart in separaten Block eingeben)"]
[]
["Datum\n( 01.01.9999 )","Gegenstand der Rechnungsstellung",null,null,null,null,null,null,null,null,null,"Betrag"]
[]
[]
[]
[]
[]
[]
[]
[]
[]
[]
[]
["Kostenart: ",null,"Kostenstelle: ",null,null,"Auftrag: ",null,null,null,null,"Total Spesen für diverse Auslagen Block 1",{"$f":"SUM(L66:L75)","v":0}]
[]
["Datum\n( 01.01.9999 )","Gegenstand der Rechnungsstellung",null,null,null,null,null,null,null,null,null,"Betrag"]
[]
[]
[]
[]
[]
[]
[]
[]
[]
[]
[]
["Kostenart: ",null,"Kostenstelle: ",null,null,"Auftrag: ",null,null,null,null,"Total Spesen für diverse Auslagen Block 2 ",{"$f":"SUM(L80:L89)","v":0}]
[]
["Zusammenfassung "]
["Kostenart: ",{"$f":"IF(B33=\"\",\"\",B33)","v":""},"Kostenstelle: ",{"$f":"IF(D33=\"\",\"\",D33)","v":""},null,"Auftrag: ",{"$f":"IF(G33=\"\",\"\",G33)","v":""},null,null,null,{"$f":"K33","v":"Tot. Spesen für Reisen mit Indiv. Verkehrsmitteln"},{"$f":"L33","v":0}]
[]
["Kostenart: ",{"$f":"B61","v":""},"Kostenstelle: ",{"$f":"D61","v":""},null,"Auftrag: ",{"$f":"G61","v":""},null,null,null,{"$f":"K61","v":"Tot. Spesen für Reisen mit öffentl. Verkehrsmitteln"},{"$f":"L61","v":0},{"$f":"J30+J58","v":0}]
[]
["Kostenart: ",{"$f":"IF(B77=\"\",\"\",B77)","v":""},"Kostenstelle: ",{"$f":"IF(D77=\"\",\"\",D77)","v":""},null,"Auftrag: ",{"$f":"IF(G77=\"\",\"\",G77)","v":""},null,null,null,{"$f":"K77","v":"Total Spesen für diverse Auslagen Block 1"},{"$f":"L77","v":0}]
[]
["Kostenart: ",{"$f":"IF(B91=\"\",\"\",B91)","v":""},"Kostenstelle: ",{"$f":"IF(D91=\"\",\"\",D91)","v":""},null,"Auftrag: ",{"$f":"IF(G91=\"\",\"\",G91)","v":""},null,null,null,{"$f":"K91","v":"Total Spesen für diverse Auslagen Block 2 "},{"$f":"L91","v":0},{"$f":"L100+L98+K58+K30","v":0}]
[]
["Total Spesen ",null,null,null,null,null,null,"Total Spesen Oktober",null,null,null,{"$f":"SUM(L94:L100)","v":0}]
[]
[null,"Datum/Unterschrift:          Rechnungssteller/in",null,null,null,"Vorgesetze/r",null,null,"Verantwortliche/r"]

{"sheet":"November","index":10,"n_rows":104,"n_cols":14,"rows_kept":104,"cut":false,"hidden":false,"merged":[[0,0,0,8],[0,9,0,11],[2,1,2,2],[2,5,2,8],[3,1,3,2],[3,5,3,8],[4,1,4,2],[4,5,4,8],[27,1,27,2],[28,1,28,2],[32,3,32,4],[24,1,24,2],[25,1,25,2],[26,1,26,2],[19,1,19,2],[20,1,20,2],[21,1,21,2],[22,1,22,2],[23,1,23,2],[9,1,9,2],[10,1,10,2],[15,1,15,2],[35,3,35,6],[37,1,37,2],[38,1,38,2],[39,1,39,2],[40,1,40,2],[16,1,16,2],[17,1,17,2],[18,1,18,2],[11,1,11,2],[12,1,12,2],[13,1,13,2],[14,1,14,2],[41,1,41,2],[42,1,42,2],[43,1,43,2],[44,1,44,2],[45,1,45,2],[46,1,46,2],[47,1,47,2],[48,1,48,2],[49,1,49,2],[50,1,50,2],[51,1,51,2],[52,1,52,2],[53,1,53,2],[54,1,54,2],[55,1,55,2],[56,1,56,2],[60,3,60,4],[64,1,64,2],[65,1,65,10],[66,1,66,10],[67,1,67,10],[68,1,68,10],[69,1,69,10],[70,1,70,10],[71,1,71,10],[72,1,72,10],[73,1,73,10],[74,1,74,10],[76,3,76,4],[78,1,78,2],[79,1,79,10],[80,1,80,10],[81,1,81,10],[82,1,82,10],[83,1,83,10],[84,1,84,10],[85,1,85,10],[86,1,86,10],[87,1,87,10],[88,1,88,10],[101,7,101,10],[90,3,90,4],[93,3,93,4],[95,3,95,4],[97,3,97,4],[99,3,99,4]]}
[{"$f":"Januar!A1","v":"Spesenabrechnung 2025"}]
[null,null,null,null,null,null,null,null,null,null,"November"]
["Name: ",{"$f":"IF(Januar!B3=\"\",\"\",Januar!B3)","v":""},null,null,"Vorname: ",{"$f":"IF(Januar!F3=\"\",\"\",Januar!F3)","v":""},null,null,null,"Personen-ID:",{"$f":"IF(Januar!K3=\"\",\"\",Januar!K3)","v":""}]
["Dienststelle: ",{"$f":"IF(Januar!B4=\"\",\"\",Januar!B4)","v":""},null,null,"Abteilung: ",{"$f":"IF(Januar!F4=\"\",\"\",Januar!F4)","v":""},null,null,null,"PersNr.:",{"$f":"IF(Januar!K4=\"\",\"\",Januar!K4)","v":""}]
["Wohnort: ",{"$f":"IF(Januar!B5=\"\",\"\",Januar!B5)","v":""},null,null,"Durchwahl: ",{"$f":"IF(Januar!F5=\"\",\"\",Januar!F5)","v":""},null,null,null,"(Vertragsnr.:)"]
[]
[]
["Abrechnung Spesen für Reisen mit individuellen Verkehrsmitteln (Auto, Moto etc.) bzw. Verrechnung Fahrzeug Privatgebrauch"]
[null,null,null,null,null,null,null,null,null,null,null,null,"AutoKMTotal"]
["Datum\n( 01.01.9999 )","Gegenstand der Rechnungsstellung",null,"Zeit der Abreise\n( 08:00 )","Zeit der Rückkehr\n( 18:00 )","Fahrzeug-\nart","Kilometer",null,"Vergütung Fahrzeugspesen","Auslagen für Verpflegung","Diverse Auslagen","Total",null,{"$f":"Oktober!N30","v":0}]
[null,null,null,null,null,"Dienstfahrt mit Privatauto",null,null,{"$f":"IF(F11=\"Dienstfahrt mit Motorrad\",Statistik!$K$12*G11,IF(F11=\"Dienstfahrt mit Mofa / E-Bike\",Statistik!$K$13*G11,IF(F11=\"Privatfahrt mit pers. Dienstfahrzeug\",Statistik!$K$14*G11,IF(F11=\"Privatfahrt mit Poolfahrzeug\",Statistik!$K$15*G11,IF(F11=\"Dienstfahrt mit Velo\",Statistik!#REF!*G11,IF(M11<7000,G11*Statistik!$K$11,IF(N10>=7000,G11*Statistik!$L$11,(7000-N10)*Statistik!$K$11+(M11-7000)*Statistik!$L$11)))))))","v":0},null,null,{"$f":"SUM(I11+J11+K11)","v":0},{"$f":"SUM(N10:N11)","v":0},{"$f":"IF(F11=\"Dienstfahrt mit Privatauto\",SUM(G11),0)","v":0}]
[null,null,null,null,null,"Dienstfahrt mit Privatauto",null,null,{"$f":"IF(F12=\"Dienstfahrt mit Motorrad\",Statistik!$K$12*G12,IF(F12=\"Dienstfahrt mit Mofa / E-Bike\",Statistik!$K$13*G12,IF(F12=\"Privatfahrt mit pers. Dienstfahrzeug\",Statistik!$K$14*G12,IF(F12=\"Privatfahrt mit Poolfahrzeug\",Statistik!$K$15*G12,IF(F12=\"Dienstfahrt mit Velo\",Statistik!#REF!*G12,IF(M12<7000,G12*Statistik!$K$11,IF(M11>=7000,G12*Statistik!$L$11,(7000-M11)*Statistik!$K$11+(M12-7000)*Statistik!$L$11)))))))","v":0},null,null,{"$f":"SUM(I12+J12+K12)","v":0},{"$f":"SUM(N10:N12)","v":0},{"$f":"IF(F12=\"Dienstfahrt mit Privatauto\",SUM(G12),0)","v":0}]
[null,null,null,null,null,"Dienstfahrt mit Privatauto",null,null,{"$f":"IF(F13=\"Dienstfahrt mit Motorrad\",Statistik!$K$12*G13,IF(F13=\"Dienstfahrt mit Mofa / E-Bike\",Statistik!$K$13*G13,IF(F13=\"Privatfahrt mit pers. Dienstfahrzeug\",Statistik!$K$14*G13,IF(F13=\"Privatfahrt mit Poolfahrzeug\",Statistik!$K$15*G13,IF(F13=\"Dienstfahrt mit Velo\",Statistik!#REF!*G13,IF(M13<7000,G13*Statistik!$K$11,IF(M12>=7000,G13*Statistik!$L$11,(7000-M12)*Statistik!$K$11+(M13-7000)*Statistik!$L$11)))))))","v":0},null,null,0,{"$f":"SUM(N10:N13)","v":0},0]
[null,null,null,null,null,"Dienstfahrt mit Privatauto",null,null,{"$f":"IF(F14=\"Dienstfahrt mit Motorrad\",Statistik!$K$12*G14,IF(F14=\"Dienstfahrt mit Mofa / E-Bike\",Statistik!$K$13*G14,IF(F14=\"Privatfahrt mit pers. Dienstfahrzeug\",Statistik!$K$14*G14,IF(F14=\"Privatfahrt mit Poolfahrzeug\",Statistik!$K$15*G14,IF(F14=\"Dienstfahrt mit Velo\",Statistik!#REF!*G14,IF(M14<7000,G14*Statistik!$K$11,IF(M13>=7000,G14*Statistik!$L$11,(7000-M13)*Statistik!$K$11+(M14-7000)*Statistik!$L$11)))))))","v":0},null,null,0,{"$f":"SUM(N10:N14)","v":0},0]
[null,null,null,null,null,"Dienstfahrt mit Privatauto",null,null,{"$f":"IF(F15=\"Dienstfahrt mit Motorrad\",Statistik!$K$12*G15,IF(F15=\"Dienstfahrt mit Mofa / E-Bike\",Statistik!$K$13*G15,IF(F15=\"Privatfahrt mit pers. Dienstfahrzeug\",Statistik!$K$14*G15,IF(F15=\"Privatfahrt mit Poolfahrzeug\",Statistik!$K$15*G15,IF(F15=\"Dienstfahrt mit Velo\",Statistik!#REF!*G15,IF(M15<7000,G15*Statistik!$K$11,IF(M14>=7000,G15*Statistik!$L$11,(7000-M14)*Statistik!$K$11+(M15-7000)*Statistik!$L$11)))))))","v":0},null,null,0,{"$f":"SUM(N10:N15)","v":0},0]
[null,null,null,null,null,"Dienstfahrt mit Privatauto",null,null,{"$f":"IF(F16=\"Dienstfahrt mit Motorrad\",Statistik!$K$12*G16,IF(F16=\"Dienstfahrt mit Mofa / E-Bike\",Statistik!$K$13*G16,IF(F16=\"Privatfahrt mit pers. Dienstfahrzeug\",Statistik!$K$14*G16,IF(F16=\"Privatfahrt mit Poolfahrzeug\",Statistik!$K$15*G16,IF(F16=\"Dienstfahrt mit Velo\",Statistik!#REF!*G16,IF(M16<7000,G16*Statistik!$K$11,IF(M15>=7000,G16*Statistik!$L$11,(7000-M15)*Statistik!$K$11+(M16-7000)*Statistik!$L$11)))))))","v":0},null,null,0,{"$f":"SUM(N10:N16)","v":0},0]
[null,null,null,null,null,"Dienstfahrt mit Privatauto",null,null,{"$f":"IF(F17=\"Dienstfahrt mit Motorrad\",Statistik!$K$12*G17,IF(F17=\"Dienstfahrt mit Mofa / E-Bike\",Statistik!$K$13*G17,IF(F17=\"Privatfahrt mit pers. Dienstfahrzeug\",Statistik!$K$14*G17,IF(F17=\"Privatfahrt mit Poolfahrzeug\",Statistik!$K$15*G17,IF(F17=\"Dienstfahrt mit Velo\",Statistik!#REF!*G17,IF(M17<7000,G17*Statistik!$K$11,IF(M16>=7000,G17*Statistik!$L$11,(7000-M16)*Statistik!$K$11+(M17-7000)*Statistik!$L$11)))))))","v":0},null,null,0,{"$f":"SUM(N10:N17)","v":0},0]
[null,null,null,null,null,"Dienstfahrt mit Privatauto",null,null,{"$f":"IF(F18=\"Dienstfahrt mit Motorrad\",Statistik!$K$12*G18,IF(F18=\"Dienstfahrt mit Mofa / E-Bike\",Statistik!$K$13*G18,IF(F18=\"Privatfahrt mit pers. Dienstfahrzeug\",Statistik!$K$14*G18,IF(F18=\"Privatfahrt mit Poolfahrzeug\",Statistik!$K$15*G18,IF(F18=\"Dienstfahrt mit Velo\",Statistik!#REF!*G18,IF(M18<7000,G18*Statistik!$K$11,IF(M17>=7000,G18*Statistik!$L$11,(7000-M17)*Statistik!$K$11+(M18-7000)*Statistik!$L$11)))))))","v":0},null,null,0,{"$f":"SUM(N10:N18)","v":0},0]
[null,null,null,null,null,"Dienstfahrt mit Privatauto",null,null,{"$f":"IF(F19=\"Dienstfahrt mit Motorrad\",Statistik!$K$12*G19,IF(F19=\"Dienstfahrt mit Mofa / E-Bike\",Statistik!$K$13*G19,IF(F19=\"Privatfahrt mit pers. Dienstfahrzeug\",Statistik!$K$14*G19,IF(F19=\"Privatfahrt mit Poolfahrzeug\",Statistik!$K$15*G19,IF(F19=\"Dienstfahrt mit Velo\",Statistik!#REF!*G19,IF(M19<7000,G19*Statistik!$K$11,IF(M18>=7000,G19*Statistik!$L$11,(7000-M18)*Statistik!$K$11+(M19-7000)*Statistik!$L$11)))))))","v":0},null,null,0,{"$f":"SUM(N10:N19)","v":0},0]
[null,null,null,null,null,"Dienstfahrt mit Privatauto",null,null,{"$f":"IF(F20=\"Dienstfahrt mit Motorrad\",Statistik!$K$12*G20,IF(F20=\"Dienstfahrt mit Mofa / E-Bike\",Statistik!$K$13*G20,IF(F20=\"Privatfahrt mit pers. Dienstfahrzeug\",Statistik!$K$14*G20,IF(F20=\"Privatfahrt mit Poolfahrzeug\",Statistik!$K$15*G20,IF(F20=\"Dienstfahrt mit Velo\",Statistik!#REF!*G20,IF(M20<7000,G20*Statistik!$K$11,IF(M19>=7000,G20*Statistik!$L$11,(7000-M19)*Statistik!$K$11+(M20-7000)*Statistik!$L$11)))))))","v":0},null,null,0,{"$f":"SUM(N10:N20)","v":0},0]
[null,null,null,null,null,"Dienstfahrt mit Privatauto",null,null,{"$f":"IF(F21=\"Dienstfahrt mit Motorrad\",Statistik!$K$12*G21,IF(F21=\"Dienstfahrt mit Mofa / E-Bike\",Statistik!$K$13*G21,IF(F21=\"Privatfahrt mit pers. Dienstfahrzeug\",Statistik!$K$14*G21,IF(F21=\"Privatfahrt mit Poolfahrzeug\",Statistik!$K$15*G21,IF(F21=\"Dienstfahrt mit Velo\",Statistik!#REF!*G21,IF(M21<7000,G21*Statistik!$K$11,IF(M20>=7000,G21*Statistik!$L$11,(7000-M20)*Statistik!$K$11+(M21-7000)*Statistik!$L$11)))))))","v":0},null,null,0,{"$f":"SUM(N10:N21)","v":0},0]
[null,null,null,null,null,"Dienstfahrt mit Privatauto",null,null,{"$f":"IF(F22=\"Dienstfahrt mit Motorrad\",Statistik!$K$12*G22,IF(F22=\"Dienstfahrt mit Mofa / E-Bike\",Statistik!$K$13*G22,IF(F22=\"Privatfahrt mit pers. Dienstfahrzeug\",Statistik!$K$14*G22,IF(F22=\"Privatfahrt mit Poolfahrzeug\",Statistik!$K$15*G22,IF(F22=\"Dienstfahrt mit Velo\",Statistik!#REF!*G22,IF(M22<7000,G22*Statistik!$K$11,IF(M21>=7000,G22*Statistik!$L$11,(7000-M21)*Statistik!$K$11+(M22-7000)*Statistik!$L$11)))))))","v":0},null,null,0,{"$f":"SUM(N10:N22)","v":0},0]
[null,null,null,null,null,"Dienstfahrt mit Privatauto",null,null,{"$f":"IF(F23=\"Dienstfahrt mit Motorrad\",Statistik!$K$12*G23,IF(F23=\"Dienstfahrt mit Mofa / E-Bike\",Statistik!$K$13*G23,IF(F23=\"Privatfahrt mit pers. Dienstfahrzeug\",Statistik!$K$14*G23,IF(F23=\"Privatfahrt mit Poolfahrzeug\",Statistik!$K$15*G23,IF(F23=\"Dienstfahrt mit Velo\",Statistik!#REF!*G23,IF(M23<7000,G23*Statistik!$K$11,IF(M22>=7000,G23*Statistik!$L$11,(7000-M22)*Statistik!$K$11+(M23-7000)*Statistik!$L$11)))))))","v":0},null,null,0,{"$f":"SUM(N10:N23)","v":0},0]
[null,null,null,null,null,"Dienstfahrt mit Privatauto",null,null,{"$f":"IF(F24=\"Dienstfahrt mit Motorrad\",Statistik!$K$12*G24,IF(F24=\"Dienstfahrt mit Mofa / E-Bike\",Statistik!$K$13*G24,IF(F24=\"Privatfahrt mit pers. Dienstfahrzeug\",Statistik!$K$14*G24,IF(F24=\"Privatfahrt mit Poolfahrzeug\",Statistik!$K$15*G24,IF(F24=\"Dienstfahrt mit Velo\",Statistik!#REF!*G24,IF(M24<7000,G24*Statistik!$K$11,IF(M23>=7000,G24*Statistik!$L$11,(7000-M23)*Statistik!$K$11+(M24-7000)*Statistik!$L$11)))))))","v":0},null,null,0,{"$f":"SUM(N10:N24)","v":0},0]
[null,null,null,null,null,"Dienstfahrt mit Privatauto",null,null,{"$f":"IF(F25=\"Dienstfahrt mit Motorrad\",Statistik!$K$12*G25,IF(F25=\"Dienstfahrt mit Mofa / E-Bike\",Statistik!$K$13*G25,IF(F25=\"Privatfahrt mit pers. Dienstfahrzeug\",Statistik!$K$14*G25,IF(F25=\"Privatfahrt mit Poolfahrzeug\",Statistik!$K$15*G25,IF(F25=\"Dienstfahrt mit Velo\",Statistik!#REF!*G25,IF(M25<7000,G25*Statistik!$K$11,IF(M24>=7000,G25*Statistik!$L$11,(7000-M24)*Statistik!$K$11+(M25-7000)*Statistik!$L$11)))))))","v":0},null,null,0,{"$f":"SUM(N10:N25)","v":0},0]
[null,null,null,null,null,"Dienstfahrt mit Privatauto",null,null,{"$f":"IF(F26=\"Dienstfahrt mit Motorrad\",Statistik!$K$12*G26,IF(F26=\"Dienstfahrt mit Mofa / E-Bike\",Statistik!$K$13*G26,IF(F26=\"Privatfahrt mit pers. Dienstfahrzeug\",Statistik!$K$14*G26,IF(F26=\"Privatfahrt mit Poolfahrzeug\",Statistik!$K$15*G26,IF(F26=\"Dienstfahrt mit Velo\",Statistik!#REF!*G26,IF(M26<7000,G26*Statistik!$K$11,IF(M25>=7000,G26*Statistik!$L$11,(7000-M25)*Statistik!$K$11+(M26-7000)*Statistik!$L$11)))))))","v":0},null,null,0,{"$f":"SUM(N10:N26)","v":0},0]
[null,null,null,null,null,"Dienstfahrt mit Privatauto",null,null,{"$f":"IF(F27=\"Dienstfahrt mit Motorrad\",Statistik!$K$12*G27,IF(F27=\"Dienstfahrt mit Mofa / E-Bike\",Statistik!$K$13*G27,IF(F27=\"Privatfahrt mit pers. Dienstfahrzeug\",Statistik!$K$14*G27,IF(F27=\"Privatfahrt mit Poolfahrzeug\",Statistik!$K$15*G27,IF(F27=\"Dienstfahrt mit Velo\",Statistik!#REF!*G27,IF(M27<7000,G27*Statistik!$K$11,IF(M26>=7000,G27*Statistik!$L$11,(7000-M26)*Statistik!$K$11+(M27-7000)*Statistik!$L$11)))))))","v":0},null,null,0,{"$f":"SUM(N10:N27)","v":0},0]
[null,null,null,null,null,"Dienstfahrt mit Privatauto",null,null,{"$f":"IF(F28=\"Dienstfahrt mit Motorrad\",Statistik!$K$12*G28,IF(F28=\"Dienstfahrt mit Mofa / E-Bike\",Statistik!$K$13*G28,IF(F28=\"Privatfahrt mit pers. Dienstfahrzeug\",Statistik!$K$14*G28,IF(F28=\"Privatfahrt mit Poolfahrzeug\",Statistik!$K$15*G28,IF(F28=\"Dienstfahrt mit Velo\",Statistik!#REF!*G28,IF(M28<7000,G28*Statistik!$K$11,IF(M27>=7000,G28*Statistik!$L$11,(7000-M27)*Statistik!$K$11+(M28-7000)*Statistik!$L$11)))))))","v":0},null,null,0,{"$f":"SUM(N10:N28)","v":0},0]
[null,null,null,null,null,"Dienstfahrt mit Privatauto",null,null,{"$f":"IF(F29=\"Dienstfahrt mit Motorrad\",Statistik!$K$12*G29,IF(F29=\"Dienstfahrt mit Mofa / E-Bike\",Statistik!$K$13*G29,IF(F29=\"Privatfahrt mit pers. Dienstfahrzeug\",Statistik!$K$14*G29,IF(F29=\"Privatfahrt mit Poolfahrzeug\",Statistik!$K$15*G29,IF(F29=\"Dienstfahrt mit Velo\",Statistik!#REF!*G29,IF(M29<7000,G29*Statistik!$K$11,IF(M28>=7000,G29*Statistik!$L$11,(7000-M28)*Statistik!$K$11+(M29-7000)*Statistik!$L$11)))))))","v":0},null,null,0,{"$f":"SUM(N10:N29)","v":0},0]
[null,null,null,null,"Vergütung Reisen mit iV laufender Monat:",null,{"$f":"SUM(G11:G29)","v":0},null,{"$f":"SUM(I11:I29)","v":0},{"$f":"SUM(J11:J29)","v":0},{"$f":"SUM(K11:K29)","v":0},null,null,{"$f":"SUM(N10:N29)","v":0}]
[null,null,null,null,"Übernahme Vormonate",null,{"$f":"Oktober!G32","v":0},null,{"$f":"Oktober!I32","v":0},{"$f":"Oktober!J32","v":0},{"$f":"Oktober!K32","v":0}]
[null,null,null,null,"Total km / Ausgaben laufendes Jahr:",null,{"$f":"SUM(G30:G31)","v":0},null,{"$f":"SUM(I30:I31)","v":0},{"$f":"SUM(J30:J31)","v":0},{"$f":"SUM(K30:K31)","v":0}]
["Kostenart: ",null,"Kostenstelle: ",null,null,"Auftrag: ",null,null,null,null,"Tot. Spesen für Reisen mit Indiv. Verkehrsmitteln",{"$f":"SUM(L11:L29)","v":0}]
[]
[]
["Abrechnung Spesen für Reisen mit öV",null,null,"Als Vergütung an Halbtax oder GA maximal noch anrechenbar:",null,null,null,{"$f":"190-H60","v":190}]
[]
["Datum\n( 01.01.9999 )","Gegenstand der Rechnungsstellung",null,"Zeit der Abreise\n( 08:00 )","Zeit der Rückkehr\n( 18:00 )","Vergütungs-Grundlage","Ausgaben für Billettkosten durch MA","Vergütung  \nan Halbtaxabo oder GA","Vergütung Bahnspesen","Auslagen für Verpflegung","Diverse Auslagen","Total"]
[null,null,null,null,null,"1/2 Billett und Verg. für Halbtax-Abo",0,0,{"$f":"SUM(G39:H39)","v":0},null,null,{"$f":"SUM(I39+J39+K39)","v":0}]
[null,null,null,null,null,"1/2 Billett und Verg. für Halbtax-Abo",0,0,{"$f":"SUM(G40:H40)","v":0},null,null,{"$f":"SUM(I40+J40+K40)","v":0}]
[null,null,null,null,null,"1/2 Billett und Verg. für Halbtax-Abo",0,0,0,null,null,0]
[null,null,null,null,null,"1/2 Billett und Verg. für Halbtax-Abo",0,0,0,null,null,0]
[null,null,null,null,null,"1/2 Billett und Verg. für Halbtax-Abo",0,0,0,null,null,0]
[null,null,null,null,null,"1/2 Billett und Verg. für Halbtax-Abo",0,0,0,null,null,0]
[null,null,null,null,null,"1/2 Billett und Verg. für Halbtax-Abo",0,0,0,null,null,0]
[null,null,null,null,null,"1/2 Billett und Verg. für Halbtax-Abo",0,0,0,null,null,0]
[null,null,null,null,null,"1/2 Billett und Verg. für Halbtax-Abo",0,0,0,null,null,0]
[null,null,null,null,null,"1/2 Billett und Verg. für Halbtax-Abo",0,0,0,null,null,0]
[null,null,null,null,null,"1/2 Billett und Verg. für Halbtax-Abo",0,0,0,null,null,0]
[null,null,null,null,null,"1/2 Billett und Verg. für Halbtax-Abo",0,0,0,null,null,0]
[null,null,null,null,null,"1/2 Billett und Verg. für Halbtax-Abo",0,0,0,null,null,0]
[null,null,null,null,null,"1/2 Billett und Verg. für Halbtax-Abo",0,0,0,null,null,0]
[null,null,null,null,null,"1/2 Billett und Verg. für Halbtax-Abo",0,0,0,null,null,0]
[null,null,null,null,null,"1/2 Billett und Verg. für Halbtax-Abo",0,0,0,null,null,0]
[null,null,null,null,null,"1/2 Billett und Verg. für Halbtax-Abo",0,0,0,null,null,0]
[null,null,null,null,null,"1/2 Billett und Verg. für Halbtax-Abo",0,0,0,null,null,0]
[null,null,null,null,null,"1/2 Billett und Verg. für Halbtax-Abo",0,0,0,null,null,0]
[null,null,null,null,"Vergütung Reisen mit öV laufender Monat:",null,{"$f":"SUM(G39:G57)","v":0},{"$f":"SUM(H39:H57)","v":0},{"$f":"SUM(I39:I57)","v":0},{"$f":"SUM(J39:J57)","v":0},{"$f":"SUM(K39:K57)","v":0}]
[null,null,null,null,"Übernahme Vormonate:",null,{"$f":"Oktober!G60","v":0},{"$f":"Oktober!H60","v":0},{"$f":"Oktober!I60","v":0},{"$f":"Oktober!J60","v":0},{"$f":"Oktober!K60","v":0}]
[null,null,null,null,"Total Billettkosten laufendes Jahr:",null,{"$f":"SUM(G58:G59)","v":0},{"$f":"SUM(H58:H59)","v":0},{"$f":"SUM(I58:I59)","v":0},{"$f":"SUM(J58:J59)","v":0},{"$f":"SUM(K58:K59)","v":0}]
["Kostenart: ",{"$f":"IF(B33=\"\",\"\",B33)","v":""},"Kostenstelle: ",{"$f":"IF(D33=\"\",\"\",D33)","v":""},null,"Auftrag: ",{"$f":"IF(G33=\"\",\"\",G33)","v":""},null,null,null,"Tot. Spesen für Reisen mit öffentl. Verkehrsmitteln",{"$f":"SUM(L39:L57)","v":0}]
[]
["Abrechnung Spesen für diverse Ausgaben ",null,null,null,"(spezielle Kostenarten, bitte je Kostenart in separaten Block eingeben)"]
[]
["Datum\n( 01.01.9999 )","Gegenstand der Rechnungsstellung",null,null,null,null,null,null,null,null,null,"Betrag"]
[]
[]
[]
[]
[]
[]
[]
[]
[]
[]
[]
["Kostenart: ",null,"Kostenstelle: ",null,null,"Auftrag: ",null,null,null,null,"Total Spesen für diverse Auslagen Block 1",{"$f":"SUM(L66:L75)","v":0}]
[]
["Datum\n( 01.01.9999 )","Gegenstand der Rechnungsstellung",null,null,null,null,null,null,null,null,null,"Betrag"]
[]
[]
[]
[]
[]
[]
[]
[]
[]
[]
[]
["Kostenart: ",null,"Kostenstelle: ",null,null,"Auftrag: ",null,null,null,null,"Total Spesen für diverse Auslagen Block 2 ",{"$f":"SUM(L80:L89)","v":0}]
[]
["Zusammenfassung "]
["Kostenart: ",{"$f":"IF(B33=\"\",\"\",B33)","v":""},"Kostenstelle: ",{"$f":"IF(D33=\"\",\"\",D33)","v":""},null,"Auftrag: ",{"$f":"IF(G33=\"\",\"\",G33)","v":""},null,null,null,{"$f":"K33","v":"Tot. Spesen für Reisen mit Indiv. Verkehrsmitteln"},{"$f":"L33","v":0}]
[]
["Kostenart: ",{"$f":"B61","v":""},"Kostenstelle: ",{"$f":"D61","v":""},null,"Auftrag: ",{"$f":"G61","v":""},null,null,null,{"$f":"K61","v":"Tot. Spesen für Reisen mit öffentl. Verkehrsmitteln"},{"$f":"L61","v":0},{"$f":"J30+J58","v":0}]
[]
["Kostenart: ",{"$f":"IF(B77=\"\",\"\",B77)","v":""},"Kostenstelle: ",{"$f":"IF(D77=\"\",\"\",D77)","v":""},null,"Auftrag: ",{"$f":"IF(G77=\"\",\"\",G77)","v":""},null,null,null,{"$f":"K77","v":"Total Spesen für diverse Auslagen Block 1"},{"$f":"L77","v":0}]
[]
["Kostenart: ",{"$f":"IF(B91=\"\",\"\",B91)","v":""},"Kostenstelle: ",{"$f":"IF(D91=\"\",\"\",D91)","v":""},null,"Auftrag: ",{"$f":"IF(G91=\"\",\"\",G91)","v":""},null,null,null,{"$f":"K91","v":"Total Spesen für diverse Auslagen Block 2 "},{"$f":"L91","v":0},{"$f":"L100+L98+K58+K30","v":0}]
[]
["Total Spesen ",null,null,null,null,null,null,"Total Spesen November",null,null,null,{"$f":"SUM(L94:L100)","v":0}]
[]
[null,"Datum/Unterschrift:          Rechnungssteller/in",null,null,null,"Vorgesetze/r",null,null,"Verantwortliche/r"]

{"sheet":"Dezember","index":11,"n_rows":104,"n_cols":14,"rows_kept":104,"cut":false,"hidden":false,"merged":[[0,0,0,8],[0,9,0,11],[2,1,2,2],[2,5,2,8],[3,1,3,2],[3,5,3,8],[4,1,4,2],[4,5,4,8],[27,1,27,2],[28,1,28,2],[32,3,32,4],[24,1,24,2],[25,1,25,2],[26,1,26,2],[19,1,19,2],[20,1,20,2],[21,1,21,2],[22,1,22,2],[23,1,23,2],[9,1,9,2],[10,1,10,2],[15,1,15,2],[35,3,35,6],[37,1,37,2],[38,1,38,2],[39,1,39,2],[40,1,40,2],[16,1,16,2],[17,1,17,2],[18,1,18,2],[11,1,11,2],[12,1,12,2],[13,1,13,2],[14,1,14,2],[41,1,41,2],[42,1,42,2],[43,1,43,2],[44,1,44,2],[45,1,45,2],[46,1,46,2],[47,1,47,2],[48,1,48,2],[49,1,49,2],[50,1,50,2],[51,1,51,2],[52,1,52,2],[53,1,53,2],[54,1,54,2],[55,1,55,2],[56,1,56,2],[60,3,60,4],[64,1,64,2],[65,1,65,10],[66,1,66,10],[67,1,67,10],[68,1,68,10],[69,1,69,10],[70,1,70,10],[71,1,71,10],[72,1,72,10],[73,1,73,10],[74,1,74,10],[76,3,76,4],[78,1,78,2],[79,1,79,10],[80,1,80,10],[81,1,81,10],[82,1,82,10],[83,1,83,10],[84,1,84,10],[85,1,85,10],[86,1,86,10],[87,1,87,10],[88,1,88,10],[101,7,101,10],[90,3,90,4],[93,3,93,4],[95,3,95,4],[97,3,97,4],[99,3,99,4]]}
[{"$f":"Januar!A1","v":"Spesenabrechnung 2025"}]
[null,null,null,null,null,null,null,null,null,null,"Dezember"]
["Name: ",{"$f":"IF(Januar!B3=\"\",\"\",Januar!B3)","v":""},null,null,"Vorname: ",{"$f":"IF(Januar!F3=\"\",\"\",Januar!F3)","v":""},null,null,null,"Personen-ID:",{"$f":"IF(Januar!K3=\"\",\"\",Januar!K3)","v":""}]
["Dienststelle: ",{"$f":"IF(Januar!B4=\"\",\"\",Januar!B4)","v":""},null,null,"Abteilung: ",{"$f":"IF(Januar!F4=\"\",\"\",Januar!F4)","v":""},null,null,null,"PersNr.:",{"$f":"IF(Januar!K4=\"\",\"\",Januar!K4)","v":""}]
["Wohnort: ",{"$f":"IF(Januar!B5=\"\",\"\",Januar!B5)","v":""},null,null,"Durchwahl: ",{"$f":"IF(Januar!F5=\"\",\"\",Januar!F5)","v":""},null,null,null,"(Vertragsnr.:)"]
[]
[]
["Abrechnung Spesen für Reisen mit individuellen Verkehrsmitteln (Auto, Moto etc.) bzw. Verrechnung Fahrzeug Privatgebrauch"]
[null,null,null,null,null,null,null,null,null,null,null,null,"AutoKMTotal"]
["Datum\n( 01.01.9999 )","Gegenstand der Rechnungsstellung",null,"Zeit der Abreise\n( 08:00 )","Zeit der Rückkehr\n( 18:00 )","Fahrzeug-\nart","Kilometer",null,"Vergütung Fahrzeugspesen","Auslagen für Verpflegung","Diverse Auslagen","Total",null,{"$f":"November!N30","v":0}]
[null,null,null,null,null,"Dienstfahrt mit Privatauto",null,null,{"$f":"IF(F11=\"Dienstfahrt mit Motorrad\",Statistik!$K$12*G11,IF(F11=\"Dienstfahrt mit Mofa / E-Bike\",Statistik!$K$13*G11,IF(F11=\"Privatfahrt mit pers. Dienstfahrzeug\",Statistik!$K$14*G11,IF(F11=\"Privatfahrt mit Poolfahrzeug\",Statistik!$K$15*G11,IF(F11=\"Dienstfahrt mit Velo\",Statistik!#REF!*G11,IF(M11<7000,G11*Statistik!$K$11,IF(N10>=7000,G11*Statistik!$L$11,(7000-N10)*Statistik!$K$11+(M11-7000)*Statistik!$L$11)))))))","v":0},null,null,{"$f":"SUM(I11+J11+K11)","v":0},{"$f":"SUM(N10:N11)","v":0},{"$f":"IF(F11=\"Dienstfahrt mit Privatauto\",SUM(G11),0)","v":0}]
[null,null,null,null,null,"Dienstfahrt mit Privatauto",null,null,{"$f":"IF(F12=\"Dienstfahrt mit Motorrad\",Statistik!$K$12*G12,IF(F12=\"Dienstfahrt mit Mofa / E-Bike\",Statistik!$K$13*G12,IF(F12=\"Privatfahrt mit pers. Dienstfahrzeug\",Statistik!$K$14*G12,IF(F12=\"Privatfahrt mit Poolfahrzeug\",Statistik!$K$15*G12,IF(F12=\"Dienstfahrt mit Velo\",Statistik!#REF!*G12,IF(M12<7000,G12*Statistik!$K$11,IF(M11>=7000,G12*Statistik!$L$11,(7000-M11)*Statistik!$K$11+(M12-7000)*Statistik!$L$11)))))))","v":0},null,null,{"$f":"SUM(I12+J12+K12)","v":0},{"$f":"SUM(N10:N12)","v":0},{"$f":"IF(F12=\"Dienstfahrt mit Privatauto\",SUM(G12),0)","v":0}]
[null,null,null,null,null,"Dienstfahrt mit Privatauto",null,null,{"$f":"IF(F13=\"Dienstfahrt mit Motorrad\",Statistik!$K$12*G13,IF(F13=\"Dienstfahrt mit Mofa / E-Bike\",Statistik!$K$13*G13,IF(F13=\"Privatfahrt mit pers. Dienstfahrzeug\",Statistik!$K$14*G13,IF(F13=\"Privatfahrt mit Poolfahrzeug\",Statistik!$K$15*G13,IF(F13=\"Dienstfahrt mit Velo\",Statistik!#REF!*G13,IF(M13<7000,G13*Statistik!$K$11,IF(M12>=7000,G13*Statistik!$L$11,(7000-M12)*Statistik!$K$11+(M13-7000)*Statistik!$L$11)))))))","v":0},null,null,0,{"$f":"SUM(N10:N13)","v":0},0]
[null,null,null,null,null,"Dienstfahrt mit Privatauto",null,null,{"$f":"IF(F14=\"Dienstfahrt mit Motorrad\",Statistik!$K$12*G14,IF(F14=\"Dienstfahrt mit Mofa / E-Bike\",Statistik!$K$13*G14,IF(F14=\"Privatfahrt mit pers. Dienstfahrzeug\",Statistik!$K$14*G14,IF(F14=\"Privatfahrt mit Poolfahrzeug\",Statistik!$K$15*G14,IF(F14=\"Dienstfahrt mit Velo\",Statistik!#REF!*G14,IF(M14<7000,G14*Statistik!$K$11,IF(M13>=7000,G14*Statistik!$L$11,(7000-M13)*Statistik!$K$11+(M14-7000)*Statistik!$L$11)))))))","v":0},null,null,0,{"$f":"SUM(N10:N14)","v":0},0]
[null,null,null,null,null,"Dienstfahrt mit Privatauto",null,null,{"$f":"IF(F15=\"Dienstfahrt mit Motorrad\",Statistik!$K$12*G15,IF(F15=\"Dienstfahrt mit Mofa / E-Bike\",Statistik!$K$13*G15,IF(F15=\"Privatfahrt mit pers. Dienstfahrzeug\",Statistik!$K$14*G15,IF(F15=\"Privatfahrt mit Poolfahrzeug\",Statistik!$K$15*G15,IF(F15=\"Dienstfahrt mit Velo\",Statistik!#REF!*G15,IF(M15<7000,G15*Statistik!$K$11,IF(M14>=7000,G15*Statistik!$L$11,(7000-M14)*Statistik!$K$11+(M15-7000)*Statistik!$L$11)))))))","v":0},null,null,0,{"$f":"SUM(N10:N15)","v":0},0]
[null,null,null,null,null,"Dienstfahrt mit Privatauto",null,null,{"$f":"IF(F16=\"Dienstfahrt mit Motorrad\",Statistik!$K$12*G16,IF(F16=\"Dienstfahrt mit Mofa / E-Bike\",Statistik!$K$13*G16,IF(F16=\"Privatfahrt mit pers. Dienstfahrzeug\",Statistik!$K$14*G16,IF(F16=\"Privatfahrt mit Poolfahrzeug\",Statistik!$K$15*G16,IF(F16=\"Dienstfahrt mit Velo\",Statistik!#REF!*G16,IF(M16<7000,G16*Statistik!$K$11,IF(M15>=7000,G16*Statistik!$L$11,(7000-M15)*Statistik!$K$11+(M16-7000)*Statistik!$L$11)))))))","v":0},null,null,0,{"$f":"SUM(N10:N16)","v":0},0]
[null,null,null,null,null,"Dienstfahrt mit Privatauto",null,null,{"$f":"IF(F17=\"Dienstfahrt mit Motorrad\",Statistik!$K$12*G17,IF(F17=\"Dienstfahrt mit Mofa / E-Bike\",Statistik!$K$13*G17,IF(F17=\"Privatfahrt mit pers. Dienstfahrzeug\",Statistik!$K$14*G17,IF(F17=\"Privatfahrt mit Poolfahrzeug\",Statistik!$K$15*G17,IF(F17=\"Dienstfahrt mit Velo\",Statistik!#REF!*G17,IF(M17<7000,G17*Statistik!$K$11,IF(M16>=7000,G17*Statistik!$L$11,(7000-M16)*Statistik!$K$11+(M17-7000)*Statistik!$L$11)))))))","v":0},null,null,0,{"$f":"SUM(N10:N17)","v":0},0]
[null,null,null,null,null,"Dienstfahrt mit Privatauto",null,null,{"$f":"IF(F18=\"Dienstfahrt mit Motorrad\",Statistik!$K$12*G18,IF(F18=\"Dienstfahrt mit Mofa / E-Bike\",Statistik!$K$13*G18,IF(F18=\"Privatfahrt mit pers. Dienstfahrzeug\",Statistik!$K$14*G18,IF(F18=\"Privatfahrt mit Poolfahrzeug\",Statistik!$K$15*G18,IF(F18=\"Dienstfahrt mit Velo\",Statistik!#REF!*G18,IF(M18<7000,G18*Statistik!$K$11,IF(M17>=7000,G18*Statistik!$L$11,(7000-M17)*Statistik!$K$11+(M18-7000)*Statistik!$L$11)))))))","v":0},null,null,0,{"$f":"SUM(N10:N18)","v":0},0]
[null,null,null,null,null,"Dienstfahrt mit Privatauto",null,null,{"$f":"IF(F19=\"Dienstfahrt mit Motorrad\",Statistik!$K$12*G19,IF(F19=\"Dienstfahrt mit Mofa / E-Bike\",Statistik!$K$13*G19,IF(F19=\"Privatfahrt mit pers. Dienstfahrzeug\",Statistik!$K$14*G19,IF(F19=\"Privatfahrt mit Poolfahrzeug\",Statistik!$K$15*G19,IF(F19=\"Dienstfahrt mit Velo\",Statistik!#REF!*G19,IF(M19<7000,G19*Statistik!$K$11,IF(M18>=7000,G19*Statistik!$L$11,(7000-M18)*Statistik!$K$11+(M19-7000)*Statistik!$L$11)))))))","v":0},null,null,0,{"$f":"SUM(N10:N19)","v":0},0]
[null,null,null,null,null,"Dienstfahrt mit Privatauto",null,null,{"$f":"IF(F20=\"Dienstfahrt mit Motorrad\",Statistik!$K$12*G20,IF(F20=\"Dienstfahrt mit Mofa / E-Bike\",Statistik!$K$13*G20,IF(F20=\"Privatfahrt mit pers. Dienstfahrzeug\",Statistik!$K$14*G20,IF(F20=\"Privatfahrt mit Poolfahrzeug\",Statistik!$K$15*G20,IF(F20=\"Dienstfahrt mit Velo\",Statistik!#REF!*G20,IF(M20<7000,G20*Statistik!$K$11,IF(M19>=7000,G20*Statistik!$L$11,(7000-M19)*Statistik!$K$11+(M20-7000)*Statistik!$L$11)))))))","v":0},null,null,0,{"$f":"SUM(N10:N20)","v":0},0]
[null,null,null,null,null,"Dienstfahrt mit Privatauto",null,null,{"$f":"IF(F21=\"Dienstfahrt mit Motorrad\",Statistik!$K$12*G21,IF(F21=\"Dienstfahrt mit Mofa / E-Bike\",Statistik!$K$13*G21,IF(F21=\"Privatfahrt mit pers. Dienstfahrzeug\",Statistik!$K$14*G21,IF(F21=\"Privatfahrt mit Poolfahrzeug\",Statistik!$K$15*G21,IF(F21=\"Dienstfahrt mit Velo\",Statistik!#REF!*G21,IF(M21<7000,G21*Statistik!$K$11,IF(M20>=7000,G21*Statistik!$L$11,(7000-M20)*Statistik!$K$11+(M21-7000)*Statistik!$L$11)))))))","v":0},null,null,0,{"$f":"SUM(N10:N21)","v":0},0]
[null,null,null,null,null,"Dienstfahrt mit Privatauto",null,null,{"$f":"IF(F22=\"Dienstfahrt mit Motorrad\",Statistik!$K$12*G22,IF(F22=\"Dienstfahrt mit Mofa / E-Bike\",Statistik!$K$13*G22,IF(F22=\"Privatfahrt mit pers. Dienstfahrzeug\",Statistik!$K$14*G22,IF(F22=\"Privatfahrt mit Poolfahrzeug\",Statistik!$K$15*G22,IF(F22=\"Dienstfahrt mit Velo\",Statistik!#REF!*G22,IF(M22<7000,G22*Statistik!$K$11,IF(M21>=7000,G22*Statistik!$L$11,(7000-M21)*Statistik!$K$11+(M22-7000)*Statistik!$L$11)))))))","v":0},null,null,0,{"$f":"SUM(N10:N22)","v":0},0]
[null,null,null,null,null,"Dienstfahrt mit Privatauto",null,null,{"$f":"IF(F23=\"Dienstfahrt mit Motorrad\",Statistik!$K$12*G23,IF(F23=\"Dienstfahrt mit Mofa / E-Bike\",Statistik!$K$13*G23,IF(F23=\"Privatfahrt mit pers. Dienstfahrzeug\",Statistik!$K$14*G23,IF(F23=\"Privatfahrt mit Poolfahrzeug\",Statistik!$K$15*G23,IF(F23=\"Dienstfahrt mit Velo\",Statistik!#REF!*G23,IF(M23<7000,G23*Statistik!$K$11,IF(M22>=7000,G23*Statistik!$L$11,(7000-M22)*Statistik!$K$11+(M23-7000)*Statistik!$L$11)))))))","v":0},null,null,0,{"$f":"SUM(N10:N23)","v":0},0]
[null,null,null,null,null,"Dienstfahrt mit Privatauto",null,null,{"$f":"IF(F24=\"Dienstfahrt mit Motorrad\",Statistik!$K$12*G24,IF(F24=\"Dienstfahrt mit Mofa / E-Bike\",Statistik!$K$13*G24,IF(F24=\"Privatfahrt mit pers. Dienstfahrzeug\",Statistik!$K$14*G24,IF(F24=\"Privatfahrt mit Poolfahrzeug\",Statistik!$K$15*G24,IF(F24=\"Dienstfahrt mit Velo\",Statistik!#REF!*G24,IF(M24<7000,G24*Statistik!$K$11,IF(M23>=7000,G24*Statistik!$L$11,(7000-M23)*Statistik!$K$11+(M24-7000)*Statistik!$L$11)))))))","v":0},null,null,0,{"$f":"SUM(N10:N24)","v":0},0]
[null,null,null,null,null,"Dienstfahrt mit Privatauto",null,null,{"$f":"IF(F25=\"Dienstfahrt mit Motorrad\",Statistik!$K$12*G25,IF(F25=\"Dienstfahrt mit Mofa / E-Bike\",Statistik!$K$13*G25,IF(F25=\"Privatfahrt mit pers. Dienstfahrzeug\",Statistik!$K$14*G25,IF(F25=\"Privatfahrt mit Poolfahrzeug\",Statistik!$K$15*G25,IF(F25=\"Dienstfahrt mit Velo\",Statistik!#REF!*G25,IF(M25<7000,G25*Statistik!$K$11,IF(M24>=7000,G25*Statistik!$L$11,(7000-M24)*Statistik!$K$11+(M25-7000)*Statistik!$L$11)))))))","v":0},null,null,0,{"$f":"SUM(N10:N25)","v":0},0]
[null,null,null,null,null,"Dienstfahrt mit Privatauto",null,null,{"$f":"IF(F26=\"Dienstfahrt mit Motorrad\",Statistik!$K$12*G26,IF(F26=\"Dienstfahrt mit Mofa / E-Bike\",Statistik!$K$13*G26,IF(F26=\"Privatfahrt mit pers. Dienstfahrzeug\",Statistik!$K$14*G26,IF(F26=\"Privatfahrt mit Poolfahrzeug\",Statistik!$K$15*G26,IF(F26=\"Dienstfahrt mit Velo\",Statistik!#REF!*G26,IF(M26<7000,G26*Statistik!$K$11,IF(M25>=7000,G26*Statistik!$L$11,(7000-M25)*Statistik!$K$11+(M26-7000)*Statistik!$L$11)))))))","v":0},null,null,0,{"$f":"SUM(N10:N26)","v":0},0]
[null,null,null,null,null,"Dienstfahrt mit Privatauto",null,null,{"$f":"IF(F27=\"Dienstfahrt mit Motorrad\",Statistik!$K$12*G27,IF(F27=\"Dienstfahrt mit Mofa / E-Bike\",Statistik!$K$13*G27,IF(F27=\"Privatfahrt mit pers. Dienstfahrzeug\",Statistik!$K$14*G27,IF(F27=\"Privatfahrt mit Poolfahrzeug\",Statistik!$K$15*G27,IF(F27=\"Dienstfahrt mit Velo\",Statistik!#REF!*G27,IF(M27<7000,G27*Statistik!$K$11,IF(M26>=7000,G27*Statistik!$L$11,(7000-M26)*Statistik!$K$11+(M27-7000)*Statistik!$L$11)))))))","v":0},null,null,0,{"$f":"SUM(N10:N27)","v":0},0]
[null,null,null,null,null,"Dienstfahrt mit Privatauto",null,null,{"$f":"IF(F28=\"Dienstfahrt mit Motorrad\",Statistik!$K$12*G28,IF(F28=\"Dienstfahrt mit Mofa / E-Bike\",Statistik!$K$13*G28,IF(F28=\"Privatfahrt mit pers. Dienstfahrzeug\",Statistik!$K$14*G28,IF(F28=\"Privatfahrt mit Poolfahrzeug\",Statistik!$K$15*G28,IF(F28=\"Dienstfahrt mit Velo\",Statistik!#REF!*G28,IF(M28<7000,G28*Statistik!$K$11,IF(M27>=7000,G28*Statistik!$L$11,(7000-M27)*Statistik!$K$11+(M28-7000)*Statistik!$L$11)))))))","v":0},null,null,0,{"$f":"SUM(N10:N28)","v":0},0]
[null,null,null,null,null,"Dienstfahrt mit Privatauto",null,null,{"$f":"IF(F29=\"Dienstfahrt mit Motorrad\",Statistik!$K$12*G29,IF(F29=\"Dienstfahrt mit Mofa / E-Bike\",Statistik!$K$13*G29,IF(F29=\"Privatfahrt mit pers. Dienstfahrzeug\",Statistik!$K$14*G29,IF(F29=\"Privatfahrt mit Poolfahrzeug\",Statistik!$K$15*G29,IF(F29=\"Dienstfahrt mit Velo\",Statistik!#REF!*G29,IF(M29<7000,G29*Statistik!$K$11,IF(M28>=7000,G29*Statistik!$L$11,(7000-M28)*Statistik!$K$11+(M29-7000)*Statistik!$L$11)))))))","v":0},null,null,0,{"$f":"SUM(N10:N29)","v":0},0]
[null,null,null,null,"Vergütung Reisen mit iV laufender Monat:",null,{"$f":"SUM(G11:G29)","v":0},null,{"$f":"SUM(I11:I29)","v":0},{"$f":"SUM(J11:J29)","v":0},{"$f":"SUM(K11:K29)","v":0},null,null,{"$f":"SUM(N10:N29)","v":0}]
[null,null,null,null,"Übernahme Vormonate",null,{"$f":"November!G32","v":0},null,{"$f":"November!I32","v":0},{"$f":"November!J32","v":0},{"$f":"November!K32","v":0}]
[null,null,null,null,"Total km / Ausgaben laufendes Jahr:",null,{"$f":"SUM(G30:G31)","v":0},null,{"$f":"SUM(I30:I31)","v":0},{"$f":"SUM(J30:J31)","v":0},{"$f":"SUM(K30:K31)","v":0}]
["Kostenart: ",null,"Kostenstelle: ",null,null,"Auftrag: ",null,null,null,null,"Tot. Spesen für Reisen mit Indiv. Verkehrsmitteln",{"$f":"SUM(L11:L29)","v":0}]
[]
[]
["Abrechnung Spesen für Reisen mit öV",null,null,"Als Vergütung an Halbtax oder GA maximal noch anrechenbar:",null,null,null,{"$f":"190-H60","v":190}]
[]
["Datum\n( 01.01.9999 )","Gegenstand der Rechnungsstellung",null,"Zeit der Abreise\n( 08:00 )","Zeit der Rückkehr\n( 18:00 )","Vergütungs-Grundlage","Ausgaben für Billettkosten durch MA","Vergütung  \nan Halbtaxabo oder GA","Vergütung Bahnspesen","Auslagen für Verpflegung","Diverse Auslagen","Total"]
[null,null,null,null,null,"1/2 Billett und Verg. für Halbtax-Abo",0,0,{"$f":"SUM(G39:H39)","v":0},null,null,{"$f":"SUM(I39+J39+K39)","v":0}]
[null,null,null,null,null,"1/2 Billett und Verg. für Halbtax-Abo",0,0,{"$f":"SUM(G40:H40)","v":0},null,null,{"$f":"SUM(I40+J40+K40)","v":0}]
[null,null,null,null,null,"1/2 Billett und Verg. für Halbtax-Abo",0,0,0,null,null,0]
[null,null,null,null,null,"1/2 Billett und Verg. für Halbtax-Abo",0,0,0,null,null,0]
[null,null,null,null,null,"1/2 Billett und Verg. für Halbtax-Abo",0,0,0,null,null,0]
[null,null,null,null,null,"1/2 Billett und Verg. für Halbtax-Abo",0,0,0,null,null,0]
[null,null,null,null,null,"1/2 Billett und Verg. für Halbtax-Abo",0,0,0,null,null,0]
[null,null,null,null,null,"1/2 Billett und Verg. für Halbtax-Abo",0,0,0,null,null,0]
[null,null,null,null,null,"1/2 Billett und Verg. für Halbtax-Abo",0,0,0,null,null,0]
[null,null,null,null,null,"1/2 Billett und Verg. für Halbtax-Abo",0,0,0,null,null,0]
[null,null,null,null,null,"1/2 Billett und Verg. für Halbtax-Abo",0,0,0,null,null,0]
[null,null,null,null,null,"1/2 Billett und Verg. für Halbtax-Abo",0,0,0,null,null,0]
[null,null,null,null,null,"1/2 Billett und Verg. für Halbtax-Abo",0,0,0,null,null,0]
[null,null,null,null,null,"1/2 Billett und Verg. für Halbtax-Abo",0,0,0,null,null,0]
[null,null,null,null,null,"1/2 Billett und Verg. für Halbtax-Abo",0,0,0,null,null,0]
[null,null,null,null,null,"1/2 Billett und Verg. für Halbtax-Abo",0,0,0,null,null,0]
[null,null,null,null,null,"1/2 Billett und Verg. für Halbtax-Abo",0,0,0,null,null,0]
[null,null,null,null,null,"1/2 Billett und Verg. für Halbtax-Abo",0,0,0,null,null,0]
[null,null,null,null,null,"1/2 Billett und Verg. für Halbtax-Abo",0,0,0,null,null,0]
[null,null,null,null,"Vergütung Reisen mit öV laufender Monat:",null,{"$f":"SUM(G39:G57)","v":0},{"$f":"SUM(H39:H57)","v":0},{"$f":"SUM(I39:I57)","v":0},{"$f":"SUM(J39:J57)","v":0},{"$f":"SUM(K39:K57)","v":0}]
[null,null,null,null,"Übernahme Vormonate:",null,{"$f":"November!G60","v":0},{"$f":"November!H60","v":0},{"$f":"November!I60","v":0},{"$f":"November!J60","v":0},{"$f":"November!K60","v":0}]
[null,null,null,null,"Total Billettkosten laufendes Jahr:",null,{"$f":"SUM(G58:G59)","v":0},{"$f":"SUM(H58:H59)","v":0},{"$f":"SUM(I58:I59)","v":0},{"$f":"SUM(J58:J59)","v":0},{"$f":"SUM(K58:K59)","v":0}]
["Kostenart: ",{"$f":"IF(B33=\"\",\"\",B33)","v":""},"Kostenstelle: ",{"$f":"IF(D33=\"\",\"\",D33)","v":""},null,"Auftrag: ",{"$f":"IF(G33=\"\",\"\",G33)","v":""},null,null,null,"Tot. Spesen für Reisen mit öffentl. Verkehrsmitteln",{"$f":"SUM(L39:L57)","v":0}]
[]
["Abrechnung Spesen für diverse Ausgaben ",null,null,null,"(spezielle Kostenarten, bitte je Kostenart in separaten Block eingeben)"]
[]
["Datum\n( 01.01.9999 )","Gegenstand der Rechnungsstellung",null,null,null,null,null,null,null,null,null,"Betrag"]
[]
[]
[]
[]
[]
[]
[]
[]
[]
[]
[]
["Kostenart: ",null,"Kostenstelle: ",null,null,"Auftrag: ",null,null,null,null,"Total Spesen für diverse Auslagen Block 1",{"$f":"SUM(L66:L75)","v":0}]
[]
["Datum\n( 01.01.9999 )","Gegenstand der Rechnungsstellung",null,null,null,null,null,null,null,null,null,"Betrag"]
[]
[]
[]
[]
[]
[]
[]
[]
[]
[]
[]
["Kostenart: ",null,"Kostenstelle: ",null,null,"Auftrag: ",null,null,null,null,"Total Spesen für diverse Auslagen Block 2 ",{"$f":"SUM(L80:L89)","v":0}]
[]
["Zusammenfassung "]
["Kostenart: ",{"$f":"IF(B33=\"\",\"\",B33)","v":""},"Kostenstelle: ",{"$f":"IF(D33=\"\",\"\",D33)","v":""},null,"Auftrag: ",{"$f":"IF(G33=\"\",\"\",G33)","v":""},null,null,null,{"$f":"K33","v":"Tot. Spesen für Reisen mit Indiv. Verkehrsmitteln"},{"$f":"L33","v":0}]
[]
["Kostenart: ",{"$f":"B61","v":""},"Kostenstelle: ",{"$f":"D61","v":""},null,"Auftrag: ",{"$f":"G61","v":""},null,null,null,{"$f":"K61","v":"Tot. Spesen für Reisen mit öffentl. Verkehrsmitteln"},{"$f":"L61","v":0},{"$f":"J30+J58","v":0}]
[]
["Kostenart: ",{"$f":"IF(B77=\"\",\"\",B77)","v":""},"Kostenstelle: ",{"$f":"IF(D77=\"\",\"\",D77)","v":""},null,"Auftrag: ",{"$f":"IF(G77=\"\",\"\",G77)","v":""},null,null,null,{"$f":"K77","v":"Total Spesen für diverse Auslagen Block 1"},{"$f":"L77","v":0}]
[]
["Kostenart: ",{"$f":"IF(B91=\"\",\"\",B91)","v":""},"Kostenstelle: ",{"$f":"IF(D91=\"\",\"\",D91)","v":""},null,"Auftrag: ",{"$f":"IF(G91=\"\",\"\",G91)","v":""},null,null,null,{"$f":"K91","v":"Total Spesen für diverse Auslagen Block 2 "},{"$f":"L91","v":0},{"$f":"L100+L98+K58+K30","v":0}]
[]
["Total Spesen ",null,null,null,null,null,null,"Total Spesen Dezember",null,null,null,{"$f":"SUM(L94:L100)","v":0}]
[]
[null,"Datum/Unterschrift:          Rechnungssteller/in",null,null,null,"Vorgesetze/r",null,null,"Verantwortliche/r"]

{"sheet":"Statistik","index":12,"n_rows":22,"n_cols":12,"rows_kept":22,"cut":false,"hidden":false,"merged":[[24,1,24,2],[25,1,25,2],[26,1,26,2],[21,1,21,2],[21,4,21,5],[22,1,22,2],[23,1,23,2],[19,1,19,2],[19,4,19,5],[20,1,20,2],[15,1,15,2],[15,4,15,5],[16,1,16,2],[17,1,17,2],[17,4,17,5],[18,1,18,2],[14,1,14,2],[10,1,10,2],[10,4,10,5],[11,4,11,5],[11,0,11,2],[13,1,13,2],[13,4,13,5],[12,1,12,2],[7,1,7,2],[8,1,8,2],[9,1,9,2],[9,4,9,5],[3,1,3,2],[3,5,3,8],[4,1,4,2],[4,5,4,8],[5,1,5,2],[5,5,5,8]]}
[{"$f":"Januar!A1","v":"Spesenabrechnung 2025"}]
[null,null,null,null,null,null,null,null,null,null,"Statistik",{"$f":"IF(Januar!L2=\"\",\"\",Januar!L2)","v":""}]
[]
["Name: ",{"$f":"IF(Januar!B3=\"\",\"\",Januar!B3)","v":""},null,null,"Vorname: ",{"$f":"IF(Januar!F3=\"\",\"\",Januar!F3)","v":""},null,null,null,"Personen-ID:",{"$f":"IF(Januar!K3=\"\",\"\",Januar!K3)","v":""}]
["Dienststelle: ",{"$f":"IF(Januar!B4=\"\",\"\",Januar!B4)","v":""},null,null,"Abteilung: ",{"$f":"IF(Januar!F4=\"\",\"\",Januar!F4)","v":""},null,null,null,"PersNr.:",{"$f":"IF(Januar!K4=\"\",\"\",Januar!K4)","v":""}]
["Wohnort: ",{"$f":"IF(Januar!B5=\"\",\"\",Januar!B5)","v":""},null,null,"Durchwahl: ",{"$f":"IF(Januar!F5=\"\",\"\",Januar!F5)","v":""},null,null,null,"(Vertragsnr.:)"]
[]
[null,"Zusammenfassung"]
[null,null,null,null,null,null,null,null,"Vorgabewerte Individualverkehr:"]
[null,"total gefahrene Kilometer",null,null,{"$f":"SUM(Dezember!G32)","v":0},null,null,null,"nach GAV",null,"<= 7000 km","> 7000 km"]
[null,null,null,null,null,null,null,null,"Dienstfahrt mit Privatauto",null,0.7,0.55000000000000004]
["erstattete Kilometer Pauschale",null,null,null,{"$f":"SUM(Dezember!I32)","v":0},null,null,null,"Dienstfahrt mit Motorrad",null,0.35]
[null,null,null,null,null,null,null,null,"Dienstfahrt mit Mofa / E-Bike",null,0.18]
[null,"Billettkosten",null,null,{"$f":"SUM(Dezember!G60)","v":0},null,null,null,"Privatfahrt mit pers. Dienstfahrzeug",null,-0.45]
[null,null,null,null,null,null,null,null,"Privatfahrt mit Poolfahrzeug",null,-0.6]
[null,"erstattete Bahnkosten",null,null,{"$f":"SUM(Dezember!I60)","v":0}]
[null,null,null,null,null,null,null,null,"Vorgabewerte öffentlicher Verkehr:"]
[null,"Verpflegungskosten",null,null,{"$f":"SUM(Januar!M96+Februar!M96+März!M96+April!M96+Mai!M96+Juni!M96+Juli!M96+August!M96+September!M96+Oktober!M96+November!M96+Dezember!M96)","v":0},null,null,null,"1/2 Billett und Verg. für Halbtax-Abo"]
[null,null,null,null,null,null,null,null,"Billett ohne Verg. für Halbtax-Abo"]
[null,"Diverse Auslagen",null,null,{"$f":"SUM(Januar!M100+Februar!M100+März!M100+April!M100+Mai!M100+Juni!M100+Juli!M100+August!M100+September!M100+Oktober!M100+November!M100+Dezember!M100)","v":0},null,null,null,"Verg. Business Travel mit Halbtax Abo"]
[]
[null,"Total Spesen",null,null,{"$f":"SUM(Januar!L102+Februar!L102+März!L102+April!L102+Mai!L102+Juni!L102+Juli!L102+August!L102+September!L102+Oktober!L102+November!L102+Dezember!L102)","v":0}]

{"sheet":"Anleitung","index":13,"n_rows":19,"n_cols":2,"rows_kept":19,"cut":false,"hidden":false,"merged":[]}
[]
[null,"Anleitung zur Benutzung des Spesenformulars"]
[]
[null,"Das vorliegende Formular unterstützt Sie beim Berechnen Ihrer Spesen und beim Erstellen der monatlichen Spesenabrechnung. \nFüllen Sie im Monat Januar die Benutzerdaten komplett aus. Im Spesenformular werden dazu folgende Felder verwendet: Name; Vorname; Personalnummer; Dienststelle; Abteilung; Wohnort; Durchwahl. Diese werden dann automatisch in alle anderen Monatsformulare übertragen.  "]
[]
[null,"Allgemeine Hinweise zum Formular"]
[null,"Das Formular ist so aufgebaut, dass der zur Verfügung stehende Platz in den meisten Fällen reichen sollte und der Ausdruck doppelseitig auf einem Blatt erfolgen kann. Zellen, in die keine Eingaben erlaubt sind, sind geschützt. Das Formular berechnet alle Überträge automatisch. \nSollte in einzelnen Fällen der zur Verfügung stehende Platz in einer Ausgabenkategorie nicht reichen, kann der Blattschutz aufgehoben und der entsprechende Bereich aufgeklappt werden. Für einen ansprechenden Druck muss in diesem Fall der Seitenumbruch angepasst werden."]
[]
[null,"Fahrspesen für Reisen mit öffentlichen Verkehrsmitteln"]
[null,"Für Dienstreisen sind in der Regel öffentliche Verkehrsmittel zu verwenden (Bahn, Bus, Postauto etc.). Die Billettkosten werden bis zum doppelten Betrag des günstigsten Halbtaxabonnements zum vollen Fahrkartentarif vergütet (aktuell Fr. 380.-). Darüber hinaus werden die Kosten für Fahrkarten zum halben Tarif vergütet. \nDas heisst, dass Mitarbeitende welche ein Halbtaxabo besitzen, den Preis für ein halbes Billett und zusätzlich (bis zum Erreichen des Maximalbetrags von Fr. 190 pro Jahr) ein zweites Mal den gleichen Betrag als Vergütung für das Halbtaxabo abrechnen können.\nDa verschiedene Verkehrsbetriebe für ein halbes Billett mehr als den halben Preis verlangen, mussten bisher im Formular teilweise Phantasiepreise eingegeben werden, damit es richtig gerechnet hat. \nNeu sind im Formular in der einen Spalte immer die effektiv bezahlten Billettkosten einzugeben und in der andern Spalte der Betrag für die Vergütung an das Halbtaxabo. Über dieser Spalte wird immer angezeigt, welcher Betrag im laufenden Jahr noch als Halbtaxabovergütung zur Verfügung steht. \nIn den Dienststellen, welche den Business Travel Schalter eingeführt haben, werden die effektiven Billettkosten der Dienststelle direkt von der SBB in Rechnung gestellt. Besitzer von Halbtaxabos haben auch da das Recht bis zum jährlichen Maximalbetrag den Preis für ein Billett zum halben Tarif als Vergütung an das Halbtaxabo über die Reisespesen abzurechnen. \nIn der Spalte Vergütungsgrundlage kann daher angewählt werden, ob nur Billettkosten ohne Vergütung, Billettkosten mit Vergütung an das Halbtaxabo oder bei Business Travel Schalter nur die Vergütung an das Halbtaxabo abgerechnet werden."]
[]
[null,"Fahrspesen für Reisen mit individuellen Verkehrsmitteln (Auto, Motorrad, Mofa)"]
[null,"Die Fahrspesen für die Benutzung des eigenen Autos für Dienstfahrten werden bis 7000 km pro Jahr mit Fr. 0.70 ab 7001 km mit Fr. 0.55 vergütet. Das Formular berücksichtigt diese Regelung aus dem GAV automatisch, ohne dass verschiedene Tarife eingegeben oder die Kilometer aufgesplittet werden müssen. Dazu kann in der Spalte Fahrzeugart ausgewält werden mit welchem Fahrzeugtyp die Dienstfahrt zurückgelegt worden ist. Wählbar sind neben Dienstfahrten mit dem privaten Auto, Motorrad oder Mofa auch Privatfahrten mit einem Dienstfahrzeug. In diesem Falle wird der Betrag rot als Abzug angezeigt und verrechnet. "]
[]
[null,"Übrige Spesen auf Dienstreisen"]
[null,"Die Verpflegungspauschale beträgt seit dem 01. Januar 2009 Fr. 23.- . \nDie übrigen Spesen auf Dienstreisen können auf der gleichen Zeile wie die Dienstreise abgerechnet werden, wenn es sich um Reisespesen handelt.  "]
[]
[null,"Spesen für diverse Auslagen"]
[null,"Die kantonale Finanzkontrolle hat festgestellt, dass verschiedene Auslagen über die Reisespesen und somit über falsche Konten abgerechnet worden sind. Daher gibt es im Spesenformular neu die Rubrik \"Spesen für diverse Auslagen\"mit zwei verschiedenen Eingabeblocks. Durch die Angabe von Kostenart, Kostenstelle und/oder Auftrag in jedem Block können nun auch Ausgaben korrekt abgerechnet werden, welche nicht zu den Reisespesen gehören.   "]